Body name,Service Area Categorisation,Cost Centre Description,Detailed Expenses Type,Expenses Code,Date,Transaction Number,Amount,Supplier Name,Supplier ID
Solihull MBC,Children & Education Services,Dorridge Inf,IT Equipment & Software,D32000,12/11/2012,12394416,1200,10 Squared Ltd,2115700
Solihull MBC,Children & Education Services,St Peter's,Building Maint Planned,B31002,23/11/2012,12434729,332.5,2B Clear Consultancy LLP,196239
Solihull MBC,Children & Education Services,Castle Bromwich Jnr,Repair & Maintn Of Buildings,B31000,12/11/2012,12393852,332.5,2B Clear Consultancy LLP,196239
Solihull MBC,Central Services to the Public,Building & Design,Professional Fees,D51000,12/11/2012,12393978,332.5,2B Clear Consultancy LLP,196239
Solihull MBC,Other Housing Services,PSD - Landlord - Admin ,Professional Fees,D51000,05/11/2012,12383416,332.5,2B Clear Consultancy LLP,196239
Solihull MBC,Central Services to the Public,Building & Design,Professional Fees,D51000,09/11/2012,12391035,332.5,2B Clear Consultancy LLP,196239
Solihull MBC,Children & Education Services,Daylesford Inf,Building Maint Planned,B31002,15/11/2012,12407330,3608.8,3 Sixty Property Services Ltd,143344
Solihull MBC,Children & Education Services,Windy Arbor J&I,Building Maint Planned,B31002,06/11/2012,12384961,3795,3 Sixty Property Services Ltd,143344
Solihull MBC,Children & Education Services,Childrens Centres,Other Contracted Services,E29000,21/11/2012,12430551,110090,4Children,103816
Solihull MBC,Children & Education Services,Youth Council / YID,Transport-Contract Hire,C30000,09/11/2012,12391319,246,A S C Birch,9523
Solihull MBC,Children & Education Services,Youth Council / YID,Transport-Contract Hire,C30000,09/11/2012,12391319,-246,A S C Birch,9523
Solihull MBC,Children & Education Services,Youth Council / YID,Transport-Contract Hire,C30000,09/11/2012,12391319,246,A S C Birch,9523
Solihull MBC,Adult Social Care,LD Spot Comm Care,Clients Transport Costs,C21000,09/11/2012,12391417,612,A S C Birch,9523
Solihull MBC,Adult Social Care,PD Spot Comm Care,Clients Transport Costs,C21000,09/11/2012,12391418,336,A S C Birch,9523
Solihull MBC,Children & Education Services,Section 17 South/Central,Clients Transport Costs,C21000,09/11/2012,12391419,216,A S C Birch,9523
Solihull MBC,Children & Education Services,Special Transport,Transport-Contract Hire,C30000,23/11/2012,12434565,1292,A S C Birch,9523
Solihull MBC,Children & Education Services,Special Transport,Transport-Contract Hire,C30000,23/11/2012,12434566,660,A S C Birch,9523
Solihull MBC,Children & Education Services,Special Transport,Transport-Contract Hire,C30000,23/11/2012,12434567,550,A S C Birch,9523
Solihull MBC,Children & Education Services,Special Transport,Transport-Contract Hire,C30000,23/11/2012,12434570,1404,A S C Birch,9523
Solihull MBC,Children & Education Services,Special Transport,Transport-Contract Hire,C30000,23/11/2012,12434572,1080,A S C Birch,9523
Solihull MBC,Corporate & Democratic Core,Civic Suite,Furniture & Equipment,D10000,05/11/2012,12384452,1444.89,A T Flooring,203158
Solihull MBC,Children & Education Services,Lyndon,Building Maint Planned,B31002,13/11/2012,12401417,1818.35,A T Flooring,203158
Solihull MBC,Children & Education Services,Windy Arbor J&I,Furniture & Equipment,D10000,14/11/2012,12404421,2829.02,A T Flooring,203158
Solihull MBC,Children & Education Services,Windy Arbor J&I,Building Maint Planned,B31002,14/11/2012,12404423,2115.2,A T Flooring,203158
Solihull MBC,Children & Education Services,St Peter's,Training,A32000,09/11/2012,12391745,1440,A Taste For Catering,285573
Solihull MBC,Cultural & Related Services,Arts Complex Hirings,Furniture & Equipment,D10000,26/11/2012,12436531,338.34,A. C. Entertainment Technologies Ltd,250297
Solihull MBC,Children & Education Services,Special Transport,Transport-Contract Hire,C30000,09/11/2012,12391034,900,A2B Radio Cars,9733
Solihull MBC,Children & Education Services,Special Transport,Transport-Contract Hire,C30000,09/11/2012,12391022,1147.92,A2B Radio Cars,9733
Solihull MBC,Children & Education Services,Special Transport,Transport-Contract Hire,C30000,09/11/2012,12391030,1250,A2B Radio Cars,9733
Solihull MBC,Children & Education Services,Special Transport,Transport-Contract Hire,C30000,09/11/2012,12391031,1250,A2B Radio Cars,9733
Solihull MBC,Children & Education Services,Special Transport,Transport-Contract Hire,C30000,09/11/2012,12391032,1250,A2B Radio Cars,9733
Solihull MBC,Children & Education Services,Special Transport,Transport-Contract Hire,C30000,09/11/2012,12391033,1000,A2B Radio Cars,9733
Solihull MBC,Children & Education Services,Special Transport,Transport-Contract Hire,C30000,09/11/2012,12391023,1250,A2B Radio Cars,9733
Solihull MBC,Children & Education Services,Special Transport,Transport-Contract Hire,C30000,09/11/2012,12391024,1250,A2B Radio Cars,9733
Solihull MBC,Children & Education Services,Special Transport,Transport-Contract Hire,C30000,09/11/2012,12391026,1416.67,A2B Radio Cars,9733
Solihull MBC,Children & Education Services,Special Transport,Transport-Contract Hire,C30000,09/11/2012,12391028,1500,A2B Radio Cars,9733
Solihull MBC,Children & Education Services,Special Transport,Transport-Contract Hire,C30000,09/11/2012,12391029,1650,A2B Radio Cars,9733
Solihull MBC,Planning & Development Services,Craig Croft Village Centre,Consultants,Y31000,08/11/2012,12390674,4200,AA Projects Ltd,2069661
Solihull MBC,Planning & Development Services,Craig Croft Village Centre,Consultants,Y31000,08/11/2012,12390678,2600,AA Projects Ltd,2069661
Solihull MBC,Planning & Development Services,Craig Croft Village Centre,Consultants,Y31000,08/11/2012,12390676,1200,AA Projects Ltd,2069661
Solihull MBC,Planning & Development Services,Craig Croft Village Centre,Consultants,Y31000,08/11/2012,12390681,1500,AA Projects Ltd,2069661
Solihull MBC,Children & Education Services,St Peter's,IT Equipment & Software,D32000,06/11/2012,12384900,225,AB Consulting,119030
Solihull MBC,Adult Social Care,Appointee Spend- I-Proc,General Creditors,S00000,29/11/2012,12441799,476.8,Abbey Healthcare Homes Ltd,84370
Solihull MBC,Adult Social Care,Appointee Spend- I-Proc,General Creditors,S00000,29/11/2012,12441799,-476.8,Abbey Healthcare Homes Ltd,84370
Solihull MBC,Adult Social Care,Appointee Spend- I-Proc,General Creditors,S00000,29/11/2012,12441799,476.8,Abbey Healthcare Homes Ltd,84370
Solihull MBC,Adult Social Care,Appointee Spend- I-Proc,General Creditors,S00000,29/11/2012,12441805,349.44,Abbey Healthcare Homes Ltd,84370
Solihull MBC,Adult Social Care,PD Spot Comm Care,ASC - Nursing Care Permanent,E20005,12/11/2012,12393693,3751.22,Abbey Healthcare Homes Ltd,84370
Solihull MBC,Adult Social Care,OP South Spot Comm Care,ASC - Nursing Care Permanent,E20005,12/11/2012,12393692,3369.74,Abbey Healthcare Homes Ltd,84370
Solihull MBC,Adult Social Care,PD Spot Comm Care,ASC - Nursing Care Permanent,E20005,12/11/2012,12393694,4191.8,Abbey Healthcare Homes Ltd,84370
Solihull MBC,Children & Education Services,Langley J&I,Agency Staff: Classroom Support,A35002,19/11/2012,12417070,550,ABC Teachers,189821
Solihull MBC,Children & Education Services,St Peter's,Agency Staff: Teachers,A35001,09/11/2012,12391760,895,ABC Teachers,189821
Solihull MBC,Children & Education Services,Fordbridge Community Primary,Agency Staff: Teachers,A35001,09/11/2012,12391429,1049.94,ABC Teachers,189821
Solihull MBC,Children & Education Services,Langley J&I,Agency Staff: Teachers,A35001,19/11/2012,12417085,2009.9,ABC Teachers,189821
Solihull MBC,Children & Education Services,Bishop Wilson J&I,Agency Staff: Teachers,A35001,08/11/2012,12390617,279.99,ABC Teachers,189821
Solihull MBC,Children & Education Services,Langley J&I,Agency Staff: Teachers,A35001,19/11/2012,12417087,2449.87,ABC Teachers,189821
Solihull MBC,Children & Education Services,Smith's Wood,Agency Staff: Teachers,A35001,07/11/2012,12385012,537,ABC Teachers,189821
Solihull MBC,Children & Education Services,Bishop Wilson J&I,Agency Staff: Teachers,A35001,15/11/2012,12406416,679.96,ABC Teachers,189821
Solihull MBC,Children & Education Services,Langley J&I,Agency Staff: Teachers,A35001,30/11/2012,12448422,1979.89,ABC Teachers,189821
Solihull MBC,Children & Education Services,Langley J&I,Agency Staff: Teachers,A35001,30/11/2012,12448425,1259.93,ABC Teachers,189821
Solihull MBC,Children & Education Services,Smith's Wood,Agency Staff: Teachers,A35001,21/11/2012,12430762,895,ABC Teachers,189821
Solihull MBC,Children & Education Services,Langley J&I,Agency Staff: Teachers,A35001,30/11/2012,12448427,719.96,ABC Teachers,189821
Solihull MBC,Children & Education Services,Smith's Wood,Agency Staff: Teachers,A35001,30/11/2012,12447515,895,ABC Teachers,189821
Solihull MBC,Children & Education Services,UASC 18+,Grant & Subscription (SCITT),D92000,15/11/2012,12410576,357.5,Abdullah & Sons Co Limited,128651
Solihull MBC,Adult Social Care,Appointee Spend- I-Proc,General Creditors,S00000,20/11/2012,12422858,1685.83,Accord Housing Association,23450
Solihull MBC,Adult Social Care,OP - Extra Care Contract,ASC - Extra Care,E20007,05/11/2012,12384438,22570.11,Accord Housing Association,23450
Solihull MBC,Adult Social Care,Appointee Spend- I-Proc,General Creditors,S00000,12/11/2012,12392621,549.81,Accord Housing Association,23450
Solihull MBC,Adult Social Care,Appointee Spend- I-Proc,General Creditors,S00000,12/11/2012,12392619,527.89,Accord Housing Association,23450
Solihull MBC,Adult Social Care,Appointee Spend- I-Proc,General Creditors,S00000,12/11/2012,12392620,566.81,Accord Housing Association,23450
Solihull MBC,Adult Social Care,Appointee Spend- I-Proc,General Creditors,S00000,20/11/2012,12422857,856.11,Accord Housing Association,23450
Solihull MBC,Adult Social Care,SP - Old People Support Needs,Block Contracts,E21001,27/11/2012,12437196,7707.8,Accord Housing Association,23450
Solihull MBC,Adult Social Care,SP - Generic,Block Contracts,E21001,27/11/2012,12437195,431.18,Accord Housing Association,23450
Solihull MBC,Adult Social Care,SP - Ment Disordered Offenders,Other Contracted Services,E29000,29/11/2012,12441643,903.32,Accord Housing Association,23450
Solihull MBC,Adult Social Care,SP - Ment Disordered Offenders,Other Contracted Services,E29000,27/11/2012,12439156,2002,Accord Housing Association,23450
Solihull MBC,Adult Social Care,Silver Birches Block,ASC - Residential Care Permanent,E20003,14/11/2012,12405450,1269.58,Accord Housing Asssociation,60226
Solihull MBC,Adult Social Care,Silver Birches Block,ASC - Residential Care Permanent,E20003,14/11/2012,12405451,5217.1,Accord Housing Asssociation,60226
Solihull MBC,Adult Social Care,Silver Birches Block,ASC - Residential Care Permanent,E20003,14/11/2012,12405452,1125.43,Accord Housing Asssociation,60226
Solihull MBC,Adult Social Care,Silver Birches Block,ASC - Residential Care Permanent,E20003,14/11/2012,12405453,1369.62,Accord Housing Asssociation,60226
Solihull MBC,Adult Social Care,Silver Birches Block,ASC - Residential Care Permanent,E20003,14/11/2012,12405455,743.6,Accord Housing Asssociation,60226
Solihull MBC,Adult Social Care,Silver Birches Block,ASC - Residential Care Permanent,E20003,14/11/2012,12405456,1232.87,Accord Housing Asssociation,60226
Solihull MBC,Adult Social Care,Silver Birches Block,ASC - Residential Care Permanent,E20003,14/11/2012,12405457,1231.85,Accord Housing Asssociation,60226
Solihull MBC,Adult Social Care,Silver Birches Block,ASC - Residential Care Permanent,E20003,14/11/2012,12405458,1369.62,Accord Housing Asssociation,60226
Solihull MBC,Adult Social Care,Silver Birches Block,ASC - Residential Care Permanent,E20003,14/11/2012,12405459,1369.62,Accord Housing Asssociation,60226
Solihull MBC,Adult Social Care,Silver Birches Block,ASC - Residential Care Permanent,E20003,14/11/2012,12405460,1344.6,Accord Housing Asssociation,60226
Solihull MBC,Adult Social Care,Silver Birches Block,ASC - Residential Care Permanent,E20003,14/11/2012,12405461,1238.41,Accord Housing Asssociation,60226
Solihull MBC,Adult Social Care,Silver Birches Block,ASC - Residential Care Permanent,E20003,14/11/2012,12405462,1347.7,Accord Housing Asssociation,60226
Solihull MBC,Adult Social Care,Silver Birches Block,ASC - Residential Care Permanent,E20003,14/11/2012,12405463,1329.77,Accord Housing Asssociation,60226
Solihull MBC,Adult Social Care,Silver Birches Block,ASC - Residential Care Permanent,E20003,14/11/2012,12405464,1325.74,Accord Housing Asssociation,60226
Solihull MBC,Adult Social Care,Silver Birches Block,ASC - Residential Care Permanent,E20003,14/11/2012,12405465,1344.6,Accord Housing Asssociation,60226
Solihull MBC,Adult Social Care,Silver Birches Block,ASC - Residential Care Permanent,E20003,14/11/2012,12405515,737.36,Accord Housing Asssociation,60226
Solihull MBC,Adult Social Care,Silver Birches Block,ASC - Residential Care Permanent,E20003,14/11/2012,12405516,1369.62,Accord Housing Asssociation,60226
Solihull MBC,Adult Social Care,Silver Birches Block,ASC - Residential Care Permanent,E20003,14/11/2012,12405517,1196.47,Accord Housing Asssociation,60226
Solihull MBC,Adult Social Care,Silver Birches Block,ASC - Residential Care Permanent,E20003,14/11/2012,12405518,1400.62,Accord Housing Asssociation,60226
Solihull MBC,Adult Social Care,Silver Birches Block,ASC - Residential Care Permanent,E20003,14/11/2012,12405519,1369.62,Accord Housing Asssociation,60226
Solihull MBC,Adult Social Care,Silver Birches Block,ASC - Residential Care Permanent,E20003,14/11/2012,12405520,1171.38,Accord Housing Asssociation,60226
Solihull MBC,Adult Social Care,Silver Birches Block,ASC - Residential Care Permanent,E20003,14/11/2012,12405521,2164.89,Accord Housing Asssociation,60226
Solihull MBC,Adult Social Care,Silver Birches Block,ASC - Residential Care Permanent,E20003,14/11/2012,12405447,1409.48,Accord Housing Asssociation,60226
Solihull MBC,Adult Social Care,Silver Birches Block,ASC - Residential Care Permanent,E20003,14/11/2012,12405448,515.22,Accord Housing Asssociation,60226
Solihull MBC,Adult Social Care,Silver Birches Block,ASC - Residential Care Permanent,E20003,14/11/2012,12405449,1369.62,Accord Housing Asssociation,60226
Solihull MBC,Adult Social Care,Silver Birches Block,ASC - Residential Care Permanent,E20003,14/11/2012,12405523,1387.34,Accord Housing Asssociation,60226
Solihull MBC,Adult Social Care,OP South Spot Comm Care,ASC - Residential Care Permanent,E20003,14/11/2012,12405531,1369.62,Accord Housing Asssociation,60226
Solihull MBC,Adult Social Care,Silver Birches Block,ASC - Residential Care Permanent,E20003,14/11/2012,12405532,1118.57,Accord Housing Asssociation,60226
Solihull MBC,Adult Social Care,Silver Birches Block,ASC - Residential Care Permanent,E20003,14/11/2012,12405533,971.99,Accord Housing Asssociation,60226
Solihull MBC,Adult Social Care,Silver Birches Block,ASC - Residential Care Permanent,E20003,14/11/2012,12405534,1340,Accord Housing Asssociation,60226
Solihull MBC,Adult Social Care,Silver Birches Block,ASC - Residential Care Permanent,E20003,14/11/2012,12405535,1348.54,Accord Housing Asssociation,60226
Solihull MBC,Adult Social Care,Silver Birches Block,ASC - Residential Care Permanent,E20003,14/11/2012,12405524,1330.7,Accord Housing Asssociation,60226
Solihull MBC,Adult Social Care,Silver Birches Block,ASC - Residential Care Permanent,E20003,14/11/2012,12405525,1353.64,Accord Housing Asssociation,60226
Solihull MBC,Adult Social Care,Silver Birches Block,ASC - Residential Care Permanent,E20003,14/11/2012,12405526,1305.23,Accord Housing Asssociation,60226
Solihull MBC,Adult Social Care,Silver Birches Block,ASC - Residential Care Permanent,E20003,14/11/2012,12405528,413.5,Accord Housing Asssociation,60226
Solihull MBC,Adult Social Care,Silver Birches Block,ASC - Residential Care Permanent,E20003,14/11/2012,12405529,1391.63,Accord Housing Asssociation,60226
Solihull MBC,Adult Social Care,Silver Birches Block,ASC - Residential Care Permanent,E20003,14/11/2012,12405530,467.35,Accord Housing Asssociation,60226
Solihull MBC,Adult Social Care,Silver Birches Block,ASC - Residential Care Permanent,E20003,14/11/2012,12405538,1652.67,Accord Housing Asssociation,60226
Solihull MBC,Adult Social Care,Silver Birches Block,ASC - Residential Care Permanent,E20003,14/11/2012,12405536,1897.51,Accord Housing Asssociation,60226
Solihull MBC,Adult Social Care,Silver Birches Block,ASC - Residential Care Permanent,E20003,14/11/2012,12405539,1897.51,Accord Housing Asssociation,60226
Solihull MBC,Adult Social Care,Silver Birches Block,ASC - Residential Care Permanent,E20003,14/11/2012,12405540,1652.67,Accord Housing Asssociation,60226
Solihull MBC,Adult Social Care,Silver Birches Block,ASC - Residential Care Permanent,E20003,14/11/2012,12405537,1897.51,Accord Housing Asssociation,60226
Solihull MBC,Adult Social Care,Silver Birches Block,ASC - Residential Care Permanent,E20003,14/11/2012,12405543,550.89,Accord Housing Asssociation,60226
Solihull MBC,Adult Social Care,Silver Birches Block,ASC - Residential Care Permanent,E20003,14/11/2012,12405544,1469.04,Accord Housing Asssociation,60226
Solihull MBC,Adult Social Care,Silver Birches Block,ASC - Residential Care Permanent,E20003,14/11/2012,12405545,1897.51,Accord Housing Asssociation,60226
Solihull MBC,Adult Social Care,Silver Birches Block,ASC - Residential Care Permanent,E20003,14/11/2012,12405546,1897.51,Accord Housing Asssociation,60226
Solihull MBC,Adult Social Care,Silver Birches Block,ASC - Residential Care Permanent,E20003,14/11/2012,12405549,1897.51,Accord Housing Asssociation,60226
Solihull MBC,Adult Social Care,Silver Birches Block,ASC - Residential Care Permanent,E20003,14/11/2012,12405541,1897.51,Accord Housing Asssociation,60226
Solihull MBC,Adult Social Care,Silver Birches Block,ASC - Residential Care Permanent,E20003,14/11/2012,12405542,1101.78,Accord Housing Asssociation,60226
Solihull MBC,Children & Education Services,St Peter's,Building Maint Day To Day,B31001,12/11/2012,12393797,720,Ace Cleaning Company,48575
Solihull MBC,Children & Education Services,Dorridge Inf,Building Maint Planned,B31002,07/11/2012,12388222,700,Ace Cleaning Company,48575
Solihull MBC,Children & Education Services,Peterbrook J&I,Visits & Pupil Activities,D52002,28/11/2012,12441548,658.33,Ace UK Trading Ltd,2710686
Solihull MBC,Adult Social Care,OP - Residential Home Sunhaven,Furniture & Equipment,D10000,14/11/2012,12403642,385.12,Acer Equipment Limited,687630
Solihull MBC,Adult Social Care,Appointee Spend- I-Proc,General Creditors,S00000,29/11/2012,12441780,476.8,Acocks Green HC,1799616
Solihull MBC,Adult Social Care,MH Spot Comm Care,ASC - Residential Care Permanent,E20003,05/11/2012,12383964,3384.98,Acorn Care Home,2299686
Solihull MBC,Children & Education Services,Int. Fostering Smiths Wood,Other Contracted Services,E29000,08/11/2012,12390977,9407.14,Acorn Childrens Home,2424690
Solihull MBC,Children & Education Services,Catering Management,Furniture & Equipment,D10000,27/11/2012,12439102,966,Acorn The Catering Equipment Co,281348
Solihull MBC,Children & Education Services,16+ Childrens Placements,Privately Rented Accommodation,E29008,09/11/2012,12391329,3852,Acorns To Mighty Oaks Ltd,2271697
Solihull MBC,Children & Education Services,16+ Childrens Placements,Clients Expenses,D62000,09/11/2012,12391329,50,Acorns To Mighty Oaks Ltd,2271697
Solihull MBC,Children & Education Services,16+ Childrens Placements,Privately Rented Accommodation,E29008,09/11/2012,12391290,1100.57,Acorns To Mighty Oaks Ltd,2271697
Solihull MBC,Children & Education Services,16+ Childrens Placements,Clients Expenses,D62000,09/11/2012,12391290,40.08,Acorns To Mighty Oaks Ltd,2271697
Solihull MBC,Children & Education Services,16+ Childrens Placements,Privately Rented Accommodation,E29008,09/11/2012,12391290,2751.43,Acorns To Mighty Oaks Ltd,2271697
Solihull MBC,Children & Education Services,16+ Childrens Placements,Clients Expenses,D62000,09/11/2012,12391290,99.92,Acorns To Mighty Oaks Ltd,2271697
Solihull MBC,Children & Education Services,16+ Childrens Placements,Clients Expenses,D62000,26/11/2012,12436587,50,Acorns To Mighty Oaks Ltd,2271697
Solihull MBC,Children & Education Services,16+ Childrens Placements,Privately Rented Accommodation,E29008,26/11/2012,12436587,3852,Acorns To Mighty Oaks Ltd,2271697
Solihull MBC,Children & Education Services,16+ Childrens Placements,Clients Expenses,D62000,07/11/2012,12388528,50,Acorns To Mighty Oaks Ltd,2271697
Solihull MBC,Children & Education Services,16+ Childrens Placements,Privately Rented Accommodation,E29008,07/11/2012,12388528,3852,Acorns To Mighty Oaks Ltd,2271697
Solihull MBC,Adult Social Care,PD - Vol Sector Partnership Schemes,Block Contracts,E21001,13/11/2012,12397420,30844.26,Action For Blind People (RNIB Group) Regional Services,279825
Solihull MBC,Highways & Transport Services,Car Parks Expenditure,Furniture & Equipment,D10000,07/11/2012,12388516,495.8,Action Graphics (Bham) Ltd,10043
Solihull MBC,Highways & Transport Services,Car Parks Expenditure,Furniture & Equipment,D10000,09/11/2012,12391132,538,Action Graphics (Bham) Ltd,10043
Solihull MBC,Cultural & Related Services,Arts Complex Hirings,Advertising/Publicity/Promotion,D93000,12/11/2012,12392570,653.44,Action Graphics (Bham) Ltd,10043
Solihull MBC,Highways & Transport Services,Temporary Parking Shirley,Furniture & Equipment,Y13000,22/11/2012,12433601,589,Action Graphics (Bham) Ltd,10043
Solihull MBC,Children & Education Services,2Yr Old Free E Learn/Care,Grant & Subscription (SCITT),D92000,01/11/2012,12378483,679,Active Angels,131744
Solihull MBC,Children & Education Services,Grants For Private Sector,Grant & Subscription (SCITT),D92000,01/11/2012,12378484,8129.1,Active Angels,131744
Solihull MBC,Children & Education Services,EICTs Trading Account,IT Equipment & Software,D32000,09/11/2012,12391323,800,Active Visual Supplies Ltd,57805
Solihull MBC,Children & Education Services,EICTs Trading Account,IT Equipment & Software,D32000,09/11/2012,12391324,1586,Active Visual Supplies Ltd,57805
Solihull MBC,Children & Education Services,Castle Bromwich Inf,IT Equipment & Software,D32000,09/11/2012,12391335,2583,Active Visual Supplies Ltd,57805
Solihull MBC,Children & Education Services,Kingshurst Primary,IT Equipment & Software,D32000,16/11/2012,12416452,2276,Active Visual Supplies Ltd,57805
Solihull MBC,Children & Education Services,Castle Bromwch Youth Cntre,Furniture & Equipment,D10000,12/11/2012,12394048,2729.6,Active Visual Supplies Ltd,57805
Solihull MBC,Children & Education Services,Sharmans Cross Jnr,IT Equipment & Software,D32000,27/11/2012,12436705,976,Active Visual Supplies Ltd,57805
Solihull MBC,Children & Education Services,Smith's Wood Community Primary,Professional Fees,D51000,29/11/2012,12441638,700,Adrienne Cave,2251686
Solihull MBC,Children & Education Services,Smith's Wood Community Primary,Health & Safety,B43003,28/11/2012,12440482,820,ADT Fire & Security PLC,10132
Solihull MBC,Children & Education Services,Valley Inf,Alarms,B43002,07/11/2012,12388550,222,ADT Fire & Security PLC,10132
Solihull MBC,Children & Education Services,Knowle J&I,Alarms,B43002,14/11/2012,12404471,354.47,ADT Fire & Security PLC,10132
Solihull MBC,Children & Education Services,St Peter's,Alarms,B43002,27/11/2012,12439005,2563.97,ADT Fire & Security PLC,206540
Solihull MBC,Children & Education Services,Bentley Heath Child Cent,Other Premise Costs,B43000,13/11/2012,12400447,536,ADT Fire & Security PLC,10132
Solihull MBC,Central Services to the Public,Training Facilities Upgra,Contractors,Y21000,15/11/2012,12407735,320.74,ADT Fire & Security PLC,10132
Solihull MBC,Children & Education Services,Coppice Jnr,Alarms,B43002,15/11/2012,12407629,237.37,ADT Fire & Security PLC,10132
Solihull MBC,Children & Education Services,Smith's Wood Community Primary,Health & Safety,B43003,28/11/2012,12440496,-369,ADT Fire & Security PLC,10132
Solihull MBC,Central Services to the Public,Building & Design,Professional Fees,D51000,07/11/2012,12388210,945,Advanced Project Solutions Ltd,687646
Solihull MBC,Central Services to the Public,Building & Design,Professional Fees,D51000,12/11/2012,12394035,750,Advanced Project Solutions Ltd,687646
Solihull MBC,Children & Education Services,Hazel Oak,Capitation,D11001,15/11/2012,12407591,180,Aesops Touring Theatre Company,227511
Solihull MBC,Children & Education Services,Hazel Oak,Capitation,D11001,15/11/2012,12407591,180,Aesops Touring Theatre Company,227511
Solihull MBC,Central Services to the Public,Bid Control Account,Bid Refunds,R29902,16/11/2012,12414420,340.43,AFH Stores UK Ltd,2085648
Solihull MBC,Children & Education Services,Adoption Team,Grant & Subscription (SCITT),D92000,23/11/2012,12434461,3240,After Adoption,168658
Solihull MBC,Adult Social Care,SP - Old People Support Needs,Block Contracts,E21001,27/11/2012,12437197,6735.55,Age Concern Solihull,958597
Solihull MBC,Adult Social Care,ASC - Joint Stores,Furniture & Equipment,D10000,05/11/2012,12384352,11.85,Aidapt Bathrooms Ltd,687651
Solihull MBC,Adult Social Care,ASC - Joint Stores,Furniture & Equipment,D10000,05/11/2012,12384352,13.5,Aidapt Bathrooms Ltd,687651
Solihull MBC,Adult Social Care,ASC - Joint Stores,Furniture & Equipment,D10000,05/11/2012,12384352,123,Aidapt Bathrooms Ltd,687651
Solihull MBC,Adult Social Care,ASC - Joint Stores,Furniture & Equipment,D10000,05/11/2012,12384352,165,Aidapt Bathrooms Ltd,687651
Solihull MBC,Adult Social Care,ASC - Joint Stores,Furniture & Equipment,D10000,05/11/2012,12384352,900,Aidapt Bathrooms Ltd,687651
Solihull MBC,Adult Social Care,ASC - Joint Stores,Furniture & Equipment,D10000,05/11/2012,12384352,255,Aidapt Bathrooms Ltd,687651
Solihull MBC,Adult Social Care,ASC - Joint Stores,Furniture & Equipment,D10000,05/11/2012,12384355,387.6,Aidapt Bathrooms Ltd,687651
Solihull MBC,Adult Social Care,ASC - Joint Stores,Furniture & Equipment,D10000,12/11/2012,12392442,487.5,Aidapt Bathrooms Ltd,687651
Solihull MBC,Adult Social Care,ASC - Joint Stores,Furniture & Equipment,D10000,12/11/2012,12392442,240,Aidapt Bathrooms Ltd,687651
Solihull MBC,Adult Social Care,ASC - Joint Stores,Furniture & Equipment,D10000,12/11/2012,12392513,400,Aidapt Bathrooms Ltd,687651
Solihull MBC,Adult Social Care,ASC - Joint Stores,Furniture & Equipment,D10000,12/11/2012,12392514,229.32,Aidapt Bathrooms Ltd,687651
Solihull MBC,Adult Social Care,ASC - Joint Stores,Furniture & Equipment,D10000,12/11/2012,12392514,465.12,Aidapt Bathrooms Ltd,687651
Solihull MBC,Adult Social Care,ASC - Joint Stores,Furniture & Equipment,D10000,13/11/2012,12400460,210,Aidapt Bathrooms Ltd,687651
Solihull MBC,Adult Social Care,ASC - Joint Stores,Furniture & Equipment,D10000,13/11/2012,12400460,465.12,Aidapt Bathrooms Ltd,687651
Solihull MBC,Adult Social Care,ASC - Joint Stores,Furniture & Equipment,D10000,13/11/2012,12400459,229.32,Aidapt Bathrooms Ltd,687651
Solihull MBC,Adult Social Care,ASC - Joint Stores,Furniture & Equipment,D10000,19/11/2012,12417044,193.5,Aidapt Bathrooms Ltd,687651
Solihull MBC,Adult Social Care,ASC - Joint Stores,Furniture & Equipment,D10000,19/11/2012,12417044,292.5,Aidapt Bathrooms Ltd,687651
Solihull MBC,Adult Social Care,ASC - Joint Stores,Furniture & Equipment,D10000,19/11/2012,12417044,12.3,Aidapt Bathrooms Ltd,687651
Solihull MBC,Adult Social Care,ASC - Joint Stores,Furniture & Equipment,D10000,19/11/2012,12417044,347,Aidapt Bathrooms Ltd,687651
Solihull MBC,Adult Social Care,ASC - Joint Stores,Furniture & Equipment,D10000,19/11/2012,12417042,468,Aidapt Bathrooms Ltd,687651
Solihull MBC,Adult Social Care,ASC - Joint Stores,Furniture & Equipment,D10000,22/11/2012,12433365,71.94,Aidapt Bathrooms Ltd,687651
Solihull MBC,Adult Social Care,ASC - Joint Stores,Furniture & Equipment,D10000,22/11/2012,12433365,400,Aidapt Bathrooms Ltd,687651
Solihull MBC,Adult Social Care,ASC - Joint Stores,Furniture & Equipment,D10000,22/11/2012,12433365,48,Aidapt Bathrooms Ltd,687651
Solihull MBC,Adult Social Care,ASC - Joint Stores,Furniture & Equipment,D10000,23/11/2012,12434532,62.72,Aidapt Bathrooms Ltd,687651
Solihull MBC,Adult Social Care,ASC - Joint Stores,Furniture & Equipment,D10000,23/11/2012,12434532,294,Aidapt Bathrooms Ltd,687651
Solihull MBC,Adult Social Care,ASC - Joint Stores,Furniture & Equipment,D10000,23/11/2012,12434533,71.94,Aidapt Bathrooms Ltd,687651
Solihull MBC,Adult Social Care,ASC - Joint Stores,Furniture & Equipment,D10000,23/11/2012,12434533,294,Aidapt Bathrooms Ltd,687651
Solihull MBC,Adult Social Care,ASC - Joint Stores,Furniture & Equipment,D10000,23/11/2012,12434533,241.08,Aidapt Bathrooms Ltd,687651
Solihull MBC,Adult Social Care,ASC - Joint Stores,Furniture & Equipment,D10000,23/11/2012,12434533,387.6,Aidapt Bathrooms Ltd,687651
Solihull MBC,Adult Social Care,ASC - Joint Stores,Furniture & Equipment,D10000,23/11/2012,12434535,400,Aidapt Bathrooms Ltd,687651
Solihull MBC,Adult Social Care,ASC - Wheelchairs,Furniture & Equipment,D10000,09/11/2012,12391322,15,Aidservice Ltd,197178
Solihull MBC,Adult Social Care,ASC - Wheelchairs,Furniture & Equipment,D10000,09/11/2012,12391322,-15,Aidservice Ltd,197178
Solihull MBC,Adult Social Care,ASC - Wheelchairs,Furniture & Equipment,D10000,09/11/2012,12391322,427.3,Aidservice Ltd,197178
Solihull MBC,Adult Social Care,ASC - Wheelchairs,Furniture & Equipment,D10000,09/11/2012,12391322,-427.3,Aidservice Ltd,197178
Solihull MBC,Adult Social Care,ASC - Wheelchairs,Furniture & Equipment,D10000,09/11/2012,12391322,427.3,Aidservice Ltd,197178
Solihull MBC,Adult Social Care,OP - Central Spot Comm Care,ASC - Nursing Care Permanent,E20005,14/11/2012,12406019,1324.1,Akari Care Ltd,2677701
Solihull MBC,Adult Social Care,OP - Central Spot Comm Care,ASC - Nursing Care Permanent,E20005,14/11/2012,12406016,1132.87,Akari Care Ltd,2677701
Solihull MBC,Adult Social Care,OP - Central Spot Comm Care,ASC - Nursing Care Permanent,E20005,14/11/2012,12406014,1319.85,Akari Care Ltd,2677701
Solihull MBC,Adult Social Care,OP - Central Spot Comm Care,ASC - Nursing Care Permanent,E20005,14/11/2012,12406013,1249.83,Akari Care Ltd,2677701
Solihull MBC,Adult Social Care,OP - North Spot Comm Care,ASC - Nursing Care Permanent,E20005,14/11/2012,12406015,926.5,Akari Care Ltd,2677701
Solihull MBC,Adult Social Care,OP - Central Spot Comm Care,ASC - Nursing Care Permanent,E20005,14/11/2012,12406018,1281.39,Akari Care Ltd,2677701
Solihull MBC,Adult Social Care,OP - Central Spot Comm Care,ASC - Nursing Care Permanent,E20005,14/11/2012,12406017,726.12,Akari Care Ltd,2677701
Solihull MBC,Children & Education Services,St Augustine's J&I,Cleaning Contracts,B40001,12/11/2012,12393870,976.31,A-Kleen Cleaning Services,105447
Solihull MBC,Children & Education Services,St Anne's J&I,Alarms,B43002,27/11/2012,12439336,500,Alarm & Vision,194179
Solihull MBC,Adult Social Care,PD Spot Comm Care,ASC - Residential Care Permanent,E20003,05/11/2012,12384044,3946.52,Alexandra Centre For Physical Disability,2185686
Solihull MBC,Children & Education Services,Damson Wood Inf,Maintenance Of Grounds,B30000,08/11/2012,12391002,396,All Seasons Garden Services,283336
Solihull MBC,Children & Education Services,Chapel Fields Jnr,Maintenance Of Grounds,B30000,15/11/2012,12410701,616,All Seasons Garden Services,283336
Solihull MBC,Children & Education Services,Daylesford Inf,Maintenance Of Grounds,B30000,15/11/2012,12406442,396,All Seasons Garden Services,283336
Solihull MBC,Children & Education Services,Yew Tree J&I,Maintenance Of Grounds,B30000,05/11/2012,12382812,495,All Seasons Garden Services,283336
Solihull MBC,Children & Education Services,Daylesford Inf,Building Maint Planned,B31002,15/11/2012,12406427,6280,All Seasons Garden Services,283336
Solihull MBC,Children & Education Services,Damson Wood Inf,Building Maint Planned,B31002,22/11/2012,12434430,810,All Seasons Garden Services,283336
Solihull MBC,Adult Social Care,OP South Spot Comm Care,ASC - Residential Care Permanent,E20003,05/11/2012,12383959,993.33,Allambie Enterprise Ltd,2089647
Solihull MBC,Adult Social Care,OP - Central Spot Comm Care,ASC - Domiciliary Care,E20008,14/11/2012,12406010,341.6,Allied Healthcare (UK) Ltd,66464
Solihull MBC,Children & Education Services,S.C.I.L. School Joint Costs,Building Maint Day To Day,B31001,08/11/2012,12390781,510,Allround Door Services,2665697
Solihull MBC,Children & Education Services,St Augustine's J&I,Professional Fees,D51000,12/11/2012,12393872,1057,Allsports Schools Coaching Ltd,210780
Solihull MBC,Adult Social Care,LD Spot Comm Care,ASC - Residential Care Permanent,E20003,05/11/2012,12383953,5100.3,Alophonsus Services Ltd,1124612
Solihull MBC,Adult Social Care,OP - Central Spot Comm Care,ASC - Residential Care Permanent,E20003,05/11/2012,12383957,1030.04,Alpha Health Care Ltd,5595
Solihull MBC,Adult Social Care,OP - Central Spot Comm Care,ASC - Nursing Care Permanent,E20005,05/11/2012,12383960,1109.93,Alpha Health Care Ltd,5595
Solihull MBC,Adult Social Care,OP - Central Spot Comm Care,ASC - Nursing Care Permanent,E20005,05/11/2012,12383956,1373.88,Alpha Health Care Ltd,5595
Solihull MBC,Adult Social Care,OP - Central Spot Comm Care,ASC - Nursing Care Permanent,E20005,05/11/2012,12383958,1036.06,Alpha Health Care Ltd,5595
Solihull MBC,Children & Education Services,Section 17 CDT,Clients Expenses,D62000,19/11/2012,12416868,252.72,Alpha Nursing & Care Services,206961
Solihull MBC,Children & Education Services,Section 17 CDT,Clients Expenses,D62000,20/11/2012,12427053,333.12,Alpha Nursing & Care Services,206961
Solihull MBC,Adult Social Care,OP South Spot Comm Care,ASC - Out of hospital,E20012,19/11/2012,12416707,634.5,Alphacare,75103
Solihull MBC,Adult Social Care,OP South Spot Comm Care,ASC - Out of hospital,E20012,19/11/2012,12416708,748.25,Alphacare,75103
Solihull MBC,Adult Social Care,OP South Spot Comm Care,ASC - Domiciliary Care,E20008,19/11/2012,12416711,896,Alphacare,75103
Solihull MBC,Adult Social Care,OP South Spot Comm Care,ASC - Domiciliary Care,E20008,19/11/2012,12416712,1624,Alphacare,75103
Solihull MBC,Adult Social Care,PD Spot Comm Care,ASC - Domiciliary Care,E20008,19/11/2012,12416713,1113.75,Alphacare,75103
Solihull MBC,Adult Social Care,OP South Spot Comm Care,ASC - Domiciliary Care,E20008,19/11/2012,12416715,895.05,Alphacare,75103
Solihull MBC,Adult Social Care,PD Spot Comm Care,ASC - Domiciliary Care,E20008,19/11/2012,12416717,474.3,Alphacare,75103
Solihull MBC,Adult Social Care,PD Spot Comm Care,ASC - Domiciliary Care,E20008,19/11/2012,12416718,474.3,Alphacare,75103
Solihull MBC,Adult Social Care,OP South Spot Comm Care,ASC - Domiciliary Care,E20008,19/11/2012,12416719,711.45,Alphacare,75103
Solihull MBC,Adult Social Care,OP South Spot Comm Care,ASC - Domiciliary Care,E20008,19/11/2012,12416720,654.1,Alphacare,75103
Solihull MBC,Adult Social Care,OP - Central Spot Comm Care,ASC - Domiciliary Care,E20008,19/11/2012,12416722,436.05,Alphacare,75103
Solihull MBC,Adult Social Care,OP South Spot Comm Care,ASC - Domiciliary Care,E20008,19/11/2012,12416723,252.45,Alphacare,75103
Solihull MBC,Adult Social Care,OP South Spot Comm Care,ASC - Domiciliary Care,E20008,19/11/2012,12416725,665.55,Alphacare,75103
Solihull MBC,Adult Social Care,OP South Spot Comm Care,ASC - Domiciliary Care,E20008,19/11/2012,12416726,803.25,Alphacare,75103
Solihull MBC,Adult Social Care,LD Spot Comm Care,ASC - Domiciliary Care,E20008,19/11/2012,12416727,474.3,Alphacare,75103
Solihull MBC,Adult Social Care,OP South Spot Comm Care,ASC - Domiciliary Care,E20008,19/11/2012,12416728,928.14,Alphacare,75103
Solihull MBC,Adult Social Care,OP South Spot Comm Care,ASC - Domiciliary Care,E20008,19/11/2012,12416729,479.25,Alphacare,75103
Solihull MBC,Adult Social Care,OP South Spot Comm Care,ASC - Domiciliary Care,E20008,19/11/2012,12416730,270,Alphacare,75103
Solihull MBC,Adult Social Care,OP South Spot Comm Care,ASC - Domiciliary Care,E20008,19/11/2012,12416731,837,Alphacare,75103
Solihull MBC,Adult Social Care,OP South Spot Comm Care,ASC - Domiciliary Care,E20008,19/11/2012,12416721,837,Alphacare,75103
Solihull MBC,Adult Social Care,OP South Spot Comm Care,ASC - Domiciliary Care,E20008,19/11/2012,12416733,1147.5,Alphacare,75103
Solihull MBC,Adult Social Care,OP South Spot Comm Care,ASC - Domiciliary Care,E20008,19/11/2012,12416734,513,Alphacare,75103
Solihull MBC,Adult Social Care,OP South Spot Comm Care,ASC - Domiciliary Care,E20008,19/11/2012,12416735,931.5,Alphacare,75103
Solihull MBC,Adult Social Care,OP South Spot Comm Care,ASC - Domiciliary Care,E20008,19/11/2012,12416736,337.5,Alphacare,75103
Solihull MBC,Adult Social Care,OP South Spot Comm Care,ASC - Domiciliary Care,E20008,19/11/2012,12416737,330.75,Alphacare,75103
Solihull MBC,Adult Social Care,OP South Spot Comm Care,ASC - Domiciliary Care,E20008,19/11/2012,12416738,418.5,Alphacare,75103
Solihull MBC,Adult Social Care,OP South Spot Comm Care,ASC - Domiciliary Care,E20008,19/11/2012,12416739,627.75,Alphacare,75103
Solihull MBC,Adult Social Care,OP South Spot Comm Care,ASC - Domiciliary Care,E20008,19/11/2012,12416740,627.75,Alphacare,75103
Solihull MBC,Adult Social Care,OP South Spot Comm Care,ASC - Domiciliary Care,E20008,19/11/2012,12416741,418.5,Alphacare,75103
Solihull MBC,Adult Social Care,LD Spot Comm Care,ASC - Domiciliary Care,E20008,19/11/2012,12416742,850.5,Alphacare,75103
Solihull MBC,Adult Social Care,OP South Spot Comm Care,ASC - Domiciliary Care,E20008,19/11/2012,12416743,1289.25,Alphacare,75103
Solihull MBC,Adult Social Care,OP South Spot Comm Care,ASC - Domiciliary Care,E20008,19/11/2012,12416744,627.75,Alphacare,75103
Solihull MBC,Adult Social Care,OP South Spot Comm Care,ASC - Domiciliary Care,E20008,19/11/2012,12416745,837,Alphacare,75103
Solihull MBC,Adult Social Care,OP South Spot Comm Care,ASC - Domiciliary Care,E20008,19/11/2012,12416746,411.75,Alphacare,75103
Solihull MBC,Adult Social Care,OP - Central Spot Comm Care,ASC - Domiciliary Care,E20008,19/11/2012,12416747,452.25,Alphacare,75103
Solihull MBC,Adult Social Care,OP South Spot Comm Care,ASC - Domiciliary Care,E20008,19/11/2012,12416748,337.5,Alphacare,75103
Solihull MBC,Adult Social Care,OP South Spot Comm Care,ASC - Domiciliary Care,E20008,19/11/2012,12416750,1039.5,Alphacare,75103
Solihull MBC,Adult Social Care,OP South Spot Comm Care,ASC - Domiciliary Care,E20008,19/11/2012,12416751,513.05,Alphacare,75103
Solihull MBC,Adult Social Care,OP South Spot Comm Care,ASC - Domiciliary Care,E20008,19/11/2012,12416752,729,Alphacare,75103
Solihull MBC,Adult Social Care,OP South Spot Comm Care,ASC - Out of hospital,E20012,19/11/2012,12416753,1030.13,Alphacare,75103
Solihull MBC,Adult Social Care,OP South Spot Comm Care,ASC - Domiciliary Care,E20008,19/11/2012,12416754,681.75,Alphacare,75103
Solihull MBC,Adult Social Care,OP South Spot Comm Care,ASC - Domiciliary Care,E20008,19/11/2012,12416755,384.75,Alphacare,75103
Solihull MBC,Adult Social Care,OP South Spot Comm Care,ASC - Domiciliary Care,E20008,19/11/2012,12416756,1306.13,Alphacare,75103
Solihull MBC,Adult Social Care,LD Spot Comm Care,ASC - Domiciliary Care,E20008,19/11/2012,12416757,310.5,Alphacare,75103
Solihull MBC,Children & Education Services,Smith's Wood,Capitation,D11001,11/10/2012,PC03910,455,Alton Towers Park,Purchase Card Supplier
Solihull MBC,Children & Education Services,Smith's Wood,Capitation,D11001,15/10/2012,PC27702,338,Alton Towers Park,Purchase Card Supplier
Solihull MBC,Children & Education Services,Smith's Wood,Capitation,D11001,19/11/2012,12416965,395,Altru Drama Ltd,1713623
Solihull MBC,Children & Education Services,Reynalds Cross,Professional Fees,D51000,30/11/2012,12448429,400,Amanda Jones,1128596
Solihull MBC,Children & Education Services,Castle Bromwich Inf,IT Equipment & Software,D32000,14/10/2012,PC93611,311.37,Amazon *MktPlce EU-UK,Purchase Card Supplier
Solihull MBC,Children & Education Services,Castle Bromwich Inf,IT Equipment & Software,D32000,14/10/2012,PC80805,310.81,Amazon *MktPlce EU-UK,Purchase Card Supplier
Solihull MBC,Children & Education Services,Castle Bromwich Inf,IT Equipment & Software,D32000,14/10/2012,PC07732,310.81,Amazon *MktPlce EU-UK,Purchase Card Supplier
Solihull MBC,Children & Education Services,Castle Bromwich Inf,Capitation,D11001,30/10/2012,PC71272,237.08,Amazon *MktPlce EU-UK,Purchase Card Supplier
Solihull MBC,Children & Education Services,Langley J&I,Capitation,D11001,25/10/2012,PC38244,227.13,Amazon *MktPlce EU-UK,Purchase Card Supplier
Solihull MBC,Children & Education Services,Tidbury Green J&I,Purchase Card Statement Summary,D11002,18/10/2012,PC14972,389.02,Amazon *MktPlce EU-UK,Purchase Card Supplier
Solihull MBC,Children & Education Services,Hazel Oak,Furniture & Equipment,D10000,15/10/2012,PC93402,216.96,Amazon *MktPlce EU-UK,Purchase Card Supplier
Solihull MBC,Children & Education Services,Hazel Oak,Furniture & Equipment,D10000,18/10/2012,PC59607,265.9,Amazon *MktPlce EU-UK,Purchase Card Supplier
Solihull MBC,Adult Social Care,25 Stapleton Drive,Catering Provisions,D20000,18/10/2012,PC42613,224.96,Amazon *MktPlce EU-UK,Purchase Card Supplier
Solihull MBC,Housing Revenue Account,Purchase Card Acquisitions,General Debtors,R20000,19/10/2012,PC30861,439.95,Amazon *MktPlce EU-UK,Purchase Card Supplier
Solihull MBC,Children & Education Services,Catering Management,General Office Expenses,D42000,04/10/2012,PC58443,299.95,Amazon *MktPlce EU-UK,Purchase Card Supplier
Solihull MBC,Children & Education Services,Catering Management,General Office Expenses,D42000,31/10/2012,PC37950,399.6,Amazon *MktPlce EU-UK,Purchase Card Supplier
Solihull MBC,Children & Education Services,Marston Green Jnr,Capitation,D11001,04/10/2012,PC63494,243.4,Amazon EU,Purchase Card Supplier
Solihull MBC,Children & Education Services,Ulverley J&I,Purchase Card Statement Summary,D11002,17/10/2012,PC29285,1499.85,Amazon EU,Purchase Card Supplier
Solihull MBC,Adult Social Care,PD Spot Comm Care,ASC - Nursing Care Permanent,E20005,05/11/2012,12384029,4979.09,Amberley Court Nursing Home,126185
Solihull MBC,Adult Social Care,OP - North Spot Comm Care,ASC - Nursing Care Permanent,E20005,05/11/2012,12384030,1367.9,Amerind Grove Nursing Home,2209688
Solihull MBC,Cultural & Related Services,Arts Complex Hirings,Other Fees,D52000,29/11/2012,12441809,800,Andrew Cullum,1438614
Solihull MBC,Cultural & Related Services,Active women,Professional Fees,D51000,08/11/2012,12390764,860,Andrew Root,2220693
Solihull MBC,Adult Social Care,PD Spot Comm Care,ASC - Domiciliary Care,E20008,12/11/2012,12393450,1143.87,Angels Healthcare Ltd,687666
Solihull MBC,Adult Social Care,PD Spot Comm Care,ASC - Domiciliary Care,E20008,12/11/2012,12393451,917.61,Angels Healthcare Ltd,687666
Solihull MBC,Adult Social Care,OP - North Spot Comm Care,ASC - Domiciliary Care,E20008,12/11/2012,12393493,820.2,Angels Healthcare Ltd,687666
Solihull MBC,Adult Social Care,OP - North Spot Comm Care,ASC - Domiciliary Care,E20008,12/11/2012,12393469,389.67,Angels Healthcare Ltd,687666
Solihull MBC,Adult Social Care,OP - North Spot Comm Care,ASC - Domiciliary Care,E20008,12/11/2012,12393506,1558.68,Angels Healthcare Ltd,687666
Solihull MBC,Adult Social Care,OP - North Spot Comm Care,ASC - Domiciliary Care,E20008,12/11/2012,12393497,584.51,Angels Healthcare Ltd,687666
Solihull MBC,Adult Social Care,OP - North Spot Comm Care,ASC - Domiciliary Care,E20008,12/11/2012,12393480,842.19,Angels Healthcare Ltd,687666
Solihull MBC,Adult Social Care,OP - North Spot Comm Care,ASC - Domiciliary Care,E20008,12/11/2012,12393505,1558.68,Angels Healthcare Ltd,687666
Solihull MBC,Adult Social Care,OP - North Spot Comm Care,ASC - Domiciliary Care,E20008,12/11/2012,12393481,1558.68,Angels Healthcare Ltd,687666
Solihull MBC,Adult Social Care,OP - North Spot Comm Care,ASC - Domiciliary Care,E20008,12/11/2012,12393479,974.18,Angels Healthcare Ltd,687666
Solihull MBC,Adult Social Care,OP - North Spot Comm Care,ASC - Domiciliary Care,E20008,12/11/2012,12393473,678.78,Angels Healthcare Ltd,687666
Solihull MBC,Adult Social Care,OP - North Spot Comm Care,ASC - Domiciliary Care,E20008,12/11/2012,12393464,710.21,Angels Healthcare Ltd,687666
Solihull MBC,Adult Social Care,OP - North Spot Comm Care,ASC - Domiciliary Care,E20008,12/11/2012,12393476,923.9,Angels Healthcare Ltd,687666
Solihull MBC,Adult Social Care,OP - North Spot Comm Care,ASC - Domiciliary Care,E20008,12/11/2012,12393512,1370.13,Angels Healthcare Ltd,687666
Solihull MBC,Adult Social Care,OP - North Spot Comm Care,ASC - Domiciliary Care,E20008,12/11/2012,12393500,314.25,Angels Healthcare Ltd,687666
Solihull MBC,Adult Social Care,OP - North Spot Comm Care,ASC - Domiciliary Care,E20008,12/11/2012,12393472,584.51,Angels Healthcare Ltd,687666
Solihull MBC,Adult Social Care,OP - North Spot Comm Care,ASC - Domiciliary Care,E20008,12/11/2012,12393511,314.25,Angels Healthcare Ltd,687666
Solihull MBC,Adult Social Care,OP - North Spot Comm Care,ASC - Domiciliary Care,E20008,12/11/2012,12393484,1169.01,Angels Healthcare Ltd,687666
Solihull MBC,Adult Social Care,OP - North Spot Comm Care,ASC - Domiciliary Care,E20008,12/11/2012,12393495,301.68,Angels Healthcare Ltd,687666
Solihull MBC,Adult Social Care,OP - North Spot Comm Care,ASC - Domiciliary Care,E20008,12/11/2012,12393475,389.67,Angels Healthcare Ltd,687666
Solihull MBC,Adult Social Care,OP - North Spot Comm Care,ASC - Domiciliary Care,E20008,12/11/2012,12393461,842.19,Angels Healthcare Ltd,687666
Solihull MBC,Adult Social Care,OP - North Spot Comm Care,ASC - Domiciliary Care,E20008,12/11/2012,12393471,263.97,Angels Healthcare Ltd,687666
Solihull MBC,Adult Social Care,OP - North Spot Comm Care,ASC - Domiciliary Care,E20008,12/11/2012,12393457,1106.16,Angels Healthcare Ltd,687666
Solihull MBC,Adult Social Care,OP - North Spot Comm Care,ASC - Domiciliary Care,E20008,12/11/2012,12393501,1696.95,Angels Healthcare Ltd,687666
Solihull MBC,Adult Social Care,OP - North Spot Comm Care,ASC - Domiciliary Care,E20008,12/11/2012,12393474,779.34,Angels Healthcare Ltd,687666
Solihull MBC,Adult Social Care,OP - North Spot Comm Care,ASC - Domiciliary Care,E20008,12/11/2012,12393507,1181.58,Angels Healthcare Ltd,687666
Solihull MBC,Adult Social Care,OP - North Spot Comm Care,ASC - Domiciliary Care,E20008,12/11/2012,12393518,1558.68,Angels Healthcare Ltd,687666
Solihull MBC,Adult Social Care,OP - North Spot Comm Care,ASC - Domiciliary Care,E20008,12/11/2012,12393477,1558.68,Angels Healthcare Ltd,687666
Solihull MBC,Adult Social Care,OP - North Spot Comm Care,ASC - Domiciliary Care,E20008,12/11/2012,12393502,1458.12,Angels Healthcare Ltd,687666
Solihull MBC,Adult Social Care,OP - North Spot Comm Care,ASC - Domiciliary Care,E20008,12/11/2012,12393465,1502.12,Angels Healthcare Ltd,687666
Solihull MBC,Adult Social Care,OP - North Spot Comm Care,ASC - Out of hospital,E20012,12/11/2012,12393503,584.51,Angels Healthcare Ltd,687666
Solihull MBC,Adult Social Care,OP - North Spot Comm Care,ASC - Domiciliary Care,E20008,12/11/2012,12393468,540.51,Angels Healthcare Ltd,687666
Solihull MBC,Adult Social Care,OP - North Spot Comm Care,ASC - Domiciliary Care,E20008,12/11/2012,12393456,345.68,Angels Healthcare Ltd,687666
Solihull MBC,Adult Social Care,OP - North Spot Comm Care,ASC - Domiciliary Care,E20008,12/11/2012,12393466,386.53,Angels Healthcare Ltd,687666
Solihull MBC,Adult Social Care,OP - North Spot Comm Care,ASC - Domiciliary Care,E20008,12/11/2012,12393488,487.09,Angels Healthcare Ltd,687666
Solihull MBC,Adult Social Care,PD Spot Comm Care,ASC - Domiciliary Care,E20008,12/11/2012,12393489,578.22,Angels Healthcare Ltd,687666
Solihull MBC,Adult Social Care,OP - North Spot Comm Care,ASC - Domiciliary Care,E20008,12/11/2012,12393459,289.11,Angels Healthcare Ltd,687666
Solihull MBC,Adult Social Care,OP - North Spot Comm Care,ASC - Domiciliary Care,E20008,12/11/2012,12393478,251.4,Angels Healthcare Ltd,687666
Solihull MBC,Adult Social Care,OP - North Spot Comm Care,ASC - Domiciliary Care,E20008,12/11/2012,12393487,276.54,Angels Healthcare Ltd,687666
Solihull MBC,Adult Social Care,OP - North Spot Comm Care,ASC - Domiciliary Care,E20008,12/11/2012,12393499,502.8,Angels Healthcare Ltd,687666
Solihull MBC,Adult Social Care,OP - North Spot Comm Care,ASC - Out of hospital,E20012,12/11/2012,12393514,412.5,Angels Healthcare Ltd,687666
Solihull MBC,Children & Education Services,Dorridge Inf,Furniture & Equipment,D10000,20/11/2012,12425510,976,Ani Ltd,2593690
Solihull MBC,Environmental and Regulatory Services,Waste Collection,Other Contracted Services,E29000,19/11/2012,12416867,245,Animal Funeral Services - Hereford,11520
Solihull MBC,Children & Education Services,Lady K Levesons J&I,Professional Fees,D51000,27/11/2012,12437256,360,Anthony Kilroy,1297598
Solihull MBC,Adult Social Care,Bacons End,Catering Provisions,D20000,05/11/2012,12384321,289.39,Apetito Ltd,59270
Solihull MBC,Adult Social Care,OP South Spot Comm Care,ASC - Day Care,E20010,08/11/2012,12389802,315,Apna Ghar(1995) Ltd,6039
Solihull MBC,Adult Social Care,OP - Central Spot Comm Care,ASC - Day Care,E20010,08/11/2012,12389803,490,Apna Ghar(1995) Ltd,6039
Solihull MBC,Adult Social Care,PD Spot Comm Care,ASC - Day Care,E20010,08/11/2012,12389807,280,Apna Ghar(1995) Ltd,6039
Solihull MBC,Adult Social Care,OP - Central Spot Comm Care,ASC - Day Care,E20010,08/11/2012,12389810,315,Apna Ghar(1995) Ltd,6039
Solihull MBC,Children & Education Services,Inspectors,Training,A32000,15/11/2012,12410542,500,App-Assess,286134
Solihull MBC,Children & Education Services,UASC 18+,Grant & Subscription (SCITT),D92000,15/11/2012,12410588,416.67,Appliance World,249913
Solihull MBC,Children & Education Services,UASC 18+,Grant & Subscription (SCITT),D92000,28/11/2012,12441579,30,Appliance World,249913
Solihull MBC,Children & Education Services,UASC 18+,Grant & Subscription (SCITT),D92000,28/11/2012,12441579,391.67,Appliance World,249913
Solihull MBC,Children & Education Services,UASC 16+,Grant & Subscription (SCITT),D92000,28/11/2012,12441580,100,Appliance World,249913
Solihull MBC,Children & Education Services,UASC 16+,Grant & Subscription (SCITT),D92000,28/11/2012,12441580,458.34,Appliance World,249913
Solihull MBC,Environmental and Regulatory Services,Environmental Group,Training,A32000,09/11/2012,12391142,450,Apse,70899
Solihull MBC,Children & Education Services,Haslucks Green Jnr,Health & Safety,B43003,29/11/2012,12447100,640.2,Aquaid,71388
Solihull MBC,Children & Education Services,St John The Baptist J&I,Health & Safety,B43003,27/11/2012,12439090,396.8,Aquaid,71388
Solihull MBC,Children & Education Services,Valley Inf,Health & Safety,B43003,07/11/2012,12388548,283.4,Aquaid,71388
Solihull MBC,Children & Education Services,Castle Bromwich Inf,Health & Safety,B43003,09/11/2012,12391749,910.2,Aquaid,71388
Solihull MBC,Children & Education Services,Smith's Wood,Meetings & Other Expenses,D61002,12/11/2012,12392552,457.95,Aquaid,71388
Solihull MBC,Adult Social Care,1 Truro Walk,Rents For Premises,B22000,22/11/2012,12433509,-460,Ardenfield Development Comp. Ltd,687670
Solihull MBC,Adult Social Care,1 Truro Walk,Rents For Premises,B22000,22/11/2012,12433509,460,Ardenfield Development Comp. Ltd,687670
Solihull MBC,Adult Social Care,1 Truro Walk,Rents For Premises,B22000,22/11/2012,12433509,460,Ardenfield Development Comp. Ltd,687670
Solihull MBC,Adult Social Care,1 Truro Walk,Rents For Premises,B22000,02/11/2012,12380518,460,Ardenfield Development Comp. Ltd,687670
Solihull MBC,Adult Social Care,1 Truro Walk,Rents For Premises,B22000,22/11/2012,12433512,460,Ardenfield Development Comp. Ltd,687670
Solihull MBC,Adult Social Care,OP South Spot Comm Care,ASC - Nursing Care Permanent,E20005,05/11/2012,12384031,3058.19,Ardenlea Court,96816
Solihull MBC,Adult Social Care,OP - Central Spot Comm Care,ASC - Nursing Care Permanent,E20005,05/11/2012,12384032,2455.24,Ardenlea Court,96816
Solihull MBC,Adult Social Care,PD Spot Comm Care,ASC - Nursing Care Permanent,E20005,05/11/2012,12384034,3369.3,Ardenlea Grove,688097
Solihull MBC,Adult Social Care,OP - Sol Hos Spot Comm Care,ASC - Nursing Care Permanent,E20005,05/11/2012,12384035,1307.05,Ardenlea Grove,688097
Solihull MBC,Adult Social Care,OP - North Spot Comm Care,ASC - Nursing Care Permanent,E20005,05/11/2012,12384037,1750.13,Ardenlea Grove,688097
Solihull MBC,Adult Social Care,OP - Central Spot Comm Care,ASC - Nursing Care Permanent,E20005,05/11/2012,12384040,2762.76,Ardenlea Grove,688097
Solihull MBC,Adult Social Care,OP - Central Spot Comm Care,ASC - Nursing Care Permanent,E20005,05/11/2012,12384033,1405.94,Ardenlea Grove,688097
Solihull MBC,Adult Social Care,OP South Spot Comm Care,ASC - Nursing Care Permanent,E20005,05/11/2012,12384039,1574.4,Ardenlea Grove,688097
Solihull MBC,Adult Social Care,OP - Central Spot Comm Care,ASC - Nursing Care Permanent,E20005,05/11/2012,12384038,1520.42,Ardenlea Grove,688097
Solihull MBC,Adult Social Care,OP - North Spot Comm Care,ASC - Nursing Care Permanent,E20005,05/11/2012,12384036,1550.66,Ardenlea Grove,688097
Solihull MBC,Children & Education Services,Ulverley J&I,Purchase Card Statement Summary,D11002,23/10/2012,PC07606,408.93,Argos Direct,Purchase Card Supplier
Solihull MBC,Children & Education Services,UASC 18+,Grant & Subscription (SCITT),D92000,17/10/2012,PC17912,208.94,Argos Direct,Purchase Card Supplier
Solihull MBC,Adult Social Care,1 Coppice Close,Furniture & Equipment,D10000,24/10/2012,PC75657,238.94,Argos Ltd,Purchase Card Supplier
Solihull MBC,Children & Education Services,Monkspath J&I,Capitation,D11001,17/10/2012,PC91671,208.93,Argos Retail Group,Purchase Card Supplier
Solihull MBC,Children & Education Services,Fostering Team,Furniture & Equipment,D10000,24/10/2012,PC89945,258.94,Argos Retail Group,Purchase Card Supplier
Solihull MBC,Children & Education Services,16+ Childrens Placements,Clients Expenses,D62000,10/10/2012,PC00716,235.89,Argos Retail Group,Purchase Card Supplier
Solihull MBC,Children & Education Services,16+ Childrens Placements,Clients Expenses,D62000,23/10/2012,PC98004,388.93,Argos Retail Group,Purchase Card Supplier
Solihull MBC,Children & Education Services,16+ Childrens Placements,Clients Expenses,D62000,22/10/2012,PC49249,236.99,Argos Retail Group,Purchase Card Supplier
Solihull MBC,Environmental and Regulatory Services,Town Centres and Events,Other Fees,D52000,21/11/2012,12432868,470,Aries Entertainment Ltd,221331
Solihull MBC,Children & Education Services,LDC Stores,Cleaning,B40000,06/11/2012,12383120,1300.57,Arrow County Supplies,6340
Solihull MBC,Children & Education Services,LDC Stores,Cleaning,B40000,08/11/2012,12390737,737.9,Arrow County Supplies,6340
Solihull MBC,Children & Education Services,LDC Stores,Cleaning,B40000,08/11/2012,12390739,325.2,Arrow County Supplies,6340
Solihull MBC,Children & Education Services,LDC Stores,Cleaning,B40000,20/11/2012,12427018,2028.7,Arrow County Supplies,6340
Solihull MBC,Children & Education Services,LDC Stores,Cleaning,B40000,20/11/2012,12427052,696.88,Arrow County Supplies,6340
Solihull MBC,Children & Education Services,LDC Stores,Cleaning,B40000,20/11/2012,12427064,868.56,Arrow County Supplies,6340
Solihull MBC,Children & Education Services,LDC Stores,Cleaning,B40000,29/11/2012,12441688,2386.92,Arrow County Supplies,6340
Solihull MBC,Children & Education Services,LDC Stores,Cleaning,B40000,29/11/2012,12441689,608,Arrow County Supplies,6340
Solihull MBC,Children & Education Services,Our Lady Compassion  J&I,Visits & Pupil Activities,D52002,05/11/2012,12382825,335,Arty Fact Theatre Co Ltd,189478
Solihull MBC,Adult Social Care,OP - Central Spot Comm Care,ASC - Residential Care Permanent,E20003,05/11/2012,12383955,1117.24,Ashdale Care Homes Ltd,91216
Solihull MBC,Environmental and Regulatory Services,Bereavement Services,Materials,D11000,29/11/2012,12441818,165,Ashdown Supplies,23205
Solihull MBC,Environmental and Regulatory Services,Bereavement Services,Materials,D11000,29/11/2012,12441818,165,Ashdown Supplies,23205
Solihull MBC,Environmental and Regulatory Services,Bereavement Services,Materials,D11000,29/11/2012,12441818,15,Ashdown Supplies,23205
Solihull MBC,Children & Education Services,Section 17 Smiths Wood,Clients Expenses,D62000,15/11/2012,12407711,303.4,Ashleigh Nursery School,2633831
Solihull MBC,Adult Social Care,OP - Central Spot Comm Care,ASC - Nursing Care Permanent,E20005,01/11/2012,12374963,1385.4,Ashmere Derbyshire,688108
Solihull MBC,Adult Social Care,OP - Central Spot Comm Care,ASC - Nursing Care Permanent,E20005,01/11/2012,12374965,-2816.98,Ashmere Derbyshire,688108
Solihull MBC,Adult Social Care,PD Spot Comm Care,ASC - Residential Care Permanent,E20003,12/11/2012,12393709,4497.17,Ashmill Res Care Homes Ltd,96775
Solihull MBC,Adult Social Care,SP - Black & Ethnic Minority,Block Contracts,E21001,27/11/2012,12437198,2958.54,Ashram Housing Association Ltd,65191
Solihull MBC,Cultural & Related Services,Libraries Resources Fund,Materials,D11000,07/11/2012,12388462,340.17,Askews Library Services Ltd,6562
Solihull MBC,Cultural & Related Services,Libraries Resources Fund,Materials,D11000,07/11/2012,12388462,454.16,Askews Library Services Ltd,6562
Solihull MBC,Cultural & Related Services,Libraries Resources Fund,Materials,D11000,07/11/2012,12388462,323.87,Askews Library Services Ltd,6562
Solihull MBC,Cultural & Related Services,Libraries Resources Fund,Materials,D11000,07/11/2012,12388462,698.97,Askews Library Services Ltd,6562
Solihull MBC,Cultural & Related Services,Libraries Resources Fund,Materials,D11000,07/11/2012,12388462,417.18,Askews Library Services Ltd,6562
Solihull MBC,Cultural & Related Services,Libraries Resources Fund,Materials,D11000,07/11/2012,12388462,1.09,Askews Library Services Ltd,6562
Solihull MBC,Cultural & Related Services,Libraries Resources Fund,Materials,D11000,13/11/2012,12400454,15.75,Askews Library Services Ltd,6562
Solihull MBC,Cultural & Related Services,Libraries Resources Fund,Materials,D11000,13/11/2012,12400454,920.92,Askews Library Services Ltd,6562
Solihull MBC,Cultural & Related Services,Libraries Resources Fund,Materials,D11000,13/11/2012,12400454,360.56,Askews Library Services Ltd,6562
Solihull MBC,Cultural & Related Services,Libraries Resources Fund,Materials,D11000,13/11/2012,12400454,834.12,Askews Library Services Ltd,6562
Solihull MBC,Cultural & Related Services,Libraries Resources Fund,Materials,D11000,13/11/2012,12400454,196.88,Askews Library Services Ltd,6562
Solihull MBC,Cultural & Related Services,Libraries Resources Fund,Materials,D11000,13/11/2012,12400453,369.59,Askews Library Services Ltd,6562
Solihull MBC,Cultural & Related Services,Libraries Resources Fund,Materials,D11000,20/11/2012,12427133,194.53,Askews Library Services Ltd,6562
Solihull MBC,Cultural & Related Services,Libraries Resources Fund,Materials,D11000,20/11/2012,12427133,14.89,Askews Library Services Ltd,6562
Solihull MBC,Cultural & Related Services,Libraries Resources Fund,Materials,D11000,20/11/2012,12427133,5.87,Askews Library Services Ltd,6562
Solihull MBC,Cultural & Related Services,Libraries Resources Fund,Materials,D11000,20/11/2012,12427133,578.69,Askews Library Services Ltd,6562
Solihull MBC,Cultural & Related Services,Libraries Resources Fund,Materials,D11000,20/11/2012,12427133,775.88,Askews Library Services Ltd,6562
Solihull MBC,Cultural & Related Services,Libraries Resources Fund,Materials,D11000,20/11/2012,12427133,360.3,Askews Library Services Ltd,6562
Solihull MBC,Cultural & Related Services,Libraries Resources Fund,Materials,D11000,28/11/2012,12440506,996.55,Askews Library Services Ltd,6562
Solihull MBC,Cultural & Related Services,Libraries Resources Fund,Materials,D11000,28/11/2012,12440506,54,Askews Library Services Ltd,6562
Solihull MBC,Cultural & Related Services,Libraries Resources Fund,Materials,D11000,28/11/2012,12440506,624.95,Askews Library Services Ltd,6562
Solihull MBC,Cultural & Related Services,Libraries Resources Fund,Materials,D11000,28/11/2012,12440506,629.1,Askews Library Services Ltd,6562
Solihull MBC,Cultural & Related Services,Libraries Resources Fund,Materials,D11000,28/11/2012,12440506,1225.74,Askews Library Services Ltd,6562
Solihull MBC,Cultural & Related Services,Libraries Resources Fund,Materials,D11000,28/11/2012,12440506,-996.55,Askews Library Services Ltd,6562
Solihull MBC,Cultural & Related Services,Libraries Resources Fund,Materials,D11000,28/11/2012,12440506,996.55,Askews Library Services Ltd,6562
Solihull MBC,Cultural & Related Services,Libraries Resources Fund,Materials,D11000,28/11/2012,12440506,31.71,Askews Library Services Ltd,6562
Solihull MBC,Children & Education Services,Smith's Wood,Agency Staff: Teachers,A35001,27/11/2012,12438902,587.5,Aspire People,190241
Solihull MBC,Children & Education Services,Smith's Wood,Agency Staff: Teachers,A35001,30/11/2012,12447516,787.25,Aspire People,190241
Solihull MBC,Children & Education Services,Mill Lodge J&I,Agency Staff: Classroom Support,A35002,14/11/2012,12405428,362.5,Aspire People Ltd,186698
Solihull MBC,Children & Education Services,Chapel Fields Jnr,Agency Staff: Teachers,A35001,15/11/2012,12410648,360,Aspire People Ltd,186698
Solihull MBC,Children & Education Services,Chapel Fields Jnr,Agency Staff: Teachers,A35001,15/11/2012,12410651,535,Aspire People Ltd,186698
Solihull MBC,Children & Education Services,Mill Lodge J&I,Agency Staff: Teachers,A35001,28/11/2012,12441531,303,Aspire People Ltd,186698
Solihull MBC,Children & Education Services,2Yr Old Free E Learn/Care,Grant & Subscription (SCITT),D92000,19/11/2012,12421592,679,Asquith Court Nursery,52772
Solihull MBC,Children & Education Services,Grants For Private Sector,Grant & Subscription (SCITT),D92000,19/11/2012,12421591,360.15,Asquith Court Nursery,52772
Solihull MBC,Children & Education Services,Lyndon,Examination Fees,D52001,20/11/2012,12427428,2830.75,Assessment & Qualifications Alliance,34231
Solihull MBC,Children & Education Services,Summerfield Centre,Other Fees,D52000,08/11/2012,12390929,274.5,Assessment & Qualifications Alliance,34231
Solihull MBC,Children & Education Services,St Peter's,Examination Fees,D52001,27/11/2012,12436652,12366.65,Assessment & Qualifications Alliance,34231
Solihull MBC,Children & Education Services,Smith's Wood,Examination Fees,D52001,28/11/2012,12441615,3614.15,Assessment & Qualifications Alliance,34231
Solihull MBC,Children & Education Services,St Peter's,Examination Fees,D52001,06/11/2012,12383026,-1032.55,Assessment & Qualifications Alliance,34231
Solihull MBC,Children & Education Services,Sports Co-Ordinators Prog,Materials,D11000,29/11/2012,12441699,1755,Association For Physical Education,283242
Solihull MBC,Children & Education Services,Woodlands Solihull Inf,Professional Fees,D51000,08/11/2012,12390702,250,Association Of Teachers & Lecturers,49629
Solihull MBC,Central Services to the Public,Emergency Planning,Grant & Subscription (SCITT),D92000,19/11/2012,12416967,380,AST Connections,236691
Solihull MBC,Children & Education Services,Castle Bromwich Inf,Photocopying,D40001,09/11/2012,12391763,309.24,A-Stat Office Technology Ltd,121926
Solihull MBC,Adult Social Care,PD Spot Comm Care,ASC - Domiciliary Care,E20008,22/11/2012,12432959,1885.45,Athena Care Limited,124891
Solihull MBC,Children & Education Services,Our Lady Wayside J&I,Visits & Pupil Activities,D52002,27/11/2012,12436730,650,Attain Travel,82668
Solihull MBC,Children & Education Services,Yorkswood J&I,Visits & Pupil Activities,D52002,22/11/2012,12433363,290,Attain Travel Ltd,127011
Solihull MBC,Central Services to the Public,Income Team,Professional Fees,D51000,19/11/2012,12422441,5215,Audit Commission,6806
Solihull MBC,Housing Revenue Account,HRA Client Mgt A/C,Professional Fees,D51000,19/11/2012,12422441,4042.5,Audit Commission,6806
Solihull MBC,Children & Education Services,Strategy And Regulation,Professional Fees,D51000,19/11/2012,12422441,765,Audit Commission,6806
Solihull MBC,Planning & Development Services,Craig Croft Village Centre,Consultants,Y31000,22/11/2012,12433355,333,Austin-Smith:Lord,1943614
Solihull MBC,Adult Social Care,LD Spot Comm Care,ASC - Residential Care Permanent,E20003,05/11/2012,12383967,6290.83,Autism West Midlands,80510
Solihull MBC,Adult Social Care,LD Spot Comm Care,ASC - Residential Care Permanent,E20003,05/11/2012,12383968,11711.49,Autism West Midlands,80510
Solihull MBC,Adult Social Care,LD Spot Comm Care,ASC - Residential Care Permanent,E20003,05/11/2012,12383969,5798.55,Autism West Midlands,80510
Solihull MBC,Adult Social Care,LD Spot Comm Care,ASC - Residential Care Permanent,E20003,05/11/2012,12383970,4271.8,Autism West Midlands,80510
Solihull MBC,Adult Social Care,LD Spot Comm Care,ASC - Residential Care Permanent,E20003,05/11/2012,12383971,8061.55,Autism West Midlands,80510
Solihull MBC,Adult Social Care,LD Spot Comm Care,ASC - Domiciliary Care,E20008,12/11/2012,12393447,2361.87,Autism West Midlands,80510
Solihull MBC,Adult Social Care,LD Spot Comm Care,ASC - Domiciliary Care,E20008,12/11/2012,12393448,1452.33,Autism West Midlands,80510
Solihull MBC,Adult Social Care,LD Spot Comm Care,ASC - Domiciliary Care,E20008,12/11/2012,12393449,3183.39,Autism West Midlands,80510
Solihull MBC,Adult Social Care,ASC - Joint Stores,Transport-Contract Hire,C30000,21/11/2012,12430576,5405.55,Automotive Leasing (Orders),688119
Solihull MBC,Children & Education Services,Shirley Heath Jnr,IT Equipment & Software,D32000,19/11/2012,12421571,587.99,AV Parts Master,124433
Solihull MBC,Children & Education Services,Monkspath J&I,Capitation,D11001,20/11/2012,12425432,295,AV Parts Master,124433
Solihull MBC,Children & Education Services,Monkspath J&I,Capitation,D11001,28/11/2012,12440422,317,AV Parts Master,124433
Solihull MBC,Adult Social Care,OP - North Spot Comm Care,ASC - Residential Care Permanent,E20003,05/11/2012,12383963,805.38,Avery Healthcare Group,1464610
Solihull MBC,Adult Social Care,OP - North Spot Comm Care,ASC - Residential Care Permanent,E20003,05/11/2012,12383972,1156.88,Avery Homes Peterborough Ltd,2376686
Solihull MBC,Adult Social Care,OP South Spot Comm Care,ASC - Residential Care Permanent,E20003,05/11/2012,12383973,1251.07,Avery Homes Wolverhampton,2386687
Solihull MBC,Children & Education Services,Lyndon,Meetings & Other Expenses,D61002,27/11/2012,12439143,511.31,B & H Images,103210
Solihull MBC,Cultural & Related Services,Arts Complex Hirings,Other Fees,D52000,29/11/2012,12441807,2410,B Hipkiss T/A Barrington Music Publishing,225799
Solihull MBC,Highways & Transport Services,North Solihull Cycling Project,Furniture & Equipment,Y13000,26/11/2012,12436621,27169,BAE Systems Detica,2318687
Solihull MBC,Children & Education Services,St Mary & Margaret J&I,Building Maint Day To Day,B31001,06/11/2012,12383116,1260,Baker Flooring Ltd,232934
Solihull MBC,Highways & Transport Services,School Crossing Patrols,Clothing & Uniforms,D91000,15/11/2012,12410541,250,Baker Ward Ltd,235528
Solihull MBC,Children & Education Services,Excellence In Com Revenue,Repair & Maintn Of Buildings,B31000,21/11/2012,12432800,1430.52,Bam Fm Ltd,228281
Solihull MBC,Highways & Transport Services,Places Directorate,Professional Fees,D51000,23/11/2012,12434459,5600,Barbara Parkinson,2402689
Solihull MBC,Highways & Transport Services,Streetcare-Cleanse/Ground,Maintenance Of Grounds,B30000,20/11/2012,12427153,-3204,Barcham Trees PLC,23206
Solihull MBC,Highways & Transport Services,Streetcare-Cleanse/Ground,Maintenance Of Grounds,B30000,20/11/2012,12427153,122.4,Barcham Trees PLC,23206
Solihull MBC,Highways & Transport Services,Streetcare-Cleanse/Ground,Maintenance Of Grounds,B30000,20/11/2012,12427153,3081.6,Barcham Trees PLC,23206
Solihull MBC,Highways & Transport Services,Streetcare-Cleanse/Ground,Maintenance Of Grounds,B30000,20/11/2012,12427153,3204,Barcham Trees PLC,23206
Solihull MBC,Adult Social Care,OP South Spot Comm Care,ASC - Nursing Care Respite,E20004,05/11/2012,12384006,334.87,Barchester Healthcare Homes Ltd,102300
Solihull MBC,Adult Social Care,OP South Spot Comm Care,ASC - Residential Care Respite,E20002,05/11/2012,12384007,293.01,Barchester Healthcare Homes Ltd,102300
Solihull MBC,Adult Social Care,LD Spot Comm Care,ASC - Residential Care Permanent,E20003,05/11/2012,12384009,4892.68,Barchester Healthcare Homes Ltd,102300
Solihull MBC,Cultural & Related Services,Arts Complex Hirings,Other Fees,D52000,12/11/2012,,13.28,Barclays,Direct Debit Payment
Solihull MBC,Cultural & Related Services,Arts Complex Hirings,Other Fees,D52000,12/11/2012,,25,Barclays,Direct Debit Payment
Solihull MBC,Central Services to the Public,Income Team,Other Fees,D52000,12/11/2012,,"6,158.01",Barclays,Direct Debit Payment
Solihull MBC,Central Services to the Public,Income Team,Other Fees,D52000,12/11/2012,,9.22,Barclays,Direct Debit Payment
Solihull MBC,Central Services to the Public,Income Team,Other Fees,D52000,12/11/2012,,36,Barclays,Direct Debit Payment
Solihull MBC,Cultural & Related Services,Arts Complex Hirings,Other Fees,D52000,12/11/2012,,281.35,Barclays,Direct Debit Payment
Solihull MBC,Cultural & Related Services,Arts Complex Hirings,Other Fees,D52000,12/11/2012,,68.14,Barclays,Direct Debit Payment
Solihull MBC,Cultural & Related Services,Arts Complex Hirings,Other Fees,D52000,12/11/2012,,813.58,Barclays,Direct Debit Payment
Solihull MBC,Cultural & Related Services,Arts Complex Hirings,Other Fees,D52000,12/11/2012,,2.39,Barclays,Direct Debit Payment
Solihull MBC,Cultural & Related Services,Arts Complex Hirings,Other Fees,D52000,12/11/2012,,30,Barclays,Direct Debit Payment
Solihull MBC,Housing Revenue Account,HRA Client Mgt A/C,Payment Charges,D52702,12/11/2012,,533.73,Barclays,Direct Debit Payment
Solihull MBC,Housing Revenue Account,HRA Client Mgt A/C,Payment Charges,D52702,12/11/2012,,0.15,Barclays,Direct Debit Payment
Solihull MBC,Cultural & Related Services,Theatre Bar,Other Fees,D52000,12/11/2012,,51.84,Barclays,Direct Debit Payment
Solihull MBC,Cultural & Related Services,Theatre Bar,Other Fees,D52000,12/11/2012,,25,Barclays,Direct Debit Payment
Solihull MBC,Children & Education Services,Int. Fostering CIC,Other Contracted Services,E29000,01/11/2012,12378453,12920,Barford Care,165519
Solihull MBC,Children & Education Services,Int. Fostering CIC,External Fostering,E29006,02/11/2012,12380458,3985.71,Barnardos Midlands,121075
Solihull MBC,Children & Education Services,Int. Fostering CIC,External Fostering,E29006,09/11/2012,12391317,3835.5,Barnardos Midlands,121075
Solihull MBC,Children & Education Services,Childrens Centres,Other Contracted Services,E29000,19/11/2012,12417051,42324.52,Barnardos Midlands,121075
Solihull MBC,Planning & Development Services,Building Control Holding Account,Professional Fees,D51000,27/11/2012,12437124,27.34,Barneveld Consultants,218451
Solihull MBC,Planning & Development Services,Building Control Holding Account,Professional Fees,D51000,27/11/2012,12437124,1230,Barneveld Consultants,218451
Solihull MBC,Planning & Development Services,Building Control Holding Account,Professional Fees,D51000,27/11/2012,12437124,1476,Barneveld Consultants,218451
Solihull MBC,Planning & Development Services,Building Control Holding Account,Professional Fees,D51000,27/11/2012,12437124,-1476,Barneveld Consultants,218451
Solihull MBC,Central Services to the Public,Legal Services,Other Fees,D52000,08/11/2012,12390772,32880,Barry Berlin,205619
Solihull MBC,Central Services to the Public,Police Commiss Elections,Room Hire/ Premises Hire,D95000,27/11/2012,12439031,300,Barston Memorial Institute,17047
Solihull MBC,Environmental and Regulatory Services,Town Centres and Events,Furniture & Equipment,D10000,26/11/2012,12436612,480,Beaver 84 Ltd,7894
Solihull MBC,Adult Social Care,OP South Spot Comm Care,ASC - Residential Care Permanent,E20003,05/11/2012,12384011,967.82,Beechcroft Residential Home,155078
Solihull MBC,Children & Education Services,Grants For Private Sector,Grant & Subscription (SCITT),D92000,01/11/2012,12378474,2521.05,Beechwood Childcare,7960
Solihull MBC,Children & Education Services,Grants For Private Sector,Grant & Subscription (SCITT),D92000,01/11/2012,12378476,2521.05,Beechwood Childcare,7960
Solihull MBC,Children & Education Services,2Yr Old Free E Learn/Care,Grant & Subscription (SCITT),D92000,01/11/2012,12378475,679,Beechwood Childcare,7960
Solihull MBC,Adult Social Care,SP - Old People Support Needs,Other Contracted Services,E29000,27/11/2012,12437199,714.67,Berrow Cottage Homes,88317
Solihull MBC,Environmental and Regulatory Services,Waste Collection,Other Contracted Services,E29000,19/11/2012,12416944,789.93,Berryman,67256
Solihull MBC,Children & Education Services,2Yr Old Free E Learn/Care,Grant & Subscription (SCITT),D92000,05/11/2012,12382799,654.75,Bertram Road Childrens Centre,2511689
Solihull MBC,Children & Education Services,Yorkswood J&I,Telephones,D30000,29/11/2012,12447096,601.81,Best 4 Business Communications,232548
Solihull MBC,Children & Education Services,Arden Academy Catering,Catering Provisions,D20000,08/11/2012,12390807,188.59,Beverages Direct Ltd,100222
Solihull MBC,Children & Education Services,Arden Academy Catering,Materials,D11000,08/11/2012,12390807,153.92,Beverages Direct Ltd,100222
Solihull MBC,Children & Education Services,Section 17 South/Central,Clients Expenses,D62000,27/11/2012,12439093,305,Bid Services For Deaf People,179818
Solihull MBC,Children & Education Services,Windy Arbor J&I,Capitation,D11001,14/11/2012,12403423,288.99,Big Box Solutions,174798
Solihull MBC,Children & Education Services,Sharmans Cross Jnr,Capitation,D11001,08/11/2012,12390744,282.08,Big Box Solutions,174798
Solihull MBC,Highways & Transport Services,Road Safety,Materials,D11000,12/11/2012,12392457,500,Bike Smart UK,1386608
Solihull MBC,Highways & Transport Services,Road Safety,Materials,D11000,15/11/2012,12407753,750,Bike Smart UK,1386608
Solihull MBC,Highways & Transport Services,Road Safety,Materials,D11000,20/11/2012,12427163,350,Bike Smart UK,1386608
Solihull MBC,Highways & Transport Services,Road Safety,Materials,D11000,20/11/2012,12427163,150,Bike Smart UK,1386608
Solihull MBC,Highways & Transport Services,Road Safety,Materials,D11000,20/11/2012,12426981,250,Bike Smart UK,1386608
Solihull MBC,Highways & Transport Services,Road Safety,Materials,D11000,20/11/2012,12426982,250,Bike Smart UK,1386608
Solihull MBC,Highways & Transport Services,Road Safety,Materials,D11000,26/11/2012,12436629,250,Bike Smart UK,1386608
Solihull MBC,Highways & Transport Services,Road Safety,Materials,D11000,14/11/2012,12403668,500,Bike Smart UK,1386608
Solihull MBC,Children & Education Services,Grants For Private Sector,Grant & Subscription (SCITT),D92000,01/11/2012,12378480,7563.15,Billy Bears Nursery,102085
Solihull MBC,Children & Education Services,Section 17 South/Central,Clients Expenses,D62000,29/11/2012,12441670,27,Billy Bears Nursery,102085
Solihull MBC,Children & Education Services,Section 17 South/Central,Clients Expenses,D62000,29/11/2012,12441670,550.5,Billy Bears Nursery,102085
Solihull MBC,Adult Social Care,PD Spot Comm Care,ASC - Domiciliary Care,E20008,14/11/2012,12405872,6377.14,Bionicare,1749623
Solihull MBC,Highways & Transport Services,Street Lighting Contract 1,Furniture & Equipment,D10000,08/11/2012,12390793,269.4,Birkett Electric Ltd,11410
Solihull MBC,Adult Social Care,Drug and Alcohol Misuse,Other Contracted Services,E29000,19/11/2012,12423468,-16812,Birmingham And Solihull Mental Health Trust,131135
Solihull MBC,Adult Social Care,MH - Mental Health Grant,Block Contracts,E21001,05/11/2012,12383849,11321.5,Birmingham And Solihull Mental Health Trust,131135
Solihull MBC,Adult Social Care,Drug and Alcohol Misuse,Other Contracted Services,E29000,19/11/2012,12423467,74458.5,Birmingham And Solihull Mental Health Trust,131135
Solihull MBC,Adult Social Care,SP - Women At Risk Dom Voilence,Block Contracts,E21001,27/11/2012,12437201,8643.54,Birmingham And Solihull Women's Aid,247871
Solihull MBC,Adult Social Care,SP - Women At Risk Dom Voilence,Block Contracts,E21001,27/11/2012,12437200,16677.68,Birmingham And Solihull Women's Aid,247871
Solihull MBC,Children & Education Services,Our Lady Wayside J&I,Visits & Pupil Activities,D52002,12/11/2012,12393997,285.83,Birmingham Botanical Gardens,22261
Solihull MBC,Children & Education Services,Monkspath J&I,Visits & Pupil Activities,D52002,15/11/2012,12406441,390.42,Birmingham Botanical Gardens,22261
Solihull MBC,Children & Education Services,Hatchford Brook J&I,Capitation,D11001,16/11/2012,12416480,270.4,Birmingham Chamber Of Commerce And Industry,137016
Solihull MBC,Children & Education Services,Combined Budgets Contribs,Professional Fees,D51000,15/11/2012,12407727,8244.5,Birmingham City Council,8616
Solihull MBC,Corporate & Democratic Core,Joint Committee Servicing,Other Contracted Services,E29000,12/11/2012,12394003,2308,Birmingham City Council,8616
Solihull MBC,Court Services,Coroners Court,Other Contracted Services,E29000,12/11/2012,12394003,73073,Birmingham City Council,8616
Solihull MBC,Central Services to the Public,Birmingham Airport,General Creditors,S00000,12/11/2012,12394003,57206,Birmingham City Council,8616
Solihull MBC,Court Services,Coroners Court,Other Contracted Services,E29000,27/11/2012,12437161,26481.72,Birmingham City Council Shared Services,401601
Solihull MBC,Highways & Transport Services,Car Parks Expenditure,Repair & Maintn Of Buildings,B31000,21/11/2012,12430425,975,Birmingham City Laboratories,174058
Solihull MBC,Central Services to the Public,Tenant Team,Internal Income-Miscellaneous,H21000,21/11/2012,12430425,-97.5,Birmingham City Laboratories,174058
Solihull MBC,Highways & Transport Services,Car Parks Expenditure,Internal Building Maintenance,H20908,21/11/2012,12430425,97.5,Birmingham City Laboratories,174058
Solihull MBC,Environmental and Regulatory Services,Pest Control,Other Fees,D52000,23/11/2012,12434495,-50,Birmingham Dogs Home,110603
Solihull MBC,Environmental and Regulatory Services,Pest Control,Other Fees,D52000,23/11/2012,12434495,1650,Birmingham Dogs Home,110603
Solihull MBC,Adult Social Care,LD Spot Comm Care,ASC - Day Care,E20010,05/11/2012,12384064,2429.16,Birmingham Focus,8661
Solihull MBC,Adult Social Care,LD Spot Comm Care,ASC - Day Care,E20010,05/11/2012,12384065,986.42,Birmingham Focus,8661
Solihull MBC,Children & Education Services,Sharmans Cross Jnr,Visits & Pupil Activities,D52002,27/11/2012,12437159,1351,Birmingham Hippodrome,30059
Solihull MBC,Children & Education Services,Smith's Wood,Capitation,D11001,21/11/2012,12430733,443,Birmingham Hippodrome,30059
Solihull MBC,Children & Education Services,Smith's Wood,Capitation,D11001,03/10/2012,PC83030,269.8,Birmingham Hippodrome,Purchase Card Supplier
Solihull MBC,Children & Education Services,St Alphege Jnr,Visits & Pupil Activities,D52002,29/11/2012,12447248,575,Birmingham International Coaches Ltd,34755
Solihull MBC,Central Services to the Public,Shared Services (Schools),Training,A32000,15/11/2012,12407738,1500,Birmingham Metropolitan College,252596
Solihull MBC,Children & Education Services,Kingshurst Primary,Capitation,D11001,16/11/2012,12416417,293.3,Bishop Sports & Leisure Ltd,8738
Solihull MBC,Children & Education Services,Merstone,Visits & Pupil Activities,D52002,06/11/2012,12382993,350,Bitesize Theatre Company,133194
Solihull MBC,Adult Social Care,OP - Central Spot Comm Care,ASC - Residential Care Permanent,E20003,22/11/2012,12433004,971.23,BJCC,688195
Solihull MBC,Children & Education Services,Marston Green Inf,IT Equipment & Software,D32000,20/11/2012,12427021,2320.5,Black & White Consumables Ltd,190418
Solihull MBC,Children & Education Services,Cranmore Inf,Visits & Pupil Activities,D52002,26/11/2012,12437544,445.9,Black Country Museum Trust Ltd,43307
Solihull MBC,Children & Education Services,Smith's Wood,Capitation,D11001,19/11/2012,12417010,2250,Blackwell Adventure,136240
Solihull MBC,Children & Education Services,Yew Tree J&I,Visits & Pupil Activities,D52002,20/11/2012,12427077,687.5,Blackwell Adventure,136240
Solihull MBC,Adult Social Care,OP - Central Spot Comm Care,ASC - Domiciliary Care,E20008,14/11/2012,12406046,891,Bloomsbury KG Ltd,2483692
Solihull MBC,Central Services to the Public,Enterprise Support P2,Professional Fees,D51000,20/11/2012,12427012,4452,Blue Orchid,1935617
Solihull MBC,Central Services to the Public,Enterprise Support P2,Professional Fees,D51000,19/11/2012,12423474,4452,Blue Orchid,1935617
Solihull MBC,Central Services to the Public,Enterprise Support P2,Professional Fees,D51000,20/11/2012,12427015,13356,Blue Orchid,1935617
Solihull MBC,Adult Social Care,MH - ASC Asylum Seekers,Rents For Premises,B22000,08/11/2012,12390889,775,Blueberry Housing Ltd,208121
Solihull MBC,Adult Social Care,MH - ASC Asylum Seekers,Rents For Premises,B22000,08/11/2012,12390889,-775,Blueberry Housing Ltd,208121
Solihull MBC,Adult Social Care,MH - ASC Asylum Seekers,Rents For Premises,B22000,08/11/2012,12390889,472.75,Blueberry Housing Ltd,208121
Solihull MBC,Adult Social Care,MH - ASC Asylum Seekers,Rents For Premises,B22000,08/11/2012,12390889,302.25,Blueberry Housing Ltd,208121
Solihull MBC,Children & Education Services,UASC 16+,Other Contracted Services,E29000,21/11/2012,12430676,1240,Blueberry Housing Ltd,208121
Solihull MBC,Children & Education Services,UASC 16+,Clients Expenses,D62000,21/11/2012,12430676,280,Blueberry Housing Ltd,208121
Solihull MBC,Children & Education Services,UASC 16+,Other Contracted Services,E29000,21/11/2012,12430676,483.6,Blueberry Housing Ltd,208121
Solihull MBC,Children & Education Services,UASC 16+,Other Contracted Services,E29000,21/11/2012,12430676,-1240,Blueberry Housing Ltd,208121
Solihull MBC,Children & Education Services,UASC 16+,Other Contracted Services,E29000,21/11/2012,12430676,756.4,Blueberry Housing Ltd,208121
Solihull MBC,Children & Education Services,UASC 18+,Other Contracted Services,E29000,09/11/2012,12391154,252.75,Blueberry Housing Ltd,208121
Solihull MBC,Children & Education Services,UASC 18+,Clients Transport Costs,C21000,09/11/2012,12391154,54,Blueberry Housing Ltd,208121
Solihull MBC,Children & Education Services,UASC 18+,Other Contracted Services,E29000,09/11/2012,12391154,302.25,Blueberry Housing Ltd,208121
Solihull MBC,Children & Education Services,UASC 18+,Clients Transport Costs,C21000,09/11/2012,12391154,54,Blueberry Housing Ltd,208121
Solihull MBC,Children & Education Services,UASC 18+,Supported Lodgings,E29007,15/11/2012,12410579,756.4,Blueberry Housing Ltd,208121
Solihull MBC,Children & Education Services,UASC 18+,Supported Lodgings,E29007,15/11/2012,12410579,483.6,Blueberry Housing Ltd,208121
Solihull MBC,Children & Education Services,UASC 18+,Clients Expenses,D62000,15/11/2012,12410579,205,Blueberry Housing Ltd,208121
Solihull MBC,Children & Education Services,UASC 18+,Clients Transport Costs,C21000,15/11/2012,12410579,54,Blueberry Housing Ltd,208121
Solihull MBC,Children & Education Services,UASC 18+,Other Contracted Services,E29000,09/11/2012,12391155,306.59,Blueberry Housing Ltd,208121
Solihull MBC,Children & Education Services,UASC 18+,Clients Expenses,D62000,09/11/2012,12391155,105,Blueberry Housing Ltd,208121
Solihull MBC,Children & Education Services,UASC 18+,Other Contracted Services,E29000,09/11/2012,12391182,302.25,Blueberry Housing Ltd,208121
Solihull MBC,Children & Education Services,UASC 18+,Clients Expenses,D62000,09/11/2012,12391182,20,Blueberry Housing Ltd,208121
Solihull MBC,Children & Education Services,UASC 18+,Clients Transport Costs,C21000,09/11/2012,12391182,88.5,Blueberry Housing Ltd,208121
Solihull MBC,Children & Education Services,UASC 18+,Other Contracted Services,E29000,09/11/2012,12391182,339.18,Blueberry Housing Ltd,208121
Solihull MBC,Children & Education Services,UASC 18+,Other Contracted Services,E29000,09/11/2012,12391157,544.05,Blueberry Housing Ltd,208121
Solihull MBC,Children & Education Services,UASC 18+,Clients Expenses,D62000,09/11/2012,12391157,250,Blueberry Housing Ltd,208121
Solihull MBC,Children & Education Services,UASC 18+,Clients Transport Costs,C21000,09/11/2012,12391157,54,Blueberry Housing Ltd,208121
Solihull MBC,Children & Education Services,UASC 18+,Other Contracted Services,E29000,09/11/2012,12391157,850.95,Blueberry Housing Ltd,208121
Solihull MBC,Children & Education Services,UASC Non Allowable Expend,Supported Lodgings,E29007,09/11/2012,12391158,302.25,Blueberry Housing Ltd,208121
Solihull MBC,Children & Education Services,UASC Non Allowable Expend,Clients Expenses,D62000,09/11/2012,12391158,225,Blueberry Housing Ltd,208121
Solihull MBC,Children & Education Services,UASC Non Allowable Expend,Supported Lodgings,E29007,09/11/2012,12391158,472.75,Blueberry Housing Ltd,208121
Solihull MBC,Children & Education Services,UASC Non Allowable Expend,Supported Lodgings,E29007,09/11/2012,12391159,302.25,Blueberry Housing Ltd,208121
Solihull MBC,Children & Education Services,UASC Non Allowable Expend,Clients Expenses,D62000,09/11/2012,12391159,305,Blueberry Housing Ltd,208121
Solihull MBC,Children & Education Services,UASC Non Allowable Expend,Clients Transport Costs,C21000,09/11/2012,12391159,54,Blueberry Housing Ltd,208121
Solihull MBC,Children & Education Services,UASC Non Allowable Expend,Clients Transport Costs,C21000,09/11/2012,12391159,54,Blueberry Housing Ltd,208121
Solihull MBC,Children & Education Services,UASC Non Allowable Expend,Supported Lodgings,E29007,09/11/2012,12391159,472.75,Blueberry Housing Ltd,208121
Solihull MBC,Children & Education Services,UASC 16+,Other Contracted Services,E29000,09/11/2012,12391161,604.5,Blueberry Housing Ltd,208121
Solihull MBC,Children & Education Services,UASC 16+,Clients Expenses,D62000,09/11/2012,12391161,225,Blueberry Housing Ltd,208121
Solihull MBC,Children & Education Services,UASC 16+,Other Contracted Services,E29000,09/11/2012,12391161,945.5,Blueberry Housing Ltd,208121
Solihull MBC,Children & Education Services,UASC 16+,Other Contracted Services,E29000,09/11/2012,12391164,604.5,Blueberry Housing Ltd,208121
Solihull MBC,Children & Education Services,UASC 16+,Clients Expenses,D62000,09/11/2012,12391164,225,Blueberry Housing Ltd,208121
Solihull MBC,Children & Education Services,UASC 16+,Clients Transport Costs,C21000,09/11/2012,12391164,15,Blueberry Housing Ltd,208121
Solihull MBC,Children & Education Services,UASC 16+,Other Contracted Services,E29000,09/11/2012,12391164,945.5,Blueberry Housing Ltd,208121
Solihull MBC,Children & Education Services,UASC 16+,Other Contracted Services,E29000,09/11/2012,12391167,604.5,Blueberry Housing Ltd,208121
Solihull MBC,Children & Education Services,UASC 16+,Clients Expenses,D62000,09/11/2012,12391167,282,Blueberry Housing Ltd,208121
Solihull MBC,Children & Education Services,UASC 16+,Clients Transport Costs,C21000,09/11/2012,12391167,54,Blueberry Housing Ltd,208121
Solihull MBC,Children & Education Services,UASC 16+,Other Contracted Services,E29000,09/11/2012,12391167,945.5,Blueberry Housing Ltd,208121
Solihull MBC,Children & Education Services,UASC 16+,Other Contracted Services,E29000,09/11/2012,12391172,604.5,Blueberry Housing Ltd,208121
Solihull MBC,Children & Education Services,UASC 16+,Clients Expenses,D62000,09/11/2012,12391172,282,Blueberry Housing Ltd,208121
Solihull MBC,Children & Education Services,UASC 16+,Clients Transport Costs,C21000,09/11/2012,12391172,54,Blueberry Housing Ltd,208121
Solihull MBC,Children & Education Services,UASC 16+,Other Contracted Services,E29000,09/11/2012,12391172,945.5,Blueberry Housing Ltd,208121
Solihull MBC,Children & Education Services,UASC 18+,Clients Transport Costs,C21000,09/11/2012,12391173,54,Blueberry Housing Ltd,208121
Solihull MBC,Children & Education Services,UASC 18+,Other Contracted Services,E29000,09/11/2012,12391173,604.5,Blueberry Housing Ltd,208121
Solihull MBC,Children & Education Services,UASC 18+,Other Contracted Services,E29000,09/11/2012,12391173,680.1,Blueberry Housing Ltd,208121
Solihull MBC,Children & Education Services,UASC Non Allowable Expend,Supported Lodgings,E29007,09/11/2012,12391175,945.5,Blueberry Housing Ltd,208121
Solihull MBC,Children & Education Services,UASC Non Allowable Expend,Supported Lodgings,E29007,09/11/2012,12391175,604.5,Blueberry Housing Ltd,208121
Solihull MBC,Children & Education Services,UASC Non Allowable Expend,Clients Expenses,D62000,09/11/2012,12391175,255,Blueberry Housing Ltd,208121
Solihull MBC,Children & Education Services,UASC Non Allowable Expend,Clients Transport Costs,C21000,09/11/2012,12391175,54,Blueberry Housing Ltd,208121
Solihull MBC,Children & Education Services,UASC 18+,Other Contracted Services,E29000,09/11/2012,12391176,604.5,Blueberry Housing Ltd,208121
Solihull MBC,Children & Education Services,UASC 18+,Clients Expenses,D62000,09/11/2012,12391176,225,Blueberry Housing Ltd,208121
Solihull MBC,Children & Education Services,UASC 18+,Other Contracted Services,E29000,09/11/2012,12391176,945.5,Blueberry Housing Ltd,208121
Solihull MBC,Children & Education Services,UASC 16+,Other Contracted Services,E29000,09/11/2012,12391178,604.5,Blueberry Housing Ltd,208121
Solihull MBC,Children & Education Services,UASC 16+,Clients Expenses,D62000,09/11/2012,12391178,265,Blueberry Housing Ltd,208121
Solihull MBC,Children & Education Services,UASC 16+,Clients Transport Costs,C21000,09/11/2012,12391178,54,Blueberry Housing Ltd,208121
Solihull MBC,Children & Education Services,UASC 16+,Other Contracted Services,E29000,09/11/2012,12391178,945.5,Blueberry Housing Ltd,208121
Solihull MBC,Children & Education Services,UASC 16+,Supported Lodgings,E29007,09/11/2012,12391179,275,Blueberry Housing Ltd,208121
Solihull MBC,Children & Education Services,UASC 16+,Supported Lodgings,E29007,09/11/2012,12391179,341.25,Blueberry Housing Ltd,208121
Solihull MBC,Children & Education Services,UASC 16+,Supported Lodgings,E29007,09/11/2012,12391179,258.75,Blueberry Housing Ltd,208121
Solihull MBC,Children & Education Services,UASC 16+,Other Contracted Services,E29000,09/11/2012,12391183,850.95,Blueberry Housing Ltd,208121
Solihull MBC,Children & Education Services,UASC 16+,Other Contracted Services,E29000,09/11/2012,12391183,544.05,Blueberry Housing Ltd,208121
Solihull MBC,Children & Education Services,UASC 16+,Clients Expenses,D62000,09/11/2012,12391183,261,Blueberry Housing Ltd,208121
Solihull MBC,Children & Education Services,UASC 16+,Clients Transport Costs,C21000,09/11/2012,12391183,54,Blueberry Housing Ltd,208121
Solihull MBC,Children & Education Services,UASC 16+,Other Contracted Services,E29000,09/11/2012,12391185,544.05,Blueberry Housing Ltd,208121
Solihull MBC,Children & Education Services,UASC 16+,Clients Expenses,D62000,09/11/2012,12391185,255,Blueberry Housing Ltd,208121
Solihull MBC,Children & Education Services,UASC 16+,Clients Transport Costs,C21000,09/11/2012,12391185,25,Blueberry Housing Ltd,208121
Solihull MBC,Children & Education Services,UASC 16+,Other Contracted Services,E29000,09/11/2012,12391185,850.95,Blueberry Housing Ltd,208121
Solihull MBC,Children & Education Services,UASC 18+,Supported Lodgings,E29007,15/11/2012,12410585,544.05,Blueberry Housing Ltd,208121
Solihull MBC,Children & Education Services,UASC 18+,Clients Expenses,D62000,15/11/2012,12410585,215,Blueberry Housing Ltd,208121
Solihull MBC,Children & Education Services,UASC 18+,Supported Lodgings,E29007,15/11/2012,12410585,850.95,Blueberry Housing Ltd,208121
Solihull MBC,Children & Education Services,UASC 18+,Other Contracted Services,E29000,09/11/2012,12391187,302.25,Blueberry Housing Ltd,208121
Solihull MBC,Children & Education Services,UASC 18+,Other Contracted Services,E29000,09/11/2012,12391187,230.43,Blueberry Housing Ltd,208121
Solihull MBC,Children & Education Services,UASC 18+,Other Contracted Services,E29000,09/11/2012,12391190,544.05,Blueberry Housing Ltd,208121
Solihull MBC,Children & Education Services,UASC 18+,Clients Expenses,D62000,09/11/2012,12391190,215,Blueberry Housing Ltd,208121
Solihull MBC,Children & Education Services,UASC 18+,Other Contracted Services,E29000,09/11/2012,12391190,742.44,Blueberry Housing Ltd,208121
Solihull MBC,Children & Education Services,UASC 18+,Other Contracted Services,E29000,09/11/2012,12391191,230.43,Blueberry Housing Ltd,208121
Solihull MBC,Children & Education Services,UASC 18+,Other Contracted Services,E29000,09/11/2012,12391191,302.25,Blueberry Housing Ltd,208121
Solihull MBC,Children & Education Services,UASC 18+,Clients Transport Costs,C21000,09/11/2012,12391191,54,Blueberry Housing Ltd,208121
Solihull MBC,Children & Education Services,UASC 16+,Clients Transport Costs,C21000,09/11/2012,12391213,54,Blueberry Housing Ltd,208121
Solihull MBC,Children & Education Services,UASC 16+,Other Contracted Services,E29000,09/11/2012,12391213,604.5,Blueberry Housing Ltd,208121
Solihull MBC,Children & Education Services,UASC 16+,Clients Expenses,D62000,09/11/2012,12391213,225,Blueberry Housing Ltd,208121
Solihull MBC,Children & Education Services,UASC 16+,Other Contracted Services,E29000,09/11/2012,12391213,945.5,Blueberry Housing Ltd,208121
Solihull MBC,Children & Education Services,UASC Non Allowable Expend,Supported Lodgings,E29007,09/11/2012,12391214,302.25,Blueberry Housing Ltd,208121
Solihull MBC,Children & Education Services,UASC Non Allowable Expend,Clients Expenses,D62000,09/11/2012,12391214,15,Blueberry Housing Ltd,208121
Solihull MBC,Children & Education Services,UASC Non Allowable Expend,Supported Lodgings,E29007,09/11/2012,12391214,472.75,Blueberry Housing Ltd,208121
Solihull MBC,Children & Education Services,UASC 18+,Supported Lodgings,E29007,26/11/2012,12436452,544.05,Blueberry Housing Ltd,208121
Solihull MBC,Children & Education Services,UASC 18+,Clients Expenses,D62000,26/11/2012,12436452,225,Blueberry Housing Ltd,208121
Solihull MBC,Children & Education Services,UASC 18+,Supported Lodgings,E29007,26/11/2012,12436452,850.95,Blueberry Housing Ltd,208121
Solihull MBC,Children & Education Services,UASC 16+,Other Contracted Services,E29000,09/11/2012,12391215,536.25,Blueberry Housing Ltd,208121
Solihull MBC,Children & Education Services,UASC 16+,Clients Expenses,D62000,09/11/2012,12391215,291.98,Blueberry Housing Ltd,208121
Solihull MBC,Children & Education Services,UASC 16+,Clients Transport Costs,C21000,09/11/2012,12391215,54,Blueberry Housing Ltd,208121
Solihull MBC,Children & Education Services,UASC 16+,Other Contracted Services,E29000,09/11/2012,12391215,838.75,Blueberry Housing Ltd,208121
Solihull MBC,Children & Education Services,UASC Non Allowable Expend,Supported Lodgings,E29007,09/11/2012,12391216,302.25,Blueberry Housing Ltd,208121
Solihull MBC,Children & Education Services,UASC Non Allowable Expend,Clients Expenses,D62000,09/11/2012,12391216,245,Blueberry Housing Ltd,208121
Solihull MBC,Children & Education Services,UASC Non Allowable Expend,Clients Transport Costs,C21000,09/11/2012,12391216,54,Blueberry Housing Ltd,208121
Solihull MBC,Children & Education Services,UASC Non Allowable Expend,Supported Lodgings,E29007,09/11/2012,12391216,472.75,Blueberry Housing Ltd,208121
Solihull MBC,Children & Education Services,UASC 16+,Other Contracted Services,E29000,09/11/2012,12391217,483.6,Blueberry Housing Ltd,208121
Solihull MBC,Children & Education Services,UASC 16+,Clients Expenses,D62000,09/11/2012,12391217,245,Blueberry Housing Ltd,208121
Solihull MBC,Children & Education Services,UASC 16+,Clients Transport Costs,C21000,09/11/2012,12391217,54,Blueberry Housing Ltd,208121
Solihull MBC,Children & Education Services,UASC 16+,Other Contracted Services,E29000,09/11/2012,12391217,756.4,Blueberry Housing Ltd,208121
Solihull MBC,Children & Education Services,UASC 16+,Other Contracted Services,E29000,09/11/2012,12391218,483.6,Blueberry Housing Ltd,208121
Solihull MBC,Children & Education Services,UASC 16+,Clients Expenses,D62000,09/11/2012,12391218,255,Blueberry Housing Ltd,208121
Solihull MBC,Children & Education Services,UASC 16+,Clients Transport Costs,C21000,09/11/2012,12391218,54,Blueberry Housing Ltd,208121
Solihull MBC,Children & Education Services,UASC 16+,Other Contracted Services,E29000,09/11/2012,12391218,756.4,Blueberry Housing Ltd,208121
Solihull MBC,Children & Education Services,UASC 16+,Supported Lodgings,E29007,12/11/2012,12392533,124.8,Blueberry Housing Ltd,208121
Solihull MBC,Children & Education Services,UASC 16+,Clients Expenses,D62000,12/11/2012,12392533,69.28,Blueberry Housing Ltd,208121
Solihull MBC,Children & Education Services,UASC 16+,Supported Lodgings,E29007,12/11/2012,12392533,190.2,Blueberry Housing Ltd,208121
Solihull MBC,Children & Education Services,Section 17 CDT,Clients Expenses,D62000,19/11/2012,12416865,465.6,Bluebird Care,1731617
Solihull MBC,Children & Education Services,Section 17 CDT,Clients Expenses,D62000,20/11/2012,12427030,700,Bluebird Care,1731617
Solihull MBC,Children & Education Services,Section 17 CDT,Clients Expenses,D62000,20/11/2012,12427065,262.5,Bluebird Care,1731617
Solihull MBC,Children & Education Services,Section 17 CDT,Clients Expenses,D62000,20/11/2012,12427063,693,Bluebird Care,1731617
Solihull MBC,Children & Education Services,Section 17 CDT,Clients Expenses,D62000,19/11/2012,12416889,352.5,Bluebird Care,1731617
Solihull MBC,Children & Education Services,Section 17 CDT,Clients Expenses,D62000,19/11/2012,12417088,262.25,Bluebird Care,1731617
Solihull MBC,Children & Education Services,Section 17 CDT,Clients Expenses,D62000,19/11/2012,12417086,396,Bluebird Care,1731617
Solihull MBC,Children & Education Services,Section 17 CDT,Clients Expenses,D62000,19/11/2012,12417090,377.25,Bluebird Care,1731617
Solihull MBC,Adult Social Care,OP South Spot Comm Care,ASC - Residential Care Permanent,E20003,22/11/2012,12433000,970.93,Bondcare (Bromford) Ltd,1035597
Solihull MBC,Adult Social Care,OP - North Spot Comm Care,ASC - Residential Care Permanent,E20003,22/11/2012,12433002,1338.6,Bondcare (Bromford) Ltd,1035597
Solihull MBC,Adult Social Care,OP - North Spot Comm Care,ASC - Residential Care Permanent,E20003,22/11/2012,12432998,454.63,Bondcare (Bromford) Ltd,1035597
Solihull MBC,Adult Social Care,OP South Spot Comm Care,ASC - Residential Care Permanent,E20003,22/11/2012,12433001,1003.29,Bondcare (Bromford) Ltd,1035597
Solihull MBC,Adult Social Care,OP - North Spot Comm Care,ASC - Residential Care Permanent,E20003,22/11/2012,12433003,1383.22,Bondcare (Bromford) Ltd,1035597
Solihull MBC,Adult Social Care,OP - North Spot Comm Care,ASC - Residential Care Permanent,E20003,22/11/2012,12432999,469.78,Bondcare (Bromford) Ltd,1035597
Solihull MBC,Adult Social Care,OP South Spot Comm Care,ASC - Nursing Care Permanent,E20005,14/11/2012,12406026,316.81,Bondcare St Andrews Ltd,1755621
Solihull MBC,Adult Social Care,OP - Central Spot Comm Care,ASC - Nursing Care Permanent,E20005,14/11/2012,12406027,864,Bondcare St Andrews Ltd,1755621
Solihull MBC,Adult Social Care,OP South Spot Comm Care,ASC - Nursing Care Permanent,E20005,14/11/2012,12406028,1217.46,Bondcare St Andrews Ltd,1755621
Solihull MBC,Adult Social Care,OP South Spot Comm Care,ASC - Nursing Care Permanent,E20005,05/11/2012,12384070,1356.07,Bondcare St Andrews Ltd,1755621
Solihull MBC,Adult Social Care,OP South Spot Comm Care,ASC - Nursing Care Permanent,E20005,05/11/2012,12384067,1383.31,Bondcare St Andrews Ltd,1755621
Solihull MBC,Adult Social Care,OP South Spot Comm Care,ASC - Nursing Care Permanent,E20005,05/11/2012,12384069,1052.58,Bondcare St Andrews Ltd,1755621
Solihull MBC,Adult Social Care,OP South Spot Comm Care,ASC - Nursing Care Permanent,E20005,05/11/2012,12384073,1373.88,Bondcare St Andrews Ltd,1755621
Solihull MBC,Adult Social Care,OP South Spot Comm Care,ASC - Nursing Care Permanent,E20005,05/11/2012,12384071,1217.46,Bondcare St Andrews Ltd,1755621
Solihull MBC,Adult Social Care,OP - Sol Hos Spot Comm Care,ASC - Nursing Care Permanent,E20005,05/11/2012,12384066,1373.88,Bondcare St Andrews Ltd,1755621
Solihull MBC,Adult Social Care,OP - Central Spot Comm Care,ASC - Nursing Care Permanent,E20005,05/11/2012,12384072,1287.43,Bondcare St Andrews Ltd,1755621
Solihull MBC,Adult Social Care,OP - Central Spot Comm Care,ASC - Nursing Care Permanent,E20005,05/11/2012,12384074,469.03,Bondcare St Andrews Ltd,1755621
Solihull MBC,Adult Social Care,OP - Central Spot Comm Care,ASC - Nursing Care Permanent,E20005,05/11/2012,12384068,1407.49,Bondcare St Andrews Ltd,1755621
Solihull MBC,Children & Education Services,2Yr Old Free E Learn/Care,Grant & Subscription (SCITT),D92000,19/11/2012,12421599,339.5,Bosworth Wood Neighbourhood Nursery-Lawnswood,130961
Solihull MBC,Children & Education Services,Childrens-SW-Learn & Dev,Training,A32000,09/11/2012,12391193,250,Bournemouth University,9279
Solihull MBC,Children & Education Services,Childrens-SW-Learn & Dev,Training,A32000,09/11/2012,12391195,250,Bournemouth University,9279
Solihull MBC,Children & Education Services,Childrens-SW-Learn & Dev,Training,A32000,09/11/2012,12391196,250,Bournemouth University,9279
Solihull MBC,Children & Education Services,Childrens-SW-Learn & Dev,Training,A32000,09/11/2012,12391197,250,Bournemouth University,9279
Solihull MBC,Children & Education Services,Childrens-SW-Learn & Dev,Training,A32000,09/11/2012,12391198,250,Bournemouth University,9279
Solihull MBC,Children & Education Services,Childrens-SW-Learn & Dev,Training,A32000,09/11/2012,12391199,250,Bournemouth University,9279
Solihull MBC,Children & Education Services,Childrens-SW-Learn & Dev,Training,A32000,09/11/2012,12391192,250,Bournemouth University,9279
Solihull MBC,Children & Education Services,Childrens-SW-Learn & Dev,Training,A32000,09/11/2012,12391200,250,Bournemouth University,9279
Solihull MBC,Adult Social Care,OP South Spot Comm Care,ASC - Residential Care Permanent,E20003,05/11/2012,12384012,1382.6,Bower Grange Residential Care Home,1906616
Solihull MBC,Adult Social Care,PD Spot Comm Care,ASC - Residential Care Permanent,E20003,05/11/2012,12384013,9269,Brain Injury Rehabilitation Care,689615
Solihull MBC,Cultural & Related Services,Theatre Bar,Catering Provisions,D20000,13/11/2012,12397422,31.54,Brake Bros Foodservice Ltd,9490
Solihull MBC,Cultural & Related Services,Theatre Bar,Catering Provisions,D20000,13/11/2012,12397422,470.88,Brake Bros Foodservice Ltd,9490
Solihull MBC,Cultural & Related Services,Theatre Bar,Catering Provisions,D20000,22/11/2012,12433600,58.07,Brake Bros Foodservice Ltd,9490
Solihull MBC,Cultural & Related Services,Theatre Bar,Catering Provisions,D20000,22/11/2012,12433600,211.64,Brake Bros Foodservice Ltd,9490
Solihull MBC,Adult Social Care,LD - General Work Related,Catering Provisions,D20000,09/11/2012,12391282,278.07,Brake Bros Foodservice Ltd,9490
Solihull MBC,Children & Education Services,Smithswood,Catering Provisions,D20000,09/11/2012,12391911,365.9,Brake Bros Foodservice Ltd,9490
Solihull MBC,Children & Education Services,Civic Suite Catering,Catering Provisions,D20000,09/11/2012,12391914,260.21,Brake Bros Foodservice Ltd,9490
Solihull MBC,Children & Education Services,Langley Academy,Catering Provisions,D20000,09/11/2012,12391910,474.43,Brake Bros Foodservice Ltd,9490
Solihull MBC,Children & Education Services,Lyndon,Catering Provisions,D20000,09/11/2012,12392019,309.23,Brake Bros Foodservice Ltd,9490
Solihull MBC,Children & Education Services,Our Lady Compassion J&I,Catering Provisions,D20000,09/11/2012,12391927,263.84,Brake Bros Foodservice Ltd,9490
Solihull MBC,Children & Education Services,Kingshurst Jnr,Catering Provisions,D20000,09/11/2012,12391948,405.86,Brake Bros Foodservice Ltd,9490
Solihull MBC,Children & Education Services,Marston Grn Jnr,Catering Provisions,D20000,09/11/2012,12391937,300.07,Brake Bros Foodservice Ltd,9490
Solihull MBC,Children & Education Services,Shirley Heath Jnr,Catering Provisions,D20000,09/11/2012,12391919,284.06,Brake Bros Foodservice Ltd,9490
Solihull MBC,Children & Education Services,Coppice Jnr,Catering Provisions,D20000,09/11/2012,12391975,263.43,Brake Bros Foodservice Ltd,9490
Solihull MBC,Children & Education Services,Our Lady Wayside J&I,Catering Provisions,D20000,09/11/2012,12391925,466.03,Brake Bros Foodservice Ltd,9490
Solihull MBC,Children & Education Services,Peterbrook J&I,Catering Provisions,D20000,09/11/2012,12391923,251.55,Brake Bros Foodservice Ltd,9490
Solihull MBC,Children & Education Services,Greswold J&I,Catering Provisions,D20000,09/11/2012,12391960,428.78,Brake Bros Foodservice Ltd,9490
Solihull MBC,Children & Education Services,Langley Academy,Catering Provisions,D20000,09/11/2012,12392025,312.89,Brake Bros Foodservice Ltd,9490
Solihull MBC,Children & Education Services,St Alphege Inf,Catering Provisions,D20000,09/11/2012,12392017,250.38,Brake Bros Foodservice Ltd,9490
Solihull MBC,Children & Education Services,Yorkswood J&I,Catering Provisions,D20000,09/11/2012,12391980,252.17,Brake Bros Foodservice Ltd,9490
Solihull MBC,Children & Education Services,Balsall Common Academy,Catering Provisions,D20000,09/11/2012,12392048,335.15,Brake Bros Foodservice Ltd,9490
Solihull MBC,Children & Education Services,Sharmans Cross Jnr,Catering Provisions,D20000,09/11/2012,12391921,297.52,Brake Bros Foodservice Ltd,9490
Solihull MBC,Children & Education Services,St George & St Teresa J&I,Catering Provisions,D20000,09/11/2012,12392004,266.24,Brake Bros Foodservice Ltd,9490
Solihull MBC,Children & Education Services,Parkhall Academy Catering,Catering Provisions,D20000,09/11/2012,12392043,406.32,Brake Bros Foodservice Ltd,9490
Solihull MBC,Children & Education Services,Ulverley J&I,Catering Provisions,D20000,09/11/2012,12391990,350.81,Brake Bros Foodservice Ltd,9490
Solihull MBC,Children & Education Services,Arden Academy Catering,Catering Provisions,D20000,23/11/2012,12434739,445.24,Brake Bros Foodservice Ltd,9490
Solihull MBC,Children & Education Services,Langley Academy,Catering Provisions,D20000,27/11/2012,12437396,340.26,Brake Bros Foodservice Ltd,9490
Solihull MBC,Children & Education Services,Lyndon,Catering Provisions,D20000,27/11/2012,12437388,276.9,Brake Bros Foodservice Ltd,9490
Solihull MBC,Children & Education Services,Our Lady Compassion J&I,Catering Provisions,D20000,27/11/2012,12437283,279.37,Brake Bros Foodservice Ltd,9490
Solihull MBC,Children & Education Services,Bishop Wilson J&I,Catering Provisions,D20000,27/11/2012,12439416,261.37,Brake Bros Foodservice Ltd,9490
Solihull MBC,Children & Education Services,C Bromwich Jnr,Catering Provisions,D20000,27/11/2012,12437410,340.68,Brake Bros Foodservice Ltd,9490
Solihull MBC,Children & Education Services,Kingshurst Jnr,Catering Provisions,D20000,27/11/2012,12437303,271.66,Brake Bros Foodservice Ltd,9490
Solihull MBC,Children & Education Services,Marston Grn Jnr,Catering Provisions,D20000,27/11/2012,12437294,359.89,Brake Bros Foodservice Ltd,9490
Solihull MBC,Children & Education Services,Parkhall Academy Catering,Catering Provisions,D20000,27/11/2012,12439417,341.69,Brake Bros Foodservice Ltd,9490
Solihull MBC,Children & Education Services,Peterbrook J&I,Catering Provisions,D20000,27/11/2012,12437279,278.68,Brake Bros Foodservice Ltd,9490
Solihull MBC,Children & Education Services,Langley Academy,Catering Provisions,D20000,27/11/2012,12437395,371.15,Brake Bros Foodservice Ltd,9490
Solihull MBC,Children & Education Services,Windy Arbour J&I,Catering Provisions,D20000,27/11/2012,12437352,260.38,Brake Bros Foodservice Ltd,9490
Solihull MBC,Children & Education Services,Yorkswood J&I,Catering Provisions,D20000,27/11/2012,12437345,304.74,Brake Bros Foodservice Ltd,9490
Solihull MBC,Children & Education Services,Balsall Common Academy,Catering Provisions,D20000,27/11/2012,12439423,302.79,Brake Bros Foodservice Ltd,9490
Solihull MBC,Children & Education Services,Arden Academy Catering,Catering Provisions,D20000,27/11/2012,12437264,488.85,Brake Bros Foodservice Ltd,9490
Solihull MBC,Children & Education Services,Hatchford Brook Jnr,Catering Provisions,D20000,27/11/2012,12437316,263.17,Brake Bros Foodservice Ltd,9490
Solihull MBC,Children & Education Services,Knowle Jnr,Catering Provisions,D20000,27/11/2012,12437271,302.5,Brake Bros Foodservice Ltd,9490
Solihull MBC,Children & Education Services,Ulverley J&I,Catering Provisions,D20000,27/11/2012,12437358,347.64,Brake Bros Foodservice Ltd,9490
Solihull MBC,Children & Education Services,Parkhall Academy Catering,Catering Provisions,D20000,29/11/2012,12447228,353.97,Brake Bros Foodservice Ltd,9490
Solihull MBC,Children & Education Services,Heart of England Academy,Catering Provisions,D20000,29/11/2012,12447213,290.85,Brake Bros Foodservice Ltd,9490
Solihull MBC,Children & Education Services,Langley Academy,Catering Provisions,D20000,29/11/2012,12447211,368.42,Brake Bros Foodservice Ltd,9490
Solihull MBC,Children & Education Services,Lyndon,Catering Provisions,D20000,29/11/2012,12447203,270.78,Brake Bros Foodservice Ltd,9490
Solihull MBC,Children & Education Services,Bishop Wilson J&I,Catering Provisions,D20000,29/11/2012,12447227,288.46,Brake Bros Foodservice Ltd,9490
Solihull MBC,Children & Education Services,Hatchford Community School,Catering Provisions,D20000,29/11/2012,12447155,350.4,Brake Bros Foodservice Ltd,9490
Solihull MBC,Children & Education Services,Dorridge Inf,Catering Provisions,D20000,29/11/2012,12447162,305.66,Brake Bros Foodservice Ltd,9490
Solihull MBC,Children & Education Services,Our Lady Wayside J&I,Catering Provisions,D20000,29/11/2012,12447131,308.06,Brake Bros Foodservice Ltd,9490
Solihull MBC,Children & Education Services,Alderbrook Academy,Catering Provisions,D20000,29/11/2012,12447217,435.32,Brake Bros Foodservice Ltd,9490
Solihull MBC,Children & Education Services,Greswold J&I,Catering Provisions,D20000,29/11/2012,12447159,306.63,Brake Bros Foodservice Ltd,9490
Solihull MBC,Children & Education Services,Langley Academy,Catering Provisions,D20000,29/11/2012,12447212,346.01,Brake Bros Foodservice Ltd,9490
Solihull MBC,Children & Education Services,Lode Heath Academy,Catering Provisions,D20000,29/11/2012,12447204,292.67,Brake Bros Foodservice Ltd,9490
Solihull MBC,Children & Education Services,St Alphege Inf,Catering Provisions,D20000,29/11/2012,12447202,293.64,Brake Bros Foodservice Ltd,9490
Solihull MBC,Children & Education Services,C Bromwich Inf,Catering Provisions,D20000,29/11/2012,12447224,272.43,Brake Bros Foodservice Ltd,9490
Solihull MBC,Children & Education Services,Coleshill Hth Inf,Catering Provisions,D20000,29/11/2012,12447174,294.59,Brake Bros Foodservice Ltd,9490
Solihull MBC,Children & Education Services,Kingshurst Jnr,Catering Provisions,D20000,29/11/2012,12447148,299.76,Brake Bros Foodservice Ltd,9490
Solihull MBC,Children & Education Services,Windy Arbour J&I,Catering Provisions,D20000,29/11/2012,12447180,260.36,Brake Bros Foodservice Ltd,9490
Solihull MBC,Children & Education Services,Yorkswood J&I,Catering Provisions,D20000,29/11/2012,12447176,290.92,Brake Bros Foodservice Ltd,9490
Solihull MBC,Children & Education Services,Balsall Common Academy,Catering Provisions,D20000,29/11/2012,12447231,319.94,Brake Bros Foodservice Ltd,9490
Solihull MBC,Children & Education Services,Arden Academy Catering,Catering Provisions,D20000,29/11/2012,12447123,335.62,Brake Bros Foodservice Ltd,9490
Solihull MBC,Children & Education Services,St George & St Teresa J&I,Catering Provisions,D20000,29/11/2012,12447117,458.35,Brake Bros Foodservice Ltd,9490
Solihull MBC,Children & Education Services,Forest Oak,Catering Provisions,D20000,29/11/2012,12447161,298.38,Brake Bros Foodservice Ltd,9490
Solihull MBC,Children & Education Services,Sharmans Cross Jnr,Catering Provisions,D20000,29/11/2012,12447127,274.23,Brake Bros Foodservice Ltd,9490
Solihull MBC,Children & Education Services,Ulverley J&I,Catering Provisions,D20000,29/11/2012,12447184,326.66,Brake Bros Foodservice Ltd,9490
Solihull MBC,Children & Education Services,Valley Inf,Catering Provisions,D20000,29/11/2012,12447183,257.88,Brake Bros Foodservice Ltd,9490
Solihull MBC,Children & Education Services,Dickens Heath,Catering Provisions,D20000,29/11/2012,12447166,256.43,Brake Bros Foodservice Ltd,9490
Solihull MBC,Children & Education Services,Light Hall Academy,Catering Provisions,D20000,29/11/2012,12447207,424.39,Brake Bros Foodservice Ltd,9490
Solihull MBC,Children & Education Services,Parkhall Academy Catering,Catering Provisions,D20000,30/11/2012,12442295,519.2,Brake Bros Foodservice Ltd,9490
Solihull MBC,Children & Education Services,Smithswood,Catering Provisions,D20000,30/11/2012,12442158,520.86,Brake Bros Foodservice Ltd,9490
Solihull MBC,Children & Education Services,Langley Academy,Catering Provisions,D20000,30/11/2012,12442278,355.77,Brake Bros Foodservice Ltd,9490
Solihull MBC,Children & Education Services,Lyndon,Catering Provisions,D20000,30/11/2012,12442270,484.16,Brake Bros Foodservice Ltd,9490
Solihull MBC,Children & Education Services,Bishop Wilson J&I,Catering Provisions,D20000,30/11/2012,12442294,259.95,Brake Bros Foodservice Ltd,9490
Solihull MBC,Children & Education Services,Marston Grn Jnr,Catering Provisions,D20000,30/11/2012,12442183,347.16,Brake Bros Foodservice Ltd,9490
Solihull MBC,Children & Education Services,Shirley Heath Jnr,Catering Provisions,D20000,30/11/2012,12442164,259.92,Brake Bros Foodservice Ltd,9490
Solihull MBC,Children & Education Services,Balsall Common Academy,Catering Provisions,D20000,30/11/2012,12442300,331.24,Brake Bros Foodservice Ltd,9490
Solihull MBC,Children & Education Services,Arden Academy Catering,Catering Provisions,D20000,30/11/2012,12442160,458.27,Brake Bros Foodservice Ltd,9490
Solihull MBC,Children & Education Services,Dorridge Jnr,Catering Provisions,D20000,30/11/2012,12442216,251.54,Brake Bros Foodservice Ltd,9490
Solihull MBC,Children & Education Services,Dorridge Inf,Catering Provisions,D20000,30/11/2012,12442213,316.32,Brake Bros Foodservice Ltd,9490
Solihull MBC,Children & Education Services,Bosworth Wood J&I,Catering Provisions,D20000,30/11/2012,12442194,279.21,Brake Bros Foodservice Ltd,9490
Solihull MBC,Children & Education Services,Monkspath,Catering Provisions,D20000,30/11/2012,12442176,394.29,Brake Bros Foodservice Ltd,9490
Solihull MBC,Children & Education Services,Our Lady Wayside J&I,Catering Provisions,D20000,30/11/2012,12442171,348.18,Brake Bros Foodservice Ltd,9490
Solihull MBC,Children & Education Services,George Fentham J&I,Catering Provisions,D20000,30/11/2012,12442209,336.41,Brake Bros Foodservice Ltd,9490
Solihull MBC,Children & Education Services,Greswold J&I,Catering Provisions,D20000,30/11/2012,12442208,378.26,Brake Bros Foodservice Ltd,9490
Solihull MBC,Children & Education Services,Langley Academy,Catering Provisions,D20000,30/11/2012,12442277,394.66,Brake Bros Foodservice Ltd,9490
Solihull MBC,Children & Education Services,St Alphege Inf,Catering Provisions,D20000,30/11/2012,12442269,289.34,Brake Bros Foodservice Ltd,9490
Solihull MBC,Children & Education Services,Kingshurst Jnr,Catering Provisions,D20000,30/11/2012,12442192,260.21,Brake Bros Foodservice Ltd,9490
Solihull MBC,Children & Education Services,Arden Academy Catering,Catering Provisions,D20000,30/11/2012,12442161,302.58,Brake Bros Foodservice Ltd,9490
Solihull MBC,Children & Education Services,Sharmans Cross Jnr,Catering Provisions,D20000,30/11/2012,12442166,344.79,Brake Bros Foodservice Ltd,9490
Solihull MBC,Children & Education Services,Marston Grn Inf,Catering Provisions,D20000,30/11/2012,12442184,280.72,Brake Bros Foodservice Ltd,9490
Solihull MBC,Children & Education Services,Light Hall Academy,Catering Provisions,D20000,09/11/2012,12392066,325.41,Brake Bros Foodservice Ltd,9490
Solihull MBC,Children & Education Services,Smithswood,Catering Provisions,D20000,09/11/2012,12392062,360.2,Brake Bros Foodservice Ltd,9490
Solihull MBC,Children & Education Services,Smithswood,Catering Provisions,D20000,09/11/2012,12392065,375.71,Brake Bros Foodservice Ltd,9490
Solihull MBC,Children & Education Services,Forest Oak,Catering Provisions,D20000,09/11/2012,12392067,307.02,Brake Bros Foodservice Ltd,9490
Solihull MBC,Children & Education Services,John Henry Newman Caterg,Catering Provisions,D20000,09/11/2012,12392059,521.88,Brake Bros Foodservice Ltd,9490
Solihull MBC,Children & Education Services,John Henry Newman Caterg,Catering Provisions,D20000,09/11/2012,12392051,518.35,Brake Bros Foodservice Ltd,9490
Solihull MBC,Children & Education Services,Kingshurst Jnr,Catering Provisions,D20000,09/11/2012,12392069,303.81,Brake Bros Foodservice Ltd,9490
Solihull MBC,Children & Education Services,Alderbrook Academy,Catering Provisions,D20000,09/11/2012,12392052,609.32,Brake Bros Foodservice Ltd,9490
Solihull MBC,Children & Education Services,Alderbrook Academy,Catering Provisions,D20000,09/11/2012,12392055,457.15,Brake Bros Foodservice Ltd,9490
Solihull MBC,Children & Education Services,Langley Jnr,Catering Provisions,D20000,09/11/2012,12392070,301.34,Brake Bros Foodservice Ltd,9490
Solihull MBC,Children & Education Services,Lyndon,Catering Provisions,D20000,09/11/2012,12392060,405.6,Brake Bros Foodservice Ltd,9490
Solihull MBC,Children & Education Services,Lyndon,Catering Provisions,D20000,09/11/2012,12392057,527.82,Brake Bros Foodservice Ltd,9490
Solihull MBC,Children & Education Services,Lanchester Centre,Catering Provisions,D20000,09/11/2012,12392068,305.24,Brake Bros Foodservice Ltd,9490
Solihull MBC,Children & Education Services,Arden Academy Catering,Catering Provisions,D20000,09/11/2012,12392061,376.05,Brake Bros Foodservice Ltd,9490
Solihull MBC,Children & Education Services,Arden Academy Catering,Catering Provisions,D20000,09/11/2012,12392064,423.26,Brake Bros Foodservice Ltd,9490
Solihull MBC,Children & Education Services,Parkhall Academy Catering,Catering Provisions,D20000,09/11/2012,12392050,706.23,Brake Bros Foodservice Ltd,9490
Solihull MBC,Children & Education Services,Parkhall Academy Catering,Catering Provisions,D20000,09/11/2012,12392056,445.6,Brake Bros Foodservice Ltd,9490
Solihull MBC,Children & Education Services,Heart of England Academy,Catering Provisions,D20000,09/11/2012,12392054,552.36,Brake Bros Foodservice Ltd,9490
Solihull MBC,Children & Education Services,Heart of England Academy,Catering Provisions,D20000,09/11/2012,12392058,435,Brake Bros Foodservice Ltd,9490
Solihull MBC,Children & Education Services,Shirley Heath Jnr,Catering Provisions,D20000,09/11/2012,12392072,258.82,Brake Bros Foodservice Ltd,9490
Solihull MBC,Children & Education Services,Langley Academy,Catering Provisions,D20000,09/11/2012,12392063,354.2,Brake Bros Foodservice Ltd,9490
Solihull MBC,Children & Education Services,Langley Academy,Catering Provisions,D20000,09/11/2012,12392071,275.41,Brake Bros Foodservice Ltd,9490
Solihull MBC,Children & Education Services,Arden Academy Catering,Catering Provisions,D20000,09/11/2012,12392053,461.9,Brake Bros Foodservice Ltd,9490
Solihull MBC,Children & Education Services,Light Hall Academy,Catering Provisions,D20000,27/11/2012,12439203,301.46,Brake Bros Foodservice Ltd,9490
Solihull MBC,Children & Education Services,Smithswood,Catering Provisions,D20000,27/11/2012,12439191,483.91,Brake Bros Foodservice Ltd,9490
Solihull MBC,Children & Education Services,Smithswood,Catering Provisions,D20000,27/11/2012,12439192,393.5,Brake Bros Foodservice Ltd,9490
Solihull MBC,Children & Education Services,John Henry Newman Caterg,Catering Provisions,D20000,27/11/2012,12439188,443.8,Brake Bros Foodservice Ltd,9490
Solihull MBC,Children & Education Services,John Henry Newman Caterg,Catering Provisions,D20000,27/11/2012,12439201,313.46,Brake Bros Foodservice Ltd,9490
Solihull MBC,Children & Education Services,George Fentham J&I,Catering Provisions,D20000,27/11/2012,12439207,263.26,Brake Bros Foodservice Ltd,9490
Solihull MBC,Children & Education Services,Lyndon,Catering Provisions,D20000,27/11/2012,12439184,657.64,Brake Bros Foodservice Ltd,9490
Solihull MBC,Children & Education Services,Lyndon,Catering Provisions,D20000,27/11/2012,12439187,447.9,Brake Bros Foodservice Ltd,9490
Solihull MBC,Children & Education Services,St Anne's J&I,Catering Provisions,D20000,27/11/2012,12439200,318.36,Brake Bros Foodservice Ltd,9490
Solihull MBC,Children & Education Services,Ulverley J&I,Catering Provisions,D20000,27/11/2012,12439204,294.28,Brake Bros Foodservice Ltd,9490
Solihull MBC,Children & Education Services,Monkspath,Catering Provisions,D20000,27/11/2012,12439206,283.83,Brake Bros Foodservice Ltd,9490
Solihull MBC,Children & Education Services,Lode Heath Academy,Catering Provisions,D20000,27/11/2012,12439189,528.72,Brake Bros Foodservice Ltd,9490
Solihull MBC,Children & Education Services,Alderbrook Academy,Catering Provisions,D20000,27/11/2012,12439190,411.45,Brake Bros Foodservice Ltd,9490
Solihull MBC,Children & Education Services,Alderbrook Academy,Catering Provisions,D20000,27/11/2012,12439183,678.18,Brake Bros Foodservice Ltd,9490
Solihull MBC,Children & Education Services,Greswold J&I,Catering Provisions,D20000,27/11/2012,12439194,411.84,Brake Bros Foodservice Ltd,9490
Solihull MBC,Children & Education Services,Arden Academy Catering,Catering Provisions,D20000,27/11/2012,12439180,681.1,Brake Bros Foodservice Ltd,9490
Solihull MBC,Children & Education Services,Arden Academy Catering,Catering Provisions,D20000,27/11/2012,12439186,546.11,Brake Bros Foodservice Ltd,9490
Solihull MBC,Children & Education Services,Parkhall Academy Catering,Catering Provisions,D20000,27/11/2012,12439179,853.4,Brake Bros Foodservice Ltd,9490
Solihull MBC,Children & Education Services,Parkhall Academy Catering,Catering Provisions,D20000,27/11/2012,12439198,297.3,Brake Bros Foodservice Ltd,9490
Solihull MBC,Children & Education Services,Vending,Catering Provisions,D20000,27/11/2012,12439199,270.25,Brake Bros Foodservice Ltd,9490
Solihull MBC,Children & Education Services,Dickens Heath,Catering Provisions,D20000,27/11/2012,12439202,310.61,Brake Bros Foodservice Ltd,9490
Solihull MBC,Children & Education Services,Dorridge Inf,Catering Provisions,D20000,27/11/2012,12439197,369.92,Brake Bros Foodservice Ltd,9490
Solihull MBC,Children & Education Services,Heart of England Academy,Catering Provisions,D20000,27/11/2012,12439182,783.66,Brake Bros Foodservice Ltd,9490
Solihull MBC,Children & Education Services,Heart of England Academy,Catering Provisions,D20000,27/11/2012,12439185,495.85,Brake Bros Foodservice Ltd,9490
Solihull MBC,Children & Education Services,Langley Academy,Catering Provisions,D20000,27/11/2012,12439196,375.03,Brake Bros Foodservice Ltd,9490
Solihull MBC,Children & Education Services,Langley Academy,Catering Provisions,D20000,27/11/2012,12439181,660.3,Brake Bros Foodservice Ltd,9490
Solihull MBC,Children & Education Services,Balsall Common Academy,Catering Provisions,D20000,27/11/2012,12439205,286.35,Brake Bros Foodservice Ltd,9490
Solihull MBC,Children & Education Services,Arden Academy Catering,Catering Provisions,D20000,27/11/2012,12439193,370.5,Brake Bros Foodservice Ltd,9490
Solihull MBC,Children & Education Services,Arden Academy Catering,Catering Provisions,D20000,27/11/2012,12439195,398.69,Brake Bros Foodservice Ltd,9490
Solihull MBC,Children & Education Services,Sharmans Cross Jnr,Catering Provisions,D20000,29/11/2012,12441852,326.34,Brake Bros Foodservice Ltd,9490
Solihull MBC,Children & Education Services,Light Hall Academy,Catering Provisions,D20000,29/11/2012,12441857,276.99,Brake Bros Foodservice Ltd,9490
Solihull MBC,Children & Education Services,Hatchford Brook Jnr,Catering Provisions,D20000,29/11/2012,12441850,336.92,Brake Bros Foodservice Ltd,9490
Solihull MBC,Children & Education Services,Smithswood,Catering Provisions,D20000,29/11/2012,12441841,521.19,Brake Bros Foodservice Ltd,9490
Solihull MBC,Children & Education Services,Smithswood,Catering Provisions,D20000,29/11/2012,12441845,386.05,Brake Bros Foodservice Ltd,9490
Solihull MBC,Children & Education Services,Marston Grn Inf,Catering Provisions,D20000,29/11/2012,12441861,251.24,Brake Bros Foodservice Ltd,9490
Solihull MBC,Children & Education Services,Windy Arbour J&I,Catering Provisions,D20000,29/11/2012,12441855,285.25,Brake Bros Foodservice Ltd,9490
Solihull MBC,Children & Education Services,John Henry Newman Caterg,Catering Provisions,D20000,29/11/2012,12441846,440.02,Brake Bros Foodservice Ltd,9490
Solihull MBC,Children & Education Services,John Henry Newman Caterg,Catering Provisions,D20000,29/11/2012,12441847,364.1,Brake Bros Foodservice Ltd,9490
Solihull MBC,Children & Education Services,Coleshill Hth Inf,Catering Provisions,D20000,29/11/2012,12441853,319.08,Brake Bros Foodservice Ltd,9490
Solihull MBC,Children & Education Services,Langley Jnr,Catering Provisions,D20000,29/11/2012,12441859,269.9,Brake Bros Foodservice Ltd,9490
Solihull MBC,Children & Education Services,Parkhall Academy Catering,Catering Provisions,D20000,29/11/2012,12441830,735.31,Brake Bros Foodservice Ltd,9490
Solihull MBC,Children & Education Services,Parkhall Academy Catering,Catering Provisions,D20000,29/11/2012,12441837,464.4,Brake Bros Foodservice Ltd,9490
Solihull MBC,Children & Education Services,Alderbrook Academy,Catering Provisions,D20000,29/11/2012,12441829,794.53,Brake Bros Foodservice Ltd,9490
Solihull MBC,Children & Education Services,Alderbrook Academy,Catering Provisions,D20000,29/11/2012,12441844,413.15,Brake Bros Foodservice Ltd,9490
Solihull MBC,Children & Education Services,Hatchford Community School,Catering Provisions,D20000,29/11/2012,12441849,338.8,Brake Bros Foodservice Ltd,9490
Solihull MBC,Children & Education Services,Lode Heath Academy,Catering Provisions,D20000,29/11/2012,12441833,586.51,Brake Bros Foodservice Ltd,9490
Solihull MBC,Children & Education Services,Lode Heath Academy,Catering Provisions,D20000,29/11/2012,12441836,471.05,Brake Bros Foodservice Ltd,9490
Solihull MBC,Children & Education Services,Lyndon,Catering Provisions,D20000,29/11/2012,12441840,435.45,Brake Bros Foodservice Ltd,9490
Solihull MBC,Children & Education Services,Lyndon,Catering Provisions,D20000,29/11/2012,12441834,586.26,Brake Bros Foodservice Ltd,9490
Solihull MBC,Children & Education Services,Marston Grn Jnr,Catering Provisions,D20000,29/11/2012,12441848,407.81,Brake Bros Foodservice Ltd,9490
Solihull MBC,Children & Education Services,Arden Academy Catering,Catering Provisions,D20000,29/11/2012,12441843,503.94,Brake Bros Foodservice Ltd,9490
Solihull MBC,Children & Education Services,Arden Academy Catering,Catering Provisions,D20000,29/11/2012,12441835,472.85,Brake Bros Foodservice Ltd,9490
Solihull MBC,Children & Education Services,Our Lady Wayside J&I,Catering Provisions,D20000,29/11/2012,12441854,302.97,Brake Bros Foodservice Ltd,9490
Solihull MBC,Children & Education Services,Heart of England Academy,Catering Provisions,D20000,29/11/2012,12441838,446.6,Brake Bros Foodservice Ltd,9490
Solihull MBC,Children & Education Services,Heart of England Academy,Catering Provisions,D20000,29/11/2012,12441839,530.65,Brake Bros Foodservice Ltd,9490
Solihull MBC,Children & Education Services,Dorridge Jnr,Catering Provisions,D20000,29/11/2012,12441842,514.2,Brake Bros Foodservice Ltd,9490
Solihull MBC,Children & Education Services,Langley Academy,Catering Provisions,D20000,29/11/2012,12441831,589.3,Brake Bros Foodservice Ltd,9490
Solihull MBC,Children & Education Services,Langley Academy,Catering Provisions,D20000,29/11/2012,12441860,251.67,Brake Bros Foodservice Ltd,9490
Solihull MBC,Children & Education Services,Arden Academy Catering,Catering Provisions,D20000,29/11/2012,12441858,274.9,Brake Bros Foodservice Ltd,9490
Solihull MBC,Children & Education Services,Arden Academy Catering,Catering Provisions,D20000,29/11/2012,12441832,518.1,Brake Bros Foodservice Ltd,9490
Solihull MBC,Children & Education Services,Bentley Heath J&I,Catering Provisions,D20000,29/11/2012,12441856,285.01,Brake Bros Foodservice Ltd,9490
Solihull MBC,Children & Education Services,Arden Academy Catering,Catering Provisions,D20000,29/11/2012,12441851,277.3,Brake Bros Foodservice Ltd,9490
Solihull MBC,Children & Education Services,Smithswood,Catering Provisions,D20000,30/11/2012,12442335,413.19,Brake Bros Foodservice Ltd,9490
Solihull MBC,Children & Education Services,Smithswood,Catering Provisions,D20000,30/11/2012,12442336,335.35,Brake Bros Foodservice Ltd,9490
Solihull MBC,Children & Education Services,Light Hall Academy,Catering Provisions,D20000,30/11/2012,12442342,335.72,Brake Bros Foodservice Ltd,9490
Solihull MBC,Children & Education Services,Dorridge Inf,Catering Provisions,D20000,30/11/2012,12442334,445.85,Brake Bros Foodservice Ltd,9490
Solihull MBC,Children & Education Services,George Fentham J&I,Catering Provisions,D20000,30/11/2012,12442344,322.79,Brake Bros Foodservice Ltd,9490
Solihull MBC,Children & Education Services,St Anne's J&I,Catering Provisions,D20000,30/11/2012,12442346,303.95,Brake Bros Foodservice Ltd,9490
Solihull MBC,Children & Education Services,Greswold J&I,Catering Provisions,D20000,30/11/2012,12442341,340.95,Brake Bros Foodservice Ltd,9490
Solihull MBC,Children & Education Services,John Henry Newman Caterg,Catering Provisions,D20000,30/11/2012,12442330,522.48,Brake Bros Foodservice Ltd,9490
Solihull MBC,Children & Education Services,John Henry Newman Caterg,Catering Provisions,D20000,30/11/2012,12442327,480.65,Brake Bros Foodservice Ltd,9490
Solihull MBC,Children & Education Services,Parkhall Academy Catering,Catering Provisions,D20000,30/11/2012,12442321,673.45,Brake Bros Foodservice Ltd,9490
Solihull MBC,Children & Education Services,Parkhall Academy Catering,Catering Provisions,D20000,30/11/2012,12442322,733.87,Brake Bros Foodservice Ltd,9490
Solihull MBC,Children & Education Services,Vending,Catering Provisions,D20000,30/11/2012,12442349,221.1,Brake Bros Foodservice Ltd,9490
Solihull MBC,Children & Education Services,Alderbrook Academy,Catering Provisions,D20000,30/11/2012,12442332,399.95,Brake Bros Foodservice Ltd,9490
Solihull MBC,Children & Education Services,Alderbrook Academy,Catering Provisions,D20000,30/11/2012,12442324,693.94,Brake Bros Foodservice Ltd,9490
Solihull MBC,Children & Education Services,Lyndon,Catering Provisions,D20000,30/11/2012,12442333,399.7,Brake Bros Foodservice Ltd,9490
Solihull MBC,Children & Education Services,Lyndon,Catering Provisions,D20000,30/11/2012,12442328,559.9,Brake Bros Foodservice Ltd,9490
Solihull MBC,Children & Education Services,Arden Academy Catering,Catering Provisions,D20000,30/11/2012,12442331,418.35,Brake Bros Foodservice Ltd,9490
Solihull MBC,Children & Education Services,Arden Academy Catering,Catering Provisions,D20000,30/11/2012,12442348,265.33,Brake Bros Foodservice Ltd,9490
Solihull MBC,Children & Education Services,Knowle Jnr,Catering Provisions,D20000,30/11/2012,12442343,330.2,Brake Bros Foodservice Ltd,9490
Solihull MBC,Children & Education Services,Lode Heath Academy,Catering Provisions,D20000,30/11/2012,12442339,322.95,Brake Bros Foodservice Ltd,9490
Solihull MBC,Children & Education Services,Lode Heath Academy,Catering Provisions,D20000,30/11/2012,12442326,579.63,Brake Bros Foodservice Ltd,9490
Solihull MBC,Children & Education Services,Dickens Heath,Catering Provisions,D20000,30/11/2012,12442347,286.64,Brake Bros Foodservice Ltd,9490
Solihull MBC,Children & Education Services,Heart of England Academy,Catering Provisions,D20000,30/11/2012,12442323,595.6,Brake Bros Foodservice Ltd,9490
Solihull MBC,Children & Education Services,Heart of England Academy,Catering Provisions,D20000,30/11/2012,12442325,585.23,Brake Bros Foodservice Ltd,9490
Solihull MBC,Children & Education Services,Bishop Wilson J&I,Catering Provisions,D20000,30/11/2012,12442340,367.89,Brake Bros Foodservice Ltd,9490
Solihull MBC,Children & Education Services,Langley Academy,Catering Provisions,D20000,30/11/2012,12442337,333.5,Brake Bros Foodservice Ltd,9490
Solihull MBC,Children & Education Services,St George & St Teresa J&I,Catering Provisions,D20000,30/11/2012,12442338,392.97,Brake Bros Foodservice Ltd,9490
Solihull MBC,Children & Education Services,Arden Academy Catering,Catering Provisions,D20000,30/11/2012,12442345,311.05,Brake Bros Foodservice Ltd,9490
Solihull MBC,Children & Education Services,Arden Academy Catering,Catering Provisions,D20000,30/11/2012,12442329,451.55,Brake Bros Foodservice Ltd,9490
Solihull MBC,Cultural & Related Services,Theatre Bar,Furniture & Equipment,D10000,29/11/2012,12447246,439.09,Brakes Catering Equipment,226333
Solihull MBC,Cultural & Related Services,Theatre Bar,Furniture & Equipment,D10000,29/11/2012,12447246,439.09,Brakes Catering Equipment,226333
Solihull MBC,Cultural & Related Services,Theatre Bar,Furniture & Equipment,D10000,29/11/2012,12447246,-439.09,Brakes Catering Equipment,226333
Solihull MBC,Central Services to the Public,Tenant Works,Repair & Maintn Of Buildings,B31000,30/11/2012,12442119,676.2,Brandset Associates,9500
Solihull MBC,Children & Education Services,Hazel Oak,Capitation,D11001,04/10/2012,PC66657,924.9,Brave Internet Ltd,Purchase Card Supplier
Solihull MBC,Children & Education Services,Sch Assets Sup Team - SAST,Car Allowances: Officers,C10000,09/11/2012,12391279,3000,Briar Associates,144043
Solihull MBC,Other Housing Services,Hsg Enabling Programme,Consultants,Y31000,19/11/2012,12416845,1870,Bridgehouse Property Consultants,236671
Solihull MBC,Children & Education Services,North Solihull Colab,Capitation,D11001,27/11/2012,12437098,4620,Bright Pi Education Consultancy Ltd,2368687
Solihull MBC,Children & Education Services,Yorkswood J&I,Capitation,D11001,27/11/2012,12437098,4620,Bright Pi Education Consultancy Ltd,2368687
Solihull MBC,Children & Education Services,Yorkswood J&I,Capitation,D11001,27/11/2012,12437098,-4620,Bright Pi Education Consultancy Ltd,2368687
Solihull MBC,Adult Social Care,Court Of Protection,General Creditors,S00000,07/11/2012,12388162,317.92,British Gas (Appointee & Cop Clients Only),284896
Solihull MBC,Environmental and Regulatory Services,Town Centres and Events,Furniture & Equipment,D10000,27/11/2012,12439097,372.5,British Red Cross Society,9643
Solihull MBC,Cultural & Related Services,Theatre Bar,Catering Provisions,D20000,14/11/2012,12403568,413.08,Britvic Soft Drinks Ltd,9656
Solihull MBC,Adult Social Care,LD Spot Comm Care,ASC - Residential Care Permanent,E20003,05/11/2012,12384028,7240.32,Broadham Care Ltd,1146598
Solihull MBC,Adult Social Care,OP - North Spot Comm Care,ASC - Domiciliary Care,E20008,12/11/2012,12393621,556.25,Broadoaks Homecare Agency Ltd,96497
Solihull MBC,Adult Social Care,OP - North Spot Comm Care,ASC - Domiciliary Care,E20008,12/11/2012,12393620,1316.88,Broadoaks Homecare Agency Ltd,96497
Solihull MBC,Adult Social Care,OP - North Spot Comm Care,ASC - Domiciliary Care,E20008,12/11/2012,12393622,406.25,Broadoaks Homecare Agency Ltd,96497
Solihull MBC,Adult Social Care,OP South Spot Comm Care,ASC - Domiciliary Care,E20008,12/11/2012,12393586,387.5,Broadoaks Homecare Agency Ltd,96497
Solihull MBC,Adult Social Care,OP - North Spot Comm Care,ASC - Domiciliary Care,E20008,12/11/2012,12393613,387.5,Broadoaks Homecare Agency Ltd,96497
Solihull MBC,Adult Social Care,OP - North Spot Comm Care,ASC - Domiciliary Care,E20008,12/11/2012,12393580,356.25,Broadoaks Homecare Agency Ltd,96497
Solihull MBC,Adult Social Care,PD Spot Comm Care,ASC - Domiciliary Care,E20008,12/11/2012,12393608,278.13,Broadoaks Homecare Agency Ltd,96497
Solihull MBC,Adult Social Care,OP - North Spot Comm Care,ASC - Domiciliary Care,E20008,12/11/2012,12393597,375,Broadoaks Homecare Agency Ltd,96497
Solihull MBC,Adult Social Care,PD Spot Comm Care,ASC - Domiciliary Care,E20008,12/11/2012,12393618,831.25,Broadoaks Homecare Agency Ltd,96497
Solihull MBC,Adult Social Care,OP - Central Spot Comm Care,ASC - Out of hospital,E20012,12/11/2012,12393610,1750,Broadoaks Homecare Agency Ltd,96497
Solihull MBC,Adult Social Care,OP - North Spot Comm Care,ASC - Domiciliary Care,E20008,12/11/2012,12393584,1550,Broadoaks Homecare Agency Ltd,96497
Solihull MBC,Adult Social Care,OP - North Spot Comm Care,ASC - Domiciliary Care,E20008,12/11/2012,12393611,434.38,Broadoaks Homecare Agency Ltd,96497
Solihull MBC,Adult Social Care,OP - North Spot Comm Care,ASC - Domiciliary Care,E20008,12/11/2012,12393593,387.5,Broadoaks Homecare Agency Ltd,96497
Solihull MBC,Adult Social Care,OP - North Spot Comm Care,ASC - Domiciliary Care,E20008,12/11/2012,12393609,475,Broadoaks Homecare Agency Ltd,96497
Solihull MBC,Adult Social Care,OP - North Spot Comm Care,ASC - Domiciliary Care,E20008,12/11/2012,12393605,631.25,Broadoaks Homecare Agency Ltd,96497
Solihull MBC,Adult Social Care,OP South Spot Comm Care,ASC - Domiciliary Care,E20008,12/11/2012,12393606,1356.25,Broadoaks Homecare Agency Ltd,96497
Solihull MBC,Adult Social Care,OP - North Spot Comm Care,ASC - Domiciliary Care,E20008,12/11/2012,12393587,737.5,Broadoaks Homecare Agency Ltd,96497
Solihull MBC,Adult Social Care,OP South Spot Comm Care,ASC - Domiciliary Care,E20008,12/11/2012,12393617,387.5,Broadoaks Homecare Agency Ltd,96497
Solihull MBC,Adult Social Care,OP South Spot Comm Care,ASC - Domiciliary Care,E20008,12/11/2012,12393616,387.5,Broadoaks Homecare Agency Ltd,96497
Solihull MBC,Adult Social Care,OP - North Spot Comm Care,ASC - Domiciliary Care,E20008,12/11/2012,12393612,775,Broadoaks Homecare Agency Ltd,96497
Solihull MBC,Adult Social Care,OP - North Spot Comm Care,ASC - Domiciliary Care,E20008,12/11/2012,12393585,968.75,Broadoaks Homecare Agency Ltd,96497
Solihull MBC,Adult Social Care,PD Spot Comm Care,ASC - Domiciliary Care,E20008,12/11/2012,12393600,356.25,Broadoaks Homecare Agency Ltd,96497
Solihull MBC,Adult Social Care,OP - North Spot Comm Care,ASC - Domiciliary Care,E20008,12/11/2012,12393595,668.75,Broadoaks Homecare Agency Ltd,96497
Solihull MBC,Adult Social Care,OP - North Spot Comm Care,ASC - Domiciliary Care,E20008,12/11/2012,12393615,775,Broadoaks Homecare Agency Ltd,96497
Solihull MBC,Adult Social Care,OP South Spot Comm Care,ASC - Domiciliary Care,E20008,12/11/2012,12393603,871.88,Broadoaks Homecare Agency Ltd,96497
Solihull MBC,Adult Social Care,OP - North Spot Comm Care,ASC - Domiciliary Care,E20008,12/11/2012,12393582,362.5,Broadoaks Homecare Agency Ltd,96497
Solihull MBC,Adult Social Care,OP - North Spot Comm Care,ASC - Domiciliary Care,E20008,12/11/2012,12393588,337.5,Broadoaks Homecare Agency Ltd,96497
Solihull MBC,Adult Social Care,OP - North Spot Comm Care,ASC - Domiciliary Care,E20008,12/11/2012,12393602,484.38,Broadoaks Homecare Agency Ltd,96497
Solihull MBC,Adult Social Care,OP - North Spot Comm Care,ASC - Domiciliary Care,E20008,12/11/2012,12393581,593.75,Broadoaks Homecare Agency Ltd,96497
Solihull MBC,Adult Social Care,OP - North Spot Comm Care,ASC - Domiciliary Care,E20008,12/11/2012,12393592,1743.75,Broadoaks Homecare Agency Ltd,96497
Solihull MBC,Adult Social Care,OP - North Spot Comm Care,ASC - Domiciliary Care,E20008,12/11/2012,12393589,581.25,Broadoaks Homecare Agency Ltd,96497
Solihull MBC,Children & Education Services,16+ Childrens Placements,Privately Rented Accommodation,E29008,12/11/2012,12394036,216.75,Bromford Housing Association Ltd T/A Bromford Housing Group Ltd,60417
Solihull MBC,Children & Education Services,16+ Childrens Placements,Privately Rented Accommodation,E29008,12/11/2012,12394036,326,Bromford Housing Association Ltd T/A Bromford Housing Group Ltd,60417
Solihull MBC,Adult Social Care,Senior Management Group,Other Contracted Services,E29000,07/11/2012,12388178,71048.68,Bromford Housing Association Ltd T/A Bromford Housing Group Ltd,60417
Solihull MBC,Adult Social Care,Senior Management Group,Other Contracted Services,E29000,07/11/2012,12388521,71048.68,Bromford Housing Association Ltd T/A Bromford Housing Group Ltd,60417
Solihull MBC,Adult Social Care,Senior Management Group,Other Contracted Services,E29000,07/11/2012,12388521,-71048.68,Bromford Housing Association Ltd T/A Bromford Housing Group Ltd,60417
Solihull MBC,Adult Social Care,Senior Management Group,Other Contracted Services,E29000,07/11/2012,12388521,71048.68,Bromford Housing Association Ltd T/A Bromford Housing Group Ltd,60417
Solihull MBC,Children & Education Services,16+ Childrens Placements,Privately Rented Accommodation,E29008,09/11/2012,12391328,370.17,Bromford Housing Association Ltd T/A Bromford Housing Group Ltd,60417
Solihull MBC,Children & Education Services,16+ Childrens Placements,Privately Rented Accommodation,E29008,09/11/2012,12391328,370.17,Bromford Housing Association Ltd T/A Bromford Housing Group Ltd,60417
Solihull MBC,Adult Social Care,SP - Teenage Parents,Block Contracts,E21001,27/11/2012,12437204,1752.23,Bromford Housing Association Ltd T/A Bromford Housing Group Ltd,60417
Solihull MBC,Adult Social Care,SP - Teenage Parents,Block Contracts,E21001,27/11/2012,12437205,3342.61,Bromford Housing Association Ltd T/A Bromford Housing Group Ltd,60417
Solihull MBC,Adult Social Care,SP - Generic,Block Contracts,E21001,27/11/2012,12437209,3279.26,Bromford Housing Association Ltd T/A Bromford Housing Group Ltd,60417
Solihull MBC,Adult Social Care,SP - Teenage Parents,Block Contracts,E21001,27/11/2012,12437203,2567.71,Bromford Housing Association Ltd T/A Bromford Housing Group Ltd,60417
Solihull MBC,Adult Social Care,SP - People With Physical Disabiilities,Other Contracted Services,E29000,27/11/2012,12437210,2185.32,Bromford Housing Association Ltd T/A Bromford Housing Group Ltd,60417
Solihull MBC,Adult Social Care,SP - Learning Disabilities,Other Contracted Services,E29000,27/11/2012,12437212,19602.66,Bromford Housing Association Ltd T/A Bromford Housing Group Ltd,60417
Solihull MBC,Adult Social Care,SP - Learning Disabilities,Other Contracted Services,E29000,29/11/2012,12441645,3582.3,Bromford Housing Association Ltd T/A Bromford Housing Group Ltd,60417
Solihull MBC,Adult Social Care,SP - Old People Support Needs,Other Contracted Services,E29000,27/11/2012,12437207,1294.16,Bromford Housing Association Ltd T/A Bromford Housing Group Ltd,60417
Solihull MBC,Adult Social Care,SP - Young Vulnerable People,Block Contracts,E21001,27/11/2012,12437206,2621.74,Bromford Housing Association Ltd T/A Bromford Housing Group Ltd,60417
Solihull MBC,Adult Social Care,SP - People With Physical Disabiilities,Other Contracted Services,E29000,27/11/2012,12437211,1652.28,Bromford Housing Association Ltd T/A Bromford Housing Group Ltd,60417
Solihull MBC,Adult Social Care,SP - Single Homeless,Block Contracts,E21001,27/11/2012,12437202,3986.18,Bromford Housing Association Ltd T/A Bromford Housing Group Ltd,60417
Solihull MBC,Adult Social Care,SP - Learning Disabilities,Other Contracted Services,E29000,27/11/2012,12437213,1593.72,Bromford Housing Association Ltd T/A Bromford Housing Group Ltd,60417
Solihull MBC,Children & Education Services,St Peter's,Capitation,D11001,27/11/2012,12437134,300.83,Browns Books,31621
Solihull MBC,Children & Education Services,St Peter's,Capitation,D11001,09/11/2012,12391776,6,Browns Books,31621
Solihull MBC,Children & Education Services,St Peter's,Capitation,D11001,09/11/2012,12391776,431.76,Browns Books,31621
Solihull MBC,Environmental and Regulatory Services,Waste Collection,Agency Staff,A35000,19/11/2012,12417078,177.6,Brownstown Civil Engineering Ltd,412598
Solihull MBC,Highways & Transport Services,Street Lighting Contract 1,Agency Staff,A35000,19/11/2012,12417078,177.6,Brownstown Civil Engineering Ltd,412598
Solihull MBC,Environmental and Regulatory Services,Bereavement Services,Agency Staff,A35000,19/11/2012,12417078,88.8,Brownstown Civil Engineering Ltd,412598
Solihull MBC,Environmental and Regulatory Services,Waste Collection,Agency Staff,A35000,19/11/2012,12417079,182.4,Brownstown Civil Engineering Ltd,412598
Solihull MBC,Highways & Transport Services,Street Lighting Contract 1,Agency Staff,A35000,19/11/2012,12417079,182.4,Brownstown Civil Engineering Ltd,412598
Solihull MBC,Environmental and Regulatory Services,Bereavement Services,Agency Staff,A35000,19/11/2012,12417079,91.2,Brownstown Civil Engineering Ltd,412598
Solihull MBC,Environmental and Regulatory Services,Waste Collection,Agency Staff,A35000,19/11/2012,12417081,216,Brownstown Civil Engineering Ltd,412598
Solihull MBC,Highways & Transport Services,Street Lighting Contract 1,Agency Staff,A35000,19/11/2012,12417081,216,Brownstown Civil Engineering Ltd,412598
Solihull MBC,Environmental and Regulatory Services,Bereavement Services,Agency Staff,A35000,19/11/2012,12417081,108,Brownstown Civil Engineering Ltd,412598
Solihull MBC,Highways & Transport Services,Street Lighting Contract 1,Agency Staff,A35000,20/11/2012,12427103,407,Brownstown Civil Engineering Ltd,412598
Solihull MBC,Highways & Transport Services,Street Lighting Contract 1,Agency Staff,A35000,20/11/2012,12427101,407,Brownstown Civil Engineering Ltd,412598
Solihull MBC,Highways & Transport Services,Street Lighting Contract 1,Agency Staff,A35000,20/11/2012,12427098,407,Brownstown Civil Engineering Ltd,412598
Solihull MBC,Highways & Transport Services,Street Lighting Contract 1,Agency Staff,A35000,20/11/2012,12427095,407,Brownstown Civil Engineering Ltd,412598
Solihull MBC,Highways & Transport Services,Street Lighting Contract 1,Other Contracted Services,E29000,20/11/2012,12427050,1625,Brownstown Civil Engineering Ltd,412598
Solihull MBC,Highways & Transport Services,Street Lighting Contract 1,Agency Staff,A35000,23/11/2012,12435486,177.6,Brownstown Civil Engineering Ltd,412598
Solihull MBC,Environmental and Regulatory Services,Waste Collection,Agency Staff,A35000,23/11/2012,12435486,177.6,Brownstown Civil Engineering Ltd,412598
Solihull MBC,Environmental and Regulatory Services,Bereavement Services,Agency Staff,A35000,23/11/2012,12435486,88.8,Brownstown Civil Engineering Ltd,412598
Solihull MBC,Highways & Transport Services,Street Lighting Contract 1,Agency Staff,A35000,23/11/2012,12435485,177.6,Brownstown Civil Engineering Ltd,412598
Solihull MBC,Environmental and Regulatory Services,Waste Collection,Agency Staff,A35000,23/11/2012,12435485,177.6,Brownstown Civil Engineering Ltd,412598
Solihull MBC,Environmental and Regulatory Services,Bereavement Services,Agency Staff,A35000,23/11/2012,12435485,88.8,Brownstown Civil Engineering Ltd,412598
Solihull MBC,Highways & Transport Services,Street Lighting Contract 1,Agency Staff,A35000,23/11/2012,12435484,180,Brownstown Civil Engineering Ltd,412598
Solihull MBC,Environmental and Regulatory Services,Waste Collection,Agency Staff,A35000,23/11/2012,12435484,180,Brownstown Civil Engineering Ltd,412598
Solihull MBC,Environmental and Regulatory Services,Bereavement Services,Agency Staff,A35000,23/11/2012,12435484,90,Brownstown Civil Engineering Ltd,412598
Solihull MBC,Highways & Transport Services,Street Lighting Contract 1,Other Contracted Services,E29000,20/11/2012,12427025,1625,Brownstown Civil Engineering Ltd,412598
Solihull MBC,Highways & Transport Services,Street Lighting Contract 1,Other Contracted Services,E29000,20/11/2012,12427027,-1625,Brownstown Civil Engineering Ltd,412598
Solihull MBC,Highways & Transport Services,Street Lighting Contract 1,Other Contracted Services,E29000,20/11/2012,12427027,1625,Brownstown Civil Engineering Ltd,412598
Solihull MBC,Highways & Transport Services,Street Lighting Contract 1,Other Contracted Services,E29000,20/11/2012,12427027,1625,Brownstown Civil Engineering Ltd,412598
Solihull MBC,Highways & Transport Services,Street Lighting Contract 1,Other Contracted Services,E29000,20/11/2012,12427027,-650,Brownstown Civil Engineering Ltd,412598
Solihull MBC,Highways & Transport Services,Street Lighting Contract 1,Other Contracted Services,E29000,20/11/2012,12427027,650,Brownstown Civil Engineering Ltd,412598
Solihull MBC,Highways & Transport Services,Street Lighting Contract 1,Other Contracted Services,E29000,20/11/2012,12427059,325,Brownstown Civil Engineering Ltd,412598
Solihull MBC,Children & Education Services,St Peter's,Capitation,D11001,20/11/2012,12422805,-335.07,Brynteg Books,8974
Solihull MBC,Children & Education Services,St Peter's,Capitation,D11001,20/11/2012,12427335,-37.23,Brynteg Books,8974
Solihull MBC,Children & Education Services,St Peter's,Capitation,D11001,20/11/2012,12427335,406.3,Brynteg Books,8974
Solihull MBC,Children & Education Services,St Peter's,Capitation,D11001,20/11/2012,12427335,13.6,Brynteg Books,8974
Solihull MBC,Children & Education Services,St Peter's,Capitation,D11001,20/11/2012,12427335,372.3,Brynteg Books,8974
Solihull MBC,Children & Education Services,St Peter's,Capitation,D11001,20/11/2012,12427335,-40.63,Brynteg Books,8974
Solihull MBC,Environmental and Regulatory Services,Pub Protc Strat & Support,Grant & Subscription (SCITT),D92000,15/11/2012,12407600,1458,BSI (British Standard Institute),200078
Solihull MBC,Children & Education Services,EICTs Trading Account,IT Equipment & Software,D32000,09/11/2012,12391291,3.56,BT Business Direct Ltd,241969
Solihull MBC,Children & Education Services,EICTs Trading Account,IT Equipment & Software,D32000,09/11/2012,12391291,256.18,BT Business Direct Ltd,241969
Solihull MBC,Children & Education Services,EICTs Trading Account,IT Equipment & Software,D32000,09/11/2012,12391293,2094.95,BT Business Direct Ltd,241969
Solihull MBC,Children & Education Services,Lyndon,Software Licenses & Support,D32906,20/11/2012,12427423,5078.24,BT Business Direct Ltd,241969
Solihull MBC,Children & Education Services,EICTs Trading Account,IT Equipment & Software,D32000,14/11/2012,12403587,256.18,BT Business Direct Ltd,241969
Solihull MBC,Children & Education Services,EICTs Trading Account,IT Equipment & Software,D32000,14/11/2012,12403587,3.56,BT Business Direct Ltd,241969
Solihull MBC,Children & Education Services,Lyndon,Consumables,D32907,20/11/2012,12426929,785.85,BT Business Direct Ltd,241969
Solihull MBC,Children & Education Services,Lyndon,IT Equipment & Software,D32000,27/11/2012,12439144,326.93,BT Business Direct Ltd,241969
Solihull MBC,Children & Education Services,Lyndon,Consumables,D32907,27/11/2012,12439144,195.43,BT Business Direct Ltd,241969
Solihull MBC,Children & Education Services,Lyndon,IT Equipment & Software,D32000,27/11/2012,12439144,-326.93,BT Business Direct Ltd,241969
Solihull MBC,Children & Education Services,Lyndon,Consumables,D32907,27/11/2012,12439144,-195.43,BT Business Direct Ltd,241969
Solihull MBC,Children & Education Services,Lyndon,IT Equipment & Software,D32000,27/11/2012,12439144,522.36,BT Business Direct Ltd,241969
Solihull MBC,Children & Education Services,Lyndon,Consumables,D32907,27/11/2012,12439146,418.4,BT Business Direct Ltd,241969
Solihull MBC,Central Services to the Public,Social Care ICT,Telephones,D30000,07/11/2012,12388440,661.71,BT Global Services,138961
Solihull MBC,Central Services to the Public,BT - One Bill,General Creditors,S00000,12/11/2012,12392572,8266.3,BT Global Services,138961
Solihull MBC,Highways & Transport Services,A45 Cov Rd Railway Bridge South,Contractors,Y21000,12/11/2012,12392510,3110,BT Group Engineering Services,208503
Solihull MBC,Environmental and Regulatory Services,CCTV Revenue Account,Other Contracted Services,E29000,23/11/2012,12435461,5760.1,BT Redcare,78028
Solihull MBC,Children & Education Services,Our Lady Wayside J&I,Employee Advertising,A34001,22/11/2012,12433270,250,Bullivant Media,689643
Solihull MBC,Children & Education Services,Fostering Team,Advertising/Publicity/Promotion,D93000,28/11/2012,12441551,244,Bullivant Media Ltd,239118
Solihull MBC,Central Services to the Public,Contact Service Support,Clothing & Uniforms,D91000,09/11/2012,12391334,-344.13,Burlington Uniforms Ltd,9696
Solihull MBC,Central Services to the Public,Contact Service Support,Clothing & Uniforms,D91000,09/11/2012,12391333,848.03,Burlington Uniforms Ltd,9696
Solihull MBC,Children & Education Services,Coleshill Heath J&I,Stationery,D41000,08/11/2012,12390222,398,Business It Online,282259
Solihull MBC,Children & Education Services,Widney Jnr,Photocopying,D40001,08/11/2012,12390705,23.75,Business It Online,282259
Solihull MBC,Children & Education Services,Widney Jnr,Photocopying,D40001,08/11/2012,12390705,204,Business It Online,282259
Solihull MBC,Central Services to the Public,ICT Data Base Analysis,IT Equipment & Software,D32000,26/11/2012,12436586,4562.28,Business Systems International,257608
Solihull MBC,Central Services to the Public,ICT Data Base Analysis,IT Equipment & Software,D32000,26/11/2012,12436586,2027.68,Business Systems International,257608
Solihull MBC,Central Services to the Public,ICT Data Base Analysis,IT Equipment & Software,D32000,26/11/2012,12436586,12364.8,Business Systems International,257608
Solihull MBC,Central Services to the Public,ICT Data Base Analysis,IT Equipment & Software,D32000,26/11/2012,12436586,1012,Business Systems International,257608
Solihull MBC,Central Services to the Public,ICT Data Base Analysis,IT Equipment & Software,D32000,26/11/2012,12436586,2584,Business Systems International,257608
Solihull MBC,Children & Education Services,St Andrew's J&I,Telephones,D30000,08/11/2012,12390814,225,Business Telecom Solutions Ltd,65462
Solihull MBC,Children & Education Services,Grants For Private Sector,Grant & Subscription (SCITT),D92000,26/11/2012,12437659,5633.78,Busy Bees Childcare Ltd,48320
Solihull MBC,Children & Education Services,2Yr Old Free E Learn/Care,Grant & Subscription (SCITT),D92000,15/11/2012,12410661,679,Busy Little Bees Nursery,52108
Solihull MBC,Children & Education Services,Grants For Private Sector,Grant & Subscription (SCITT),D92000,15/11/2012,12410660,7509.99,Busy Little Bees Nursery,52108
Solihull MBC,Adult Social Care,3 Gates,Catering Provisions,D20000,12/10/2012,PC01794,217.69,Butlins Holidays,Purchase Card Supplier
Solihull MBC,Children & Education Services,Grants For Private Sector,Grant & Subscription (SCITT),D92000,26/11/2012,12437662,10444.35,Buttercups & Dandelions Day Nursery,143990
Solihull MBC,Children & Education Services,UASC 16+,External Fostering,E29006,12/11/2012,12392468,-1278.57,By The Bridge,108127
Solihull MBC,Children & Education Services,16+ Childrens Placements,External Fostering,E29006,02/11/2012,12380481,4061,By The Bridge,108127
Solihull MBC,Children & Education Services,UASC 16+,External Fostering,E29006,09/11/2012,12391222,3643.93,By The Bridge,108127
Solihull MBC,Children & Education Services,UASC U16,External Fostering,E29006,09/11/2012,12391223,3835.71,By The Bridge,108127
Solihull MBC,Children & Education Services,UASC 16+,External Fostering,E29006,09/11/2012,12391219,4191.14,By The Bridge,108127
Solihull MBC,Children & Education Services,UASC 16+,External Fostering,E29006,09/11/2012,12391219,0.29,By The Bridge,108127
Solihull MBC,Children & Education Services,UASC 16+,External Fostering,E29006,09/11/2012,12391220,3835.71,By The Bridge,108127
Solihull MBC,Children & Education Services,UASC 16+,External Fostering,E29006,09/11/2012,12391221,3835.71,By The Bridge,108127
Solihull MBC,Children & Education Services,16+ Childrens Placements,External Fostering,E29006,02/11/2012,12380477,4331.14,By The Bridge,108127
Solihull MBC,Children & Education Services,16+ Childrens Placements,External Fostering,E29006,02/11/2012,12380482,3565,By The Bridge,108127
Solihull MBC,Children & Education Services,16+ Childrens Placements,External Fostering,E29006,02/11/2012,12380479,3963.57,By The Bridge,108127
Solihull MBC,Children & Education Services,Chapel Fields Jnr,Professional Fees,D51000,15/11/2012,12410689,560,C & H Bradbury Limited,105573
Solihull MBC,Highways & Transport Services,North Solihull Cycle Route,Contractors,Y21000,13/11/2012,12400470,444130.2,C A Blackwell (Contracts) Ltd,2274688
Solihull MBC,Housing Revenue Account,IT Consumables,IT Equipment & Software,D32000,13/11/2012,12400472,2500,Cadspec,121799
Solihull MBC,Cultural & Related Services,Theatre Bar,Catering Provisions,D20000,02/11/2012,12380515,18.35,Cafe Azzurro Ltd,140593
Solihull MBC,Cultural & Related Services,Theatre Bar,Catering Provisions,D20000,02/11/2012,12380515,279.95,Cafe Azzurro Ltd,140593
Solihull MBC,Cultural & Related Services,Theatre Bar,Catering Provisions,D20000,02/11/2012,12380534,293.71,Cafe Azzurro Ltd,140593
Solihull MBC,Cultural & Related Services,Theatre Bar,Catering Provisions,D20000,02/11/2012,12380534,77.77,Cafe Azzurro Ltd,140593
Solihull MBC,Cultural & Related Services,Theatre Bar,Catering Provisions,D20000,02/11/2012,12380565,438.61,Cafe Azzurro Ltd,140593
Solihull MBC,Cultural & Related Services,Theatre Bar,Catering Provisions,D20000,22/11/2012,12433344,390.03,Cafe Azzurro Ltd,140593
Solihull MBC,Cultural & Related Services,Theatre Bar,Catering Provisions,D20000,27/11/2012,12438919,253.28,Cafe Azzurro Ltd,140593
Solihull MBC,Highways & Transport Services,JDT Client Monitoring,General Debtors,R20000,12/11/2012,12393876,7031.17,Calibre Advisory Services Ltd,9757
Solihull MBC,Children & Education Services,Chapel Fields Jnr,Refuse Collection,B43001,22/10/2012,PC46794,252,Call A Skip,Purchase Card Supplier
Solihull MBC,Children & Education Services,Ind Schools/ Non Maintained,Other Contracted Services,E29000,27/11/2012,12437109,-4635.81,Cambian Asperger Syndrome Services Ltd,1691616
Solihull MBC,Children & Education Services,Section 17 Family Support,Other Contracted Services,E29000,27/11/2012,12437109,-4635.8,Cambian Asperger Syndrome Services Ltd,1691616
Solihull MBC,Children & Education Services,Haslucks Green Jnr,Training,A32000,26/11/2012,12437685,2153.35,Cambridge Education Ltd,232590
Solihull MBC,Children & Education Services,Widney Jnr,Building Maint Day To Day,B31001,21/11/2012,12432837,5880,Camera One Limited,70631
Solihull MBC,Children & Education Services,Lyndon,Health & Safety,B43003,27/11/2012,12439289,470,Camera One Limited,70631
Solihull MBC,Children & Education Services,Kineton Green Primary,Building Maint Planned,B31002,27/11/2012,12439430,6180,Camera One Limited,70631
Solihull MBC,Children & Education Services,Lyndon,Health & Safety,B43003,27/11/2012,12439286,235,Camera One Limited,70631
Solihull MBC,Children & Education Services,Yew Tree J&I,Building Maint Planned,B31002,29/11/2012,12447094,374,Camera One Limited,70631
Solihull MBC,Central Services to the Public,Contact Service Support,General Office Expenses,D42000,09/11/2012,12391130,524.2,Canon (UK) Ltd,9772
Solihull MBC,Central Services to the Public,Contact Service Support,General Office Expenses,D42000,09/11/2012,12391130,-1400,Canon (UK) Ltd,9772
Solihull MBC,Central Services to the Public,Contact Service Support,General Office Expenses,D42000,09/11/2012,12391130,1400,Canon (UK) Ltd,9772
Solihull MBC,Children & Education Services,Grants For Private Sector,Grant & Subscription (SCITT),D92000,15/11/2012,12410664,1440.6,Capellas Nursery,229940
Solihull MBC,Children & Education Services,Research & Policy,Training,A32000,08/11/2012,12390629,1150,Capita Business Services Ltd,9778
Solihull MBC,Children & Education Services,Lyndon,Software Licenses & Support,D32906,20/11/2012,12425517,4200,Capita Business Services Ltd,9778
Solihull MBC,Planning & Development Services,Craig Croft Village Centre,Consultants,Y31000,09/11/2012,12391144,12600,Capita Symonds Ltd,218112
Solihull MBC,Cultural & Related Services,Libraries Resources Fund,Materials,D11000,21/11/2012,12432723,335,Capital Ideas Financial Publishing Ltd,221069
Solihull MBC,Adult Social Care,ASC - Joint Stores,Furniture & Equipment,D10000,29/11/2012,12441632,995,Capitol Mobility Services Ltd,58000
Solihull MBC,Adult Social Care,SP - Travellers,Block Contracts,E21001,27/11/2012,12437214,4692.61,Cara Irish Housing Association,127592
Solihull MBC,Adult Social Care,MH Spot Comm Care,ASC - Domiciliary Care,E20008,01/11/2012,12374967,564.16,Caraston Hall Support & Living,689675
Solihull MBC,Children & Education Services,Int Fostering Cdt,Other Contracted Services,E29000,19/11/2012,12416890,6200,Care & Management Services Ltd,273213
Solihull MBC,Children & Education Services,16+ Childrens Placements,Privately Rented Accommodation,E29008,07/11/2012,12388519,2071.42,Care & Management Services Ltd,273213
Solihull MBC,Children & Education Services,16+ Childrens Placements,Privately Rented Accommodation,E29008,07/11/2012,12388517,13285.71,Care & Management Services Ltd,273213
Solihull MBC,Children & Education Services,Int. Fostering CIC,Other Contracted Services,E29000,02/11/2012,12380528,12400,Care & Management Services Ltd,273213
Solihull MBC,Children & Education Services,UASC 16+,Other Contracted Services,E29000,12/11/2012,12392532,9720,Care & Management Services Ltd,273213
Solihull MBC,Adult Social Care,OP - Central Spot Comm Care,ASC - Residential Care Permanent,E20003,05/11/2012,12383982,1120.03,Care First Class UK Ltd,2013614
Solihull MBC,Adult Social Care,OP - Central Spot Comm Care,ASC - Domiciliary Care,E20008,12/11/2012,12393520,521.85,Care Help Line (Solihull) Ltd,9791
Solihull MBC,Adult Social Care,OP South Spot Comm Care,ASC - Domiciliary Care,E20008,12/11/2012,12393521,1543.5,Care Help Line (Solihull) Ltd,9791
Solihull MBC,Adult Social Care,OP South Spot Comm Care,ASC - Domiciliary Care,E20008,12/11/2012,12393522,786.45,Care Help Line (Solihull) Ltd,9791
Solihull MBC,Adult Social Care,OP South Spot Comm Care,ASC - Domiciliary Care,E20008,12/11/2012,12393523,1139.56,Care Help Line (Solihull) Ltd,9791
Solihull MBC,Adult Social Care,PD Spot Comm Care,ASC - Domiciliary Care,E20008,12/11/2012,12393524,882,Care Help Line (Solihull) Ltd,9791
Solihull MBC,Adult Social Care,OP - Central Spot Comm Care,ASC - Domiciliary Care,E20008,12/11/2012,12393525,683.55,Care Help Line (Solihull) Ltd,9791
Solihull MBC,Adult Social Care,OP - Central Spot Comm Care,ASC - Domiciliary Care,E20008,12/11/2012,12393526,1139.56,Care Help Line (Solihull) Ltd,9791
Solihull MBC,Adult Social Care,OP - Central Spot Comm Care,ASC - Domiciliary Care,E20008,12/11/2012,12393527,2205.52,Care Help Line (Solihull) Ltd,9791
Solihull MBC,Adult Social Care,OP - Central Spot Comm Care,ASC - Domiciliary Care,E20008,12/11/2012,12393529,922.57,Care Help Line (Solihull) Ltd,9791
Solihull MBC,Adult Social Care,OP South Spot Comm Care,ASC - Domiciliary Care,E20008,12/11/2012,12393531,1566.02,Care Help Line (Solihull) Ltd,9791
Solihull MBC,Adult Social Care,OP South Spot Comm Care,ASC - Domiciliary Care,E20008,12/11/2012,12393532,396.9,Care Help Line (Solihull) Ltd,9791
Solihull MBC,Adult Social Care,OP - Central Spot Comm Care,ASC - Domiciliary Care,E20008,12/11/2012,12393533,569.78,Care Help Line (Solihull) Ltd,9791
Solihull MBC,Adult Social Care,OP - Central Spot Comm Care,ASC - Domiciliary Care,E20008,12/11/2012,12393534,749.7,Care Help Line (Solihull) Ltd,9791
Solihull MBC,Adult Social Care,PD Spot Comm Care,ASC - Domiciliary Care,E20008,12/11/2012,12393535,1216.67,Care Help Line (Solihull) Ltd,9791
Solihull MBC,Adult Social Care,MH Spot Comm Care,ASC - Domiciliary Care,E20008,12/11/2012,12393536,521.85,Care Help Line (Solihull) Ltd,9791
Solihull MBC,Adult Social Care,OP - Central Spot Comm Care,ASC - Domiciliary Care,E20008,12/11/2012,12393537,735,Care Help Line (Solihull) Ltd,9791
Solihull MBC,Adult Social Care,PD Spot Comm Care,ASC - Domiciliary Care,E20008,12/11/2012,12393538,904.2,Care Help Line (Solihull) Ltd,9791
Solihull MBC,Adult Social Care,OP South Spot Comm Care,ASC - Domiciliary Care,E20008,12/11/2012,12393540,455.7,Care Help Line (Solihull) Ltd,9791
Solihull MBC,Adult Social Care,OP - Central Spot Comm Care,ASC - Domiciliary Care,E20008,12/11/2012,12393541,294,Care Help Line (Solihull) Ltd,9791
Solihull MBC,Adult Social Care,OP South Spot Comm Care,ASC - Domiciliary Care,E20008,12/11/2012,12393542,683.55,Care Help Line (Solihull) Ltd,9791
Solihull MBC,Adult Social Care,OP - Central Spot Comm Care,ASC - Domiciliary Care,E20008,12/11/2012,12393544,1481.18,Care Help Line (Solihull) Ltd,9791
Solihull MBC,Adult Social Care,OP South Spot Comm Care,ASC - Domiciliary Care,E20008,12/11/2012,12393545,367.64,Care Help Line (Solihull) Ltd,9791
Solihull MBC,Adult Social Care,OP - Central Spot Comm Care,ASC - Domiciliary Care,E20008,12/11/2012,12393546,488.8,Care Help Line (Solihull) Ltd,9791
Solihull MBC,Adult Social Care,OP - Central Spot Comm Care,ASC - Domiciliary Care,E20008,12/11/2012,12393547,1823.11,Care Help Line (Solihull) Ltd,9791
Solihull MBC,Adult Social Care,PD Spot Comm Care,ASC - Domiciliary Care,E20008,12/11/2012,12393550,455.7,Care Help Line (Solihull) Ltd,9791
Solihull MBC,Adult Social Care,OP South Spot Comm Care,ASC - Domiciliary Care,E20008,12/11/2012,12393551,569.78,Care Help Line (Solihull) Ltd,9791
Solihull MBC,Adult Social Care,LD Spot Comm Care,ASC - Domiciliary Care,E20008,12/11/2012,12393552,1631.7,Care Help Line (Solihull) Ltd,9791
Solihull MBC,Adult Social Care,OP - Central Spot Comm Care,ASC - Domiciliary Care,E20008,12/11/2012,12393553,341.93,Care Help Line (Solihull) Ltd,9791
Solihull MBC,Adult Social Care,OP - Central Spot Comm Care,ASC - Domiciliary Care,E20008,12/11/2012,12393554,911.4,Care Help Line (Solihull) Ltd,9791
Solihull MBC,Adult Social Care,PD Spot Comm Care,ASC - Domiciliary Care,E20008,12/11/2012,12393555,698.25,Care Help Line (Solihull) Ltd,9791
Solihull MBC,Adult Social Care,PD Spot Comm Care,ASC - Domiciliary Care,E20008,12/11/2012,12393557,911.4,Care Help Line (Solihull) Ltd,9791
Solihull MBC,Adult Social Care,OP - Central Spot Comm Care,ASC - Domiciliary Care,E20008,12/11/2012,12393558,569.78,Care Help Line (Solihull) Ltd,9791
Solihull MBC,Adult Social Care,OP South Spot Comm Care,ASC - Domiciliary Care,E20008,12/11/2012,12393559,374.85,Care Help Line (Solihull) Ltd,9791
Solihull MBC,Adult Social Care,OP South Spot Comm Care,ASC - Domiciliary Care,E20008,12/11/2012,12393560,1036.54,Care Help Line (Solihull) Ltd,9791
Solihull MBC,Adult Social Care,OP South Spot Comm Care,ASC - Domiciliary Care,E20008,12/11/2012,12393561,455.7,Care Help Line (Solihull) Ltd,9791
Solihull MBC,Adult Social Care,OP - Central Spot Comm Care,ASC - Domiciliary Care,E20008,12/11/2012,12393562,488.82,Care Help Line (Solihull) Ltd,9791
Solihull MBC,Adult Social Care,OP - Central Spot Comm Care,ASC - Domiciliary Care,E20008,12/11/2012,12393564,937.28,Care Help Line (Solihull) Ltd,9791
Solihull MBC,Adult Social Care,OP - Central Spot Comm Care,ASC - Domiciliary Care,E20008,12/11/2012,12393565,1837.5,Care Help Line (Solihull) Ltd,9791
Solihull MBC,Adult Social Care,OP - Central Spot Comm Care,ASC - Domiciliary Care,E20008,12/11/2012,12393566,815.85,Care Help Line (Solihull) Ltd,9791
Solihull MBC,Adult Social Care,OP South Spot Comm Care,ASC - Domiciliary Care,E20008,12/11/2012,12393567,1594.95,Care Help Line (Solihull) Ltd,9791
Solihull MBC,Adult Social Care,OP South Spot Comm Care,ASC - Domiciliary Care,E20008,12/11/2012,12393568,441,Care Help Line (Solihull) Ltd,9791
Solihull MBC,Adult Social Care,OP - Central Spot Comm Care,ASC - Domiciliary Care,E20008,12/11/2012,12393569,683.55,Care Help Line (Solihull) Ltd,9791
Solihull MBC,Adult Social Care,OP - Central Spot Comm Care,ASC - Domiciliary Care,E20008,12/11/2012,12393570,911.4,Care Help Line (Solihull) Ltd,9791
Solihull MBC,Adult Social Care,OP - Central Spot Comm Care,ASC - Domiciliary Care,E20008,12/11/2012,12393571,808.5,Care Help Line (Solihull) Ltd,9791
Solihull MBC,Adult Social Care,OP South Spot Comm Care,ASC - Domiciliary Care,E20008,12/11/2012,12393572,1367.1,Care Help Line (Solihull) Ltd,9791
Solihull MBC,Adult Social Care,OP South Spot Comm Care,ASC - Domiciliary Care,E20008,22/11/2012,12432985,1249.65,Care Help Line (Solihull) Ltd,9791
Solihull MBC,Adult Social Care,OP - Central Spot Comm Care,ASC - Domiciliary Care,E20008,12/11/2012,12393575,264.6,Care Help Line (Solihull) Ltd,9791
Solihull MBC,Adult Social Care,OP - Central Spot Comm Care,ASC - Domiciliary Care,E20008,12/11/2012,12393576,1142.93,Care Help Line (Solihull) Ltd,9791
Solihull MBC,Adult Social Care,PD Spot Comm Care,ASC - Domiciliary Care,E20008,30/11/2012,12447572,2693,Care Services,9792
Solihull MBC,Adult Social Care,OP - North Spot Comm Care,ASC - Domiciliary Care,E20008,30/11/2012,12447573,400,Care Services,9792
Solihull MBC,Adult Social Care,PD Spot Comm Care,ASC - Domiciliary Care,E20008,30/11/2012,12447570,4188.8,Care Services,9792
Solihull MBC,Adult Social Care,PD Spot Comm Care,ASC - Domiciliary Care,E20008,30/11/2012,12447574,1807.45,Care Services,9792
Solihull MBC,Adult Social Care,OP - Central Spot Comm Care,ASC - Domiciliary Care,E20008,30/11/2012,12447575,898.7,Care Services,9792
Solihull MBC,Adult Social Care,PD Spot Comm Care,ASC - Domiciliary Care,E20008,30/11/2012,12447576,4045.5,Care Services,9792
Solihull MBC,Adult Social Care,PD Spot Comm Care,ASC - Domiciliary Care,E20008,30/11/2012,12447571,276,Care Services,9792
Solihull MBC,Adult Social Care,OP - Central Spot Comm Care,ASC - Domiciliary Care,E20008,30/11/2012,12447577,1746.9,Care Services,9792
Solihull MBC,Adult Social Care,PD Spot Comm Care,ASC - Domiciliary Care,E20008,01/11/2012,12374941,2684,Care Services,9792
Solihull MBC,Adult Social Care,OP - North Spot Comm Care,ASC - Domiciliary Care,E20008,01/11/2012,12374942,320,Care Services,9792
Solihull MBC,Adult Social Care,PD Spot Comm Care,ASC - Domiciliary Care,E20008,01/11/2012,12374937,4166.45,Care Services,9792
Solihull MBC,Adult Social Care,PD Spot Comm Care,ASC - Domiciliary Care,E20008,01/11/2012,12374944,1336,Care Services,9792
Solihull MBC,Adult Social Care,OP - Central Spot Comm Care,ASC - Domiciliary Care,E20008,01/11/2012,12374945,726.55,Care Services,9792
Solihull MBC,Adult Social Care,PD Spot Comm Care,ASC - Domiciliary Care,E20008,01/11/2012,12374947,3962.5,Care Services,9792
Solihull MBC,Adult Social Care,PD Spot Comm Care,ASC - Domiciliary Care,E20008,01/11/2012,12374939,320,Care Services,9792
Solihull MBC,Adult Social Care,OP - Central Spot Comm Care,ASC - Domiciliary Care,E20008,01/11/2012,12374949,1720,Care Services,9792
Solihull MBC,Adult Social Care,LD Spot Comm Care,ASC - Residential Care Permanent,E20003,05/11/2012,12383977,7989.59,Care Through The Millenium,15660
Solihull MBC,Adult Social Care,LD Spot Comm Care,ASC - Residential Care Permanent,E20003,05/11/2012,12383974,5102.82,Care Through The Millenium,15660
Solihull MBC,Adult Social Care,LD Spot Comm Care,ASC - Residential Care Permanent,E20003,05/11/2012,12383975,6308.99,Care Through The Millenium,15660
Solihull MBC,Adult Social Care,LD Spot Comm Care,ASC - Residential Care Permanent,E20003,05/11/2012,12383976,8286.79,Care Through The Millenium,15660
Solihull MBC,Adult Social Care,OP South Spot Comm Care,ASC - Nursing Care Permanent,E20005,05/11/2012,12384076,1542.96,Care UK Community Partnerships Ltd,1763634
Solihull MBC,Adult Social Care,OP - Central Spot Comm Care,ASC - Residential Care Permanent,E20003,05/11/2012,12384075,1382.64,Care UK Community Partnerships Ltd,1763634
Solihull MBC,Children & Education Services,Section 17 CDT,Clients Expenses,D62000,26/11/2012,12436540,1119,Carebase,689680
Solihull MBC,Adult Social Care,OP South Spot Comm Care,ASC - Domiciliary Care,E20008,14/11/2012,12405600,575.07,Caremark Redditch & Bromsgrove,689682
Solihull MBC,Adult Social Care,OP - Central Spot Comm Care,ASC - Domiciliary Care,E20008,14/11/2012,12405601,387.5,Caremark Redditch & Bromsgrove,689682
Solihull MBC,Adult Social Care,OP South Spot Comm Care,ASC - Domiciliary Care,E20008,14/11/2012,12405602,678.28,Caremark Redditch & Bromsgrove,689682
Solihull MBC,Adult Social Care,OP South Spot Comm Care,ASC - Domiciliary Care,E20008,14/11/2012,12405603,575,Caremark Redditch & Bromsgrove,689682
Solihull MBC,Adult Social Care,OP - Central Spot Comm Care,ASC - Domiciliary Care,E20008,14/11/2012,12405604,975.31,Caremark Redditch & Bromsgrove,689682
Solihull MBC,Adult Social Care,OP South Spot Comm Care,ASC - Domiciliary Care,E20008,14/11/2012,12405607,387.5,Caremark Redditch & Bromsgrove,689682
Solihull MBC,Adult Social Care,OP - Central Spot Comm Care,ASC - Domiciliary Care,E20008,14/11/2012,12405608,581.25,Caremark Redditch & Bromsgrove,689682
Solihull MBC,Adult Social Care,OP South Spot Comm Care,ASC - Domiciliary Care,E20008,14/11/2012,12405609,431.38,Caremark Redditch & Bromsgrove,689682
Solihull MBC,Adult Social Care,OP South Spot Comm Care,ASC - Domiciliary Care,E20008,14/11/2012,12405610,825,Caremark Redditch & Bromsgrove,689682
Solihull MBC,Adult Social Care,OP South Spot Comm Care,ASC - Domiciliary Care,E20008,14/11/2012,12405612,847.03,Caremark Redditch & Bromsgrove,689682
Solihull MBC,Adult Social Care,OP South Spot Comm Care,ASC - Domiciliary Care,E20008,14/11/2012,12405613,775,Caremark Redditch & Bromsgrove,689682
Solihull MBC,Adult Social Care,OP South Spot Comm Care,ASC - Domiciliary Care,E20008,14/11/2012,12405614,543.75,Caremark Redditch & Bromsgrove,689682
Solihull MBC,Adult Social Care,OP South Spot Comm Care,ASC - Out of hospital,E20012,14/11/2012,12405615,543.75,Caremark Redditch & Bromsgrove,689682
Solihull MBC,Adult Social Care,OP South Spot Comm Care,ASC - Domiciliary Care,E20008,14/11/2012,12405616,862.5,Caremark Redditch & Bromsgrove,689682
Solihull MBC,Adult Social Care,OP South Spot Comm Care,ASC - Domiciliary Care,E20008,14/11/2012,12405617,475,Caremark Redditch & Bromsgrove,689682
Solihull MBC,Adult Social Care,OP South Spot Comm Care,ASC - Domiciliary Care,E20008,14/11/2012,12405619,275,Caremark Redditch & Bromsgrove,689682
Solihull MBC,Adult Social Care,OP South Spot Comm Care,ASC - Domiciliary Care,E20008,14/11/2012,12405621,543.75,Caremark Redditch & Bromsgrove,689682
Solihull MBC,Adult Social Care,OP South Spot Comm Care,ASC - Domiciliary Care,E20008,14/11/2012,12405623,565.67,Caremark Redditch & Bromsgrove,689682
Solihull MBC,Adult Social Care,OP South Spot Comm Care,ASC - Domiciliary Care,E20008,14/11/2012,12405624,452.01,Caremark Redditch & Bromsgrove,689682
Solihull MBC,Adult Social Care,OP South Spot Comm Care,ASC - Domiciliary Care,E20008,14/11/2012,12405628,809.44,Caremark Redditch & Bromsgrove,689682
Solihull MBC,Adult Social Care,OP - Central Spot Comm Care,ASC - Domiciliary Care,E20008,14/11/2012,12405629,484.53,Caremark Redditch & Bromsgrove,689682
Solihull MBC,Adult Social Care,OP - Central Spot Comm Care,ASC - Domiciliary Care,E20008,14/11/2012,12405632,443.75,Caremark Redditch & Bromsgrove,689682
Solihull MBC,Adult Social Care,OP South Spot Comm Care,ASC - Domiciliary Care,E20008,14/11/2012,12405635,755.82,Caremark Redditch & Bromsgrove,689682
Solihull MBC,Adult Social Care,OP South Spot Comm Care,ASC - Domiciliary Care,E20008,14/11/2012,12405636,681.25,Caremark Redditch & Bromsgrove,689682
Solihull MBC,Adult Social Care,OP South Spot Comm Care,ASC - Domiciliary Care,E20008,14/11/2012,12405637,763.23,Caremark Redditch & Bromsgrove,689682
Solihull MBC,Adult Social Care,OP South Spot Comm Care,ASC - Domiciliary Care,E20008,14/11/2012,12405638,533.52,Caremark Redditch & Bromsgrove,689682
Solihull MBC,Adult Social Care,OP South Spot Comm Care,ASC - Domiciliary Care,E20008,14/11/2012,12405639,689.13,Caremark Redditch & Bromsgrove,689682
Solihull MBC,Adult Social Care,OP South Spot Comm Care,ASC - Domiciliary Care,E20008,14/11/2012,12405642,262.62,Caremark Redditch & Bromsgrove,689682
Solihull MBC,Adult Social Care,OP South Spot Comm Care,ASC - Domiciliary Care,E20008,14/11/2012,12405643,581.25,Caremark Redditch & Bromsgrove,689682
Solihull MBC,Adult Social Care,OP - Central Spot Comm Care,ASC - Out of hospital,E20012,14/11/2012,12405466,518.75,Caremark Redditch & Bromsgrove,689682
Solihull MBC,Adult Social Care,OP - Central Spot Comm Care,ASC - Domiciliary Care,E20008,14/11/2012,12405468,368.75,Caremark Redditch & Bromsgrove,689682
Solihull MBC,Adult Social Care,OP - Central Spot Comm Care,ASC - Domiciliary Care,E20008,14/11/2012,12405469,962.5,Caremark Redditch & Bromsgrove,689682
Solihull MBC,Adult Social Care,OP South Spot Comm Care,ASC - Domiciliary Care,E20008,14/11/2012,12405472,1356.56,Caremark Redditch & Bromsgrove,689682
Solihull MBC,Adult Social Care,OP South Spot Comm Care,ASC - Domiciliary Care,E20008,14/11/2012,12405473,937.52,Caremark Redditch & Bromsgrove,689682
Solihull MBC,Adult Social Care,OP South Spot Comm Care,ASC - Domiciliary Care,E20008,14/11/2012,12405474,968.75,Caremark Redditch & Bromsgrove,689682
Solihull MBC,Adult Social Care,OP - North Spot Comm Care,ASC - Domiciliary Care,E20008,14/11/2012,12405476,425,Caremark Redditch & Bromsgrove,689682
Solihull MBC,Adult Social Care,York Dr & Danzey Gr block,ASC - Residential Care Permanent,E20003,08/11/2012,12389836,5521.5,Caretech Community Services,186238
Solihull MBC,Adult Social Care,York Dr & Danzey Gr block,ASC - Residential Care Permanent,E20003,08/11/2012,12389822,5521.5,Caretech Community Services,186238
Solihull MBC,Adult Social Care,York Dr & Danzey Gr block,ASC - Residential Care Permanent,E20003,08/11/2012,12389823,5521.5,Caretech Community Services,186238
Solihull MBC,Adult Social Care,York Dr & Danzey Gr block,ASC - Residential Care Permanent,E20003,08/11/2012,12389824,5521.5,Caretech Community Services,186238
Solihull MBC,Adult Social Care,York Dr & Danzey Gr block,ASC - Residential Care Permanent,E20003,08/11/2012,12389825,5176.74,Caretech Community Services,186238
Solihull MBC,Adult Social Care,York Dr & Danzey Gr block,ASC - Residential Care Permanent,E20003,08/11/2012,12389826,5176.74,Caretech Community Services,186238
Solihull MBC,Adult Social Care,York Dr & Danzey Gr block,ASC - Residential Care Permanent,E20003,08/11/2012,12389827,4993.61,Caretech Community Services,186238
Solihull MBC,Adult Social Care,York Dr & Danzey Gr block,ASC - Residential Care Permanent,E20003,08/11/2012,12389828,5176.74,Caretech Community Services,186238
Solihull MBC,Adult Social Care,York Dr & Danzey Gr block,ASC - Residential Care Permanent,E20003,08/11/2012,12389829,4993.61,Caretech Community Services,186238
Solihull MBC,Adult Social Care,York Dr & Danzey Gr block,ASC - Residential Care Permanent,E20003,08/11/2012,12389830,4989.09,Caretech Community Services,186238
Solihull MBC,Adult Social Care,York Dr & Danzey Gr block,ASC - Residential Care Permanent,E20003,08/11/2012,12389831,5176.74,Caretech Community Services,186238
Solihull MBC,Adult Social Care,York Dr & Danzey Gr block,ASC - Residential Care Permanent,E20003,08/11/2012,12389832,5011.33,Caretech Community Services,186238
Solihull MBC,Adult Social Care,York Dr & Danzey Gr block,ASC - Residential Care Permanent,E20003,08/11/2012,12389833,4989.09,Caretech Community Services,186238
Solihull MBC,Adult Social Care,York Dr & Danzey Gr block,ASC - Residential Care Permanent,E20003,08/11/2012,12389834,4993.61,Caretech Community Services,186238
Solihull MBC,Adult Social Care,York Dr & Danzey Gr block,ASC - Residential Care Permanent,E20003,08/11/2012,12389835,4554.03,Caretech Community Services,186238
Solihull MBC,Adult Social Care,Appointee Spend- I-Proc,General Creditors,S00000,12/11/2012,12392622,344.76,Caretech Community Services,186238
Solihull MBC,Adult Social Care,Appointee Spend- I-Proc,General Creditors,S00000,12/11/2012,12392623,344.76,Caretech Community Services,186238
Solihull MBC,Adult Social Care,Appointee Spend- I-Proc,General Creditors,S00000,12/11/2012,12392624,527.89,Caretech Community Services,186238
Solihull MBC,Adult Social Care,Appointee Spend- I-Proc,General Creditors,S00000,12/11/2012,12392628,535.41,Caretech Community Services,186238
Solihull MBC,Adult Social Care,Appointee Spend- I-Proc,General Creditors,S00000,12/11/2012,12392632,535.41,Caretech Community Services,186238
Solihull MBC,Adult Social Care,Appointee Spend- I-Proc,General Creditors,S00000,12/11/2012,12392635,527.89,Caretech Community Services,186238
Solihull MBC,Adult Social Care,York Dr & Danzey Gr block,ASC - Residential Care Permanent,E20003,08/11/2012,12389813,5176.74,Caretech Community Services,186238
Solihull MBC,Adult Social Care,York Dr & Danzey Gr block,ASC - Residential Care Permanent,E20003,08/11/2012,12389814,5176.74,Caretech Community Services,186238
Solihull MBC,Adult Social Care,York Dr & Danzey Gr block,ASC - Residential Care Permanent,E20003,08/11/2012,12389815,5110.31,Caretech Community Services,186238
Solihull MBC,Adult Social Care,York Dr & Danzey Gr block,ASC - Residential Care Permanent,E20003,08/11/2012,12389816,5176.74,Caretech Community Services,186238
Solihull MBC,Adult Social Care,York Dr & Danzey Gr block,ASC - Residential Care Permanent,E20003,08/11/2012,12389817,5176.74,Caretech Community Services,186238
Solihull MBC,Adult Social Care,York Dr & Danzey Gr block,ASC - Residential Care Permanent,E20003,08/11/2012,12389818,4989.41,Caretech Community Services,186238
Solihull MBC,Adult Social Care,York Dr & Danzey Gr block,ASC - Residential Care Permanent,E20003,08/11/2012,12389819,5176.74,Caretech Community Services,186238
Solihull MBC,Adult Social Care,York Dr & Danzey Gr block,ASC - Residential Care Permanent,E20003,08/11/2012,12389820,4993.61,Caretech Community Services,186238
Solihull MBC,Adult Social Care,York Dr & Danzey Gr block,ASC - Residential Care Permanent,E20003,08/11/2012,12389821,5198.88,Caretech Community Services,186238
Solihull MBC,Adult Social Care,Appointee Spend- I-Proc,General Creditors,S00000,12/11/2012,12392625,344.76,Caretech Community Services,186238
Solihull MBC,Adult Social Care,Appointee Spend- I-Proc,General Creditors,S00000,12/11/2012,12392626,411.19,Caretech Community Services,186238
Solihull MBC,Adult Social Care,Appointee Spend- I-Proc,General Creditors,S00000,12/11/2012,12392627,344.76,Caretech Community Services,186238
Solihull MBC,Adult Social Care,Appointee Spend- I-Proc,General Creditors,S00000,12/11/2012,12392629,344.76,Caretech Community Services,186238
Solihull MBC,Adult Social Care,Appointee Spend- I-Proc,General Creditors,S00000,12/11/2012,12392630,532.09,Caretech Community Services,186238
Solihull MBC,Adult Social Care,Appointee Spend- I-Proc,General Creditors,S00000,12/11/2012,12392631,344.76,Caretech Community Services,186238
Solihull MBC,Adult Social Care,Appointee Spend- I-Proc,General Creditors,S00000,12/11/2012,12392633,527.89,Caretech Community Services,186238
Solihull MBC,Adult Social Care,Appointee Spend- I-Proc,General Creditors,S00000,12/11/2012,12392636,322.62,Caretech Community Services,186238
Solihull MBC,Children & Education Services,Peterbrook J&I,Capitation,D11001,28/11/2012,12441544,253.29,Cartridge World Solihull,90956
Solihull MBC,Central Services to the Public,Community Initiatives Fund,Grant & Subscription (SCITT),D92000,08/11/2012,12390230,10789.5,Castle Bromwich Hall Gardens,9817
Solihull MBC,Adult Social Care,LD Spot Comm Care,ASC - Residential Care Permanent,E20003,05/11/2012,12383978,14709.5,Castlebeck Care Teesdale Ltd,688639
Solihull MBC,Children & Education Services,Yorkswood J&I,Training,A32000,22/11/2012,12433393,3500,Catch Up,239858
Solihull MBC,Environmental and Regulatory Services,Pub Protc Busn Compliance,Professional Fees,D51000,08/11/2012,12390972,2583.5,Cath Reay,120847
Solihull MBC,Children & Education Services,"Ex-School, Auckland Drive",Other Premise Costs,B43000,14/11/2012,12403577,242.66,Cathedral Leasing Ltd,9824
Solihull MBC,Central Services to the Public,Legal Services,Other Fees,D52000,08/11/2012,12390768,360,Catherine Rowlands,92338
Solihull MBC,Central Services to the Public,Legal Services,Other Fees,D52000,08/11/2012,12390789,1800,Catherine Rowlands,92338
Solihull MBC,Central Services to the Public,Legal Services,Other Fees,D52000,08/11/2012,12390788,1800,Catherine Rowlands,92338
Solihull MBC,Children & Education Services,St Mary & Margaret J&I,Capitation,D11001,23/11/2012,12434564,337.08,Cauliflower Cards Ltd,1713622
Solihull MBC,Planning & Development Services,Strategic Land,Professional Fees,D51000,20/11/2012,12424424,325,CB Richard Ellis Ltd,249912
Solihull MBC,Central Services to the Public,Training Facilities Upgra,Consultants,Y31000,20/11/2012,12424440,4140,CB Richard Ellis Ltd,249912
Solihull MBC,Children & Education Services,Kingshurst Primary,Health & Safety,B43003,16/11/2012,12416416,245,CCLI,230953
Solihull MBC,Children & Education Services,EICTs Trading Account,IT Equipment & Software,D32000,12/11/2012,12393795,334,CCS Media Ltd,9835
Solihull MBC,Children & Education Services,EICTs Trading Account,IT Equipment & Software,D32000,20/11/2012,12424633,278,CCS Media Ltd,9835
Solihull MBC,Children & Education Services,EICTs Trading Account,IT Equipment & Software,D32000,20/11/2012,12424540,2400,CCS Media Ltd,9835
Solihull MBC,Children & Education Services,EICTs Trading Account,IT Equipment & Software,D32000,20/11/2012,12424540,246,CCS Media Ltd,9835
Solihull MBC,Children & Education Services,EICTs Trading Account,IT Equipment & Software,D32000,20/11/2012,12424540,304,CCS Media Ltd,9835
Solihull MBC,Children & Education Services,EICTs Trading Account,IT Equipment & Software,D32000,20/11/2012,12424540,620,CCS Media Ltd,9835
Solihull MBC,Children & Education Services,EICTs Trading Account,IT Equipment & Software,D32000,27/11/2012,12439124,156,CCS Media Ltd,9835
Solihull MBC,Children & Education Services,EICTs Trading Account,IT Equipment & Software,D32000,27/11/2012,12439124,384,CCS Media Ltd,9835
Solihull MBC,Adult Social Care,ASC - Joint Stores,Furniture & Equipment,D10000,22/11/2012,12433382,116.94,Cefndy Healthcare,690607
Solihull MBC,Adult Social Care,ASC - Joint Stores,Furniture & Equipment,D10000,22/11/2012,12433382,174.41,Cefndy Healthcare,690607
Solihull MBC,Adult Social Care,ASC - Joint Stores,Furniture & Equipment,D10000,22/11/2012,12433382,226.96,Cefndy Healthcare,690607
Solihull MBC,Adult Social Care,ASC - Wheelchairs,Furniture & Equipment,D10000,12/11/2012,12392515,412.15,Cefndy Healthcare,690607
Solihull MBC,Children & Education Services,Extended Schools 15,Other Transport Costs,C42000,22/11/2012,12434422,701.22,Central Bodycraft Ltd,110038
Solihull MBC,Adult Social Care,PD Spot Comm Care,ASC - Nursing Care Permanent,E20005,05/11/2012,12383979,3319.44,Central England Healtcare Ltd,688645
Solihull MBC,Central Services to the Public,Legal Services,Training,A32000,02/11/2012,12380523,210,Central Law Training Ltd,208299
Solihull MBC,Cultural & Related Services,Arts Complex Hirings,Furniture & Equipment,D10000,22/11/2012,12433325,388.54,Central Theatre Supplies,9864
Solihull MBC,Children & Education Services,Hazel Oak,Building Maint Planned,B31002,13/11/2012,12398821,1332,Central Theatre Supplies,9864
Solihull MBC,Children & Education Services,Dorridge Inf,Furniture & Equipment,D10000,23/11/2012,12434498,3192,Central Theatre Supplies,9864
Solihull MBC,Highways & Transport Services,Speed Aware Programme,Grant & Subscription (SCITT),D92000,13/11/2012,12398754,15609.5,Centro,85433
Solihull MBC,Central Services to the Public,Green Travel Scheme,Other Fees,D52000,12/11/2012,12393770,14681,Centro,85433
Solihull MBC,Highways & Transport Services,Sunrise Warwick Rd Knowle,Contractors,Y21000,12/11/2012,12392524,7432.56,Centro,85433
Solihull MBC,Children & Education Services,Special Transport,Clients Transport Costs,C21000,12/11/2012,12393789,5841,Centro,85433
Solihull MBC,Children & Education Services,Primary Transport,Clients Transport Costs,C21000,12/11/2012,12393789,1858.5,Centro,85433
Solihull MBC,Children & Education Services,Secondary Transport,Clients Transport Costs,C21000,12/11/2012,12393789,12478.5,Centro,85433
Solihull MBC,Adult Social Care,LD - Centro Bus Passes,Clients Transport Costs,C21000,21/11/2012,12432828,938,Centro,85433
Solihull MBC,Central Services to the Public,Green Travel Scheme,Other Fees,D52000,30/11/2012,12442110,863.1,Centro,85433
Solihull MBC,Children & Education Services,Chapel Fields Jnr,Photocopying,D40001,15/11/2012,12410702,1587.66,CF Asset Finance Ltd,65277
Solihull MBC,Children & Education Services,Tidbury Green J&I,Printing,D40000,15/11/2012,12410706,322.43,CF Asset Finance Ltd,65277
Solihull MBC,Cultural & Related Services,Solihull Active,Professional Fees,D51000,12/11/2012,12393783,760,Chantel Hunter,2139764
Solihull MBC,Children & Education Services,Kingshurst Primary,Visits & Pupil Activities,D52002,29/11/2012,12441758,971,Chaplins Pantos,145131
Solihull MBC,Highways & Transport Services,Street Lighting Contract 1,Furniture & Equipment,D10000,08/11/2012,12390779,818.7,Charles Endirect Ltd,9885
Solihull MBC,Highways & Transport Services,Street Lighting Contract 1,Furniture & Equipment,D10000,08/11/2012,12390787,428.1,Charles Endirect Ltd,9885
Solihull MBC,Children & Education Services,Merstone,Professional Fees,D51000,06/11/2012,12382994,352,Charlotte Slater,2171694
Solihull MBC,Children & Education Services,Merstone,Professional Fees,D51000,19/11/2012,12416994,352,Charlotte Slater,2171694
Solihull MBC,Children & Education Services,North Area - Youth,Furniture & Equipment,D10000,02/11/2012,12380485,145,Charter Office Equipment Ltd,9886
Solihull MBC,Children & Education Services,North Area - Youth,Furniture & Equipment,D10000,02/11/2012,12380485,79.95,Charter Office Equipment Ltd,9886
Solihull MBC,Children & Education Services,North Area - Youth,Furniture & Equipment,D10000,02/11/2012,12380485,99.9,Charter Office Equipment Ltd,9886
Solihull MBC,Cultural & Related Services,Arts Complex Hirings,Furniture & Equipment,D10000,02/11/2012,12380487,324,Charter Office Equipment Ltd,9886
Solihull MBC,Children & Education Services,St Anne's J&I,Photocopying,D40001,28/11/2012,12442422,294.8,Charter Office Equipment Ltd,9886
Solihull MBC,Children & Education Services,St Anne's J&I,Capitation,D11001,27/11/2012,12439378,17.58,Charter Office Equipment Ltd,9886
Solihull MBC,Children & Education Services,St Anne's J&I,IT Equipment & Software,D32000,27/11/2012,12439378,78,Charter Office Equipment Ltd,9886
Solihull MBC,Children & Education Services,St Anne's J&I,IT Equipment & Software,D32000,27/11/2012,12439378,77.41,Charter Office Equipment Ltd,9886
Solihull MBC,Children & Education Services,St Anne's J&I,IT Equipment & Software,D32000,27/11/2012,12439378,82.94,Charter Office Equipment Ltd,9886
Solihull MBC,Children & Education Services,St Anne's J&I,IT Equipment & Software,D32000,27/11/2012,12439378,77.48,Charter Office Equipment Ltd,9886
Solihull MBC,Children & Education Services,St Anne's J&I,IT Equipment & Software,D32000,27/11/2012,12439377,83.36,Charter Office Equipment Ltd,9886
Solihull MBC,Children & Education Services,St Anne's J&I,IT Equipment & Software,D32000,27/11/2012,12439377,70.73,Charter Office Equipment Ltd,9886
Solihull MBC,Children & Education Services,St Anne's J&I,IT Equipment & Software,D32000,27/11/2012,12439377,81.32,Charter Office Equipment Ltd,9886
Solihull MBC,Children & Education Services,St Anne's J&I,IT Equipment & Software,D32000,27/11/2012,12439377,81.82,Charter Office Equipment Ltd,9886
Solihull MBC,Children & Education Services,Valley Inf,Furniture & Equipment,D10000,07/11/2012,12388544,296.9,Charter Office Equipment Ltd,9886
Solihull MBC,Children & Education Services,Windy Arbor J&I,Photocopying,D40001,12/11/2012,12392531,306.85,Charter Office Equipment Ltd,9886
Solihull MBC,Children & Education Services,Windy Arbor J&I,Photocopying,D40001,12/11/2012,12392531,-306.85,Charter Office Equipment Ltd,9886
Solihull MBC,Children & Education Services,Windy Arbor J&I,Photocopying,D40001,12/11/2012,12392531,305.35,Charter Office Equipment Ltd,9886
Solihull MBC,Central Services to the Public,Training Facilities Upgra,Furniture & Equipment,Y13000,09/11/2012,12391813,2943.7,Charter Office Equipment Ltd,9886
Solihull MBC,Central Services to the Public,I & A Management,Furniture & Equipment,D10000,29/11/2012,12441701,1620,Charter Office Equipment Ltd,9886
Solihull MBC,Children & Education Services,Catering Management,Furniture & Equipment,D10000,29/11/2012,12441778,7.9,Charter Office Equipment Ltd,9886
Solihull MBC,Children & Education Services,Catering Management,Furniture & Equipment,D10000,29/11/2012,12441778,143.8,Charter Office Equipment Ltd,9886
Solihull MBC,Children & Education Services,Catering Management,Furniture & Equipment,D10000,29/11/2012,12441778,159.8,Charter Office Equipment Ltd,9886
Solihull MBC,Children & Education Services,Catering Management,Furniture & Equipment,D10000,29/11/2012,12441778,284,Charter Office Equipment Ltd,9886
Solihull MBC,Children & Education Services,Monkspath J&I,Capitation,D11001,30/11/2012,12442313,185,Charter Office Equipment Ltd,9886
Solihull MBC,Children & Education Services,Monkspath J&I,Capitation,D11001,30/11/2012,12442313,45,Charter Office Equipment Ltd,9886
Solihull MBC,Children & Education Services,Castle Bromwich Jnr,Building Maint Planned,B31002,07/11/2012,12388419,13726,Charter Office Equipment Ltd,9886
Solihull MBC,Environmental and Regulatory Services,Pub Protc Busn Compliance,Materials,D11000,28/11/2012,12441508,463.95,Chartered Institute Of Environmental Health,120810
Solihull MBC,Environmental and Regulatory Services,Pub Protc Busn Compliance,Materials,D11000,28/11/2012,12441508,-568.95,Chartered Institute Of Environmental Health,120810
Solihull MBC,Environmental and Regulatory Services,Pub Protc Busn Compliance,Materials,D11000,28/11/2012,12441508,105,Chartered Institute Of Environmental Health,120810
Solihull MBC,Environmental and Regulatory Services,Pub Protc Busn Compliance,Materials,D11000,28/11/2012,12441508,568.95,Chartered Institute Of Environmental Health,120810
Solihull MBC,Adult Social Care,ASC - Chief Executive's Office,Professional Fees,D51000,15/11/2012,12411599,2400,Chartwell Projects Ltd,2681690
Solihull MBC,Adult Social Care,ASC - Chief Executive's Office,Professional Fees,D51000,15/11/2012,12411598,9000,Chartwell Projects Ltd,2681690
Solihull MBC,Adult Social Care,ASC - Chief Executive's Office,Professional Fees,D51000,21/11/2012,12430687,6300,Chartwell Projects Ltd,2681690
Solihull MBC,Adult Social Care,OP - North Spot Comm Care,ASC - Residential Care Permanent,E20003,05/11/2012,12383980,1197.39,Chasewood Lodge Residential Care,690625
Solihull MBC,Adult Social Care,OP - North Spot Comm Care,ASC - Residential Care Permanent,E20003,05/11/2012,12383981,1237.3,Chasewood Lodge Residential Care,690625
Solihull MBC,Children & Education Services,Our Lady Wayside J&I,Cleaning / Janitrl Materials,B40002,01/11/2012,12376357,1295,Chemiclean Products Ltd,2651689
Solihull MBC,Children & Education Services,LDC Stores,Cleaning,B40000,06/11/2012,12383127,572.05,Cherwell Packaging Ltd,69246
Solihull MBC,Children & Education Services,LDC Stores,Cleaning,B40000,06/11/2012,12383126,279.8,Cherwell Packaging Ltd,69246
Solihull MBC,Children & Education Services,LDC Stores,Cleaning,B40000,08/11/2012,12390746,343.6,Cherwell Packaging Ltd,69246
Solihull MBC,Children & Education Services,LDC Stores,Cleaning,B40000,20/11/2012,12427056,667.2,Cherwell Packaging Ltd,69246
Solihull MBC,Children & Education Services,LDC Stores,Cleaning,B40000,20/11/2012,12427060,476.72,Cherwell Packaging Ltd,69246
Solihull MBC,Children & Education Services,LDC Stores,Cleaning,B40000,29/11/2012,12441691,252.57,Cherwell Packaging Ltd,69246
Solihull MBC,Children & Education Services,LDC Stores,Cleaning,B40000,29/11/2012,12441693,219.2,Cherwell Packaging Ltd,69246
Solihull MBC,Children & Education Services,Heart of England Academy,Catering Provisions,D20000,15/11/2012,12410746,441.94,Chicken Joes,216133
Solihull MBC,Children & Education Services,Langley Academy,Catering Provisions,D20000,15/11/2012,12410745,365.2,Chicken Joes,216133
Solihull MBC,Children & Education Services,Arden Academy Catering,Catering Provisions,D20000,15/11/2012,12410743,1003.1,Chicken Joes,216133
Solihull MBC,Children & Education Services,Light Hall Academy,Catering Provisions,D20000,15/11/2012,12410742,290.84,Chicken Joes,216133
Solihull MBC,Children & Education Services,Alderbrook Academy,Catering Provisions,D20000,15/11/2012,12410740,331.48,Chicken Joes,216133
Solihull MBC,Children & Education Services,Heart of England Academy,Catering Provisions,D20000,15/11/2012,12410737,308.04,Chicken Joes,216133
Solihull MBC,Children & Education Services,Light Hall Academy,Catering Provisions,D20000,15/11/2012,12410735,325.68,Chicken Joes,216133
Solihull MBC,Children & Education Services,Arden Academy Catering,Catering Provisions,D20000,15/11/2012,12410734,748.13,Chicken Joes,216133
Solihull MBC,Children & Education Services,Alderbrook Academy,Catering Provisions,D20000,15/11/2012,12410733,289.1,Chicken Joes,216133
Solihull MBC,Children & Education Services,Heart of England Academy,Catering Provisions,D20000,15/11/2012,12410731,382.34,Chicken Joes,216133
Solihull MBC,Children & Education Services,Light Hall Academy,Catering Provisions,D20000,15/11/2012,12410730,439.99,Chicken Joes,216133
Solihull MBC,Children & Education Services,Arden Academy Catering,Catering Provisions,D20000,15/11/2012,12410729,758.13,Chicken Joes,216133
Solihull MBC,Children & Education Services,John Henry Newman Caterg,Catering Provisions,D20000,15/11/2012,12410726,339.28,Chicken Joes,216133
Solihull MBC,Children & Education Services,Arden Academy Catering,Catering Provisions,D20000,15/11/2012,12410723,627.6,Chicken Joes,216133
Solihull MBC,Children & Education Services,Light Hall Academy,Catering Provisions,D20000,15/11/2012,12410722,403.35,Chicken Joes,216133
Solihull MBC,Children & Education Services,Inclusion-Surestart Rev,Agency Staff,A35000,22/11/2012,12433408,887.4,Child First Nursery,134588
Solihull MBC,Children & Education Services,Inclusion-Surestart Rev,Agency Staff,A35000,22/11/2012,12433409,835.2,Child First Nursery,134588
Solihull MBC,Children & Education Services,Inclusion-Surestart Rev,Agency Staff,A35000,12/11/2012,12394007,469.71,Child First Nursery,134588
Solihull MBC,Children & Education Services,Section 17 DART,Clients Expenses,D62000,01/11/2012,12374641,640,Child First Nursery,134588
Solihull MBC,Adult Social Care,ASC - Chief Executive's Office,Car Allowances: Officers,C10000,27/11/2012,12439074,7,Chiltern Railways,9916
Solihull MBC,Adult Social Care,ASC - Chief Executive's Office,Car Allowances: Officers,C10000,27/11/2012,12439074,8.4,Chiltern Railways,9916
Solihull MBC,Adult Social Care,ASC - Chief Executive's Office,Car Allowances: Officers,C10000,27/11/2012,12439074,8.4,Chiltern Railways,9916
Solihull MBC,Adult Social Care,ASC - Chief Executive's Office,Car Allowances: Officers,C10000,27/11/2012,12439074,8.4,Chiltern Railways,9916
Solihull MBC,Adult Social Care,ASC - Chief Executive's Office,Car Allowances: Officers,C10000,27/11/2012,12439074,8.4,Chiltern Railways,9916
Solihull MBC,Central Services to the Public,Internal Audit,Car Allowances: Officers,C10000,27/11/2012,12439074,8.4,Chiltern Railways,9916
Solihull MBC,Central Services to the Public,Council House Complex,Car Allowances: Officers,C10000,27/11/2012,12439074,8.3,Chiltern Railways,9916
Solihull MBC,Children & Education Services,Inspectors,Car Allowances: Officers,C10000,27/11/2012,12439074,8.4,Chiltern Railways,9916
Solihull MBC,Central Services to the Public,Postage Pool Post Room,Car Allowances: Officers,C10000,27/11/2012,12439074,1422,Chiltern Railways,9916
Solihull MBC,Central Services to the Public,Postage Pool Post Room,Car Allowances: Officers,C10000,27/11/2012,12439074,950,Chiltern Railways,9916
Solihull MBC,Central Services to the Public,Internal Audit,Car Allowances: Officers,C10000,27/11/2012,12439074,55,Chiltern Railways,9916
Solihull MBC,Central Services to the Public,Internal Audit,Car Allowances: Officers,C10000,27/11/2012,12439074,8.4,Chiltern Railways,9916
Solihull MBC,Corporate & Democratic Core,Members Expenses,Car Allowances: Officers,C10000,27/11/2012,12439074,8.4,Chiltern Railways,9916
